Workbook

Sheet INSTRUCTIONS
B2: HOW TO » CALCULATOR INSTRUCTIONS | G2: City of Wilsonville, OR
G3: Community Development
B7: GENERAL INSTRUCTIONS
B10: • Start entering project information on the START worksheet.
B11: • Enter text in the yellow cells only.
B12: • If the RESIDENTIAL Development Category is selected, only 1 use type is allowed.
B13: • If the COMMERCIAL or INDUSTRIAL Development Category is selected, up to 3 use types are allowed although typically only 1 is used.
B14: • If the RESIDENTIAL Development Category is selected, a Residential Subcategory must also be selected.
B15: • If the SINGLE FAMILY Residential Subcategory is selected, identify whether development is located within Frog Pond West.
B16: • CATEGORY, USE, and RESIDENTIAL SUBCATEGORY are critical fields to fill in to make the calculator operate properly.
B19: GENERAL CREDIT INSTRUCTIONS
B22: • When applying credits, do not exceed available credit quantity or development unit count.
B25: VOUCHER INSTRUCTIONS
B28: • Enter voucher credits individually for each utility type.
B29: • When applying voucher credits, voucher credits cannot exceed the estimated utility SDC charges for that utility type. In other words,
B30: the final SDC estimate for each SDC utilty type cannot be a negative value.
A33: ∞ | B33: WATER WORKSHEET
B36: CHARGES
B37: • For RESIDENTIAL development, enter meter size.
B38: • For COMMERCIAL or INDUSTRIAL development, select domestic meter size, irrigation meter size, and fire line size.
B39: • Separate, individual water services and meters are required for domestic and irrigation water service excluding individual single-
B40: family residences. Deduct meters are not permitted. Refer to PWS Section 501.2.07.
B41: CREDITS
B42: • Standard credit type for all development categories is Flow Factors.
B43: • Select Credit Meter Size. This credit meter size will be converted to Credit Flow Factors.
B44: • Enter Flow Factor Credits to apply to domestic and/or irrigation meters.
B45: • 1 Meter Flow Factor = $11,753
A48: ∞ | B48: SEWER WORKSHEET
B51: CHARGES
B52: • For RESIDENTIAL development, select development type and enter Dwelling Unit (DU) count.
B53: • For COMMERCIAL or INDUSTRIAL development, select development type.
B54: • Within the Equivalency Factor Unit (EFU) Determination Table, enter New, Moved, or Capped fixtures associated with the
B55: development. Total EFUs and Equivalent Dwelling Units (EDUs) will be calculated from this entered data.
B56: • If necessary, enter other fixture types and equivalency factors not listed at the bottom of the EDU Determination Table.
B57: CREDITS
B58: • Standard credit type for RESIDENTIAL development is Dwelling Unit (DU). Standard credit type for COMMERCIAL and INDUSTRIAL
B59: development is Equivalency Factor Units (EFU).
B60: • DU credits can be applied to COMMERCIAL and INDUSTRIAL development. EFU credits cannot be applied to RESIDENTIAL development.
B61: • 1 Dwelling Unit (DU) = 16 Equivalency Factor Units (EFU).
A64: ∞ | B64: STREETS (TRANSPORTATION) WORKSHEET
B67: CHARGES
B68: • For all development categories, select ITE Code – Land Use Category and enter Unit Count. If a traffic impact analysis (TIA) has been
B69: generated, check the "Enter custom traffic data" box at the top of the STREETS worksheet.
B70: • When selecting an ITE code, read through multiple options to ensure the most applicable code is used to calculate the SDC estimate.
B71: There are many ITE codes that are similar and choosing the most accurate one will ensure the best estimate.
B72: • For ITE codes with Units of "1,000 SFGFA" or "1,000 SFGLA", the Unit Count should be the Gross Floor Area (or Gross Leasable Area)
B73: divided by 1,000. For "100 SFGFA" Units, the Unit Count should be the development's Gross Floor Area divided by 100.
B74: • Prior to issuance of permits, ensure that the entered ITE Code matches the ITE code provided in the Trip Generation Memo.
B75: CREDITS
B76: • Standard credit type for all development categories is Person Trips.
B77: • Select ITE Code – Land Use Category and enter Unit Count associated with the credited property address.
A80: ∞ | B80: STORM WORKSHEET
B83: CHARGES
B84: • For RESIDENTIAL development, enter dwelling unit (DU) count.
B85: • For MULTIFAMILY, COMMERCIAL, or INDUSTRIAL development, enter square feet of impervious surface area (SFISA) and description of
B86: the entered impervious surface area. Five rows are provided to allow a breakdown of impervious areas in the development site.
B87: CREDITS
B88: • Standard credit type for RESIDENTIAL development is Dwelling Unit (DU). Standard credit type for MULTIFAMILY, COMMERCIAL, and
B89: INDUSTRIAL development is Square Feet of Impervious Surface Area (SFISA).
B90: • While not standard, both credit types (DU and SFISA) can be applied to all development categories.
B91: • 1 Dwelling Unit (DU) = 2,750 Square Feet of Impervious Surface Area (SFISA)
B92: • When applying SFISA credits to RESIDENTIAL development, credit must be applied in increments of 2,750 square feet (equivalent to
B93: 1 DU) to effect the SDC estimate. There is no restriction when applying DU credits to MULTIFAMILY, COMMERCIAL, or INDUSTRIAL
B94: development.
A97: ∞ | B97: PARKS WORKSHEET
B100: CHARGES
B101: • For RESIDENTIAL development, select development type and enter dwelling unit (DU) count.
B102: • For COMMERCIAL or INDUSTRIAL development, select development type and enter thousand gross square feet (TGSF) of proposed
B103: new structure. For example, for a 16,540 square foot structure, enter 16.54 as the unit count.
B104: CREDITS
B105: • Standard credit type for RESIDENTIAL development is Dwelling Unit (DU). Standard credit type for COMMERCIAL and INDUSTRIAL
B106: development is Thousand Gross Square Feet (TGSF). When entering COMMERCIAL and INDUSTRIAL credit, enter as dollars.
B107: • Only standard credit types can be applied for Parks SDC Credits.

Sheet CERTIFICATION
B2: ESTIMATE CERTIFICATION | Q2: City of Wilsonville, OR
Q3: Community Development
B6: SUBJECT PROPERTY: | E6: =IF(ISBLANK(START!SITEADDR),"",IF(ISBLANK(START!SUITE),START!SITEADDR,START!SITEADDR & ", " & START!SUITE)) -> 
B8: CERTIFICATION AND UNDERSTANDING OF APPLICANT
B11: I hereby certify that the information provided in this document is true, correct and complete to the best of my knowledge and belief. I understand that any errors, omissions, misrepresentations, or miscalculations, whether intentional or unintentional, will result in an incorrect estimate and will nullify any City staff preliminary verification of the estimate. I understand this SDC calculation is done for estimating purposes only and does not constitute the actual SDC fees that will be due. The actual SDC fees due will be calculated by City staff at the time of permit review, based on detailed development plans and other required information submitted with the building permit application. The actual SDC fees due and owed will be shown on the building permit and must be paid at the time of issuance of the building permit. Any SDC calculation provided or approved by City staff prior to issuance of the building permit is for estimating purposes only and is non-binding. I further understand that the final SDC fee amount will be as printed on the building permit and must be carefully reviewed by me prior to issuance of the building permit. The SDC fee must be paid in full at the time of the issuance of the building permit. I understand that I have a right to appeal the SDC fee if I do not believe it is correct in accordance with the appeal requirements and time frame described on the building permit and as provided in more particularity in the City Development Code Chapter 11.150.
D14: Applicants Ackowledgement | N14: Date
B17: VERIFICATION OF SDC ESTIMATE
B20: City staff will review and preliminarily approved the SDC Estimate submitted by the Applicant but makes no representation or warranty that the information provided by the Applicant to make the estimated calculation was true, complete or correct. Approval of the SDC Estimate shall not to be construed as any representation by City staff as to what the actual SDC Fee will be.

Sheet START
B2: SYSTEM DEVELOPMENT CHARGES (SDC) | G2: City of Wilsonville, OR
G3: Community Development
B4: ESTIMATE CALCULATOR | G4: 29799 SW Town Center Loop East
G5: Wilsonville, OR 97070
B8: PERMIT INFORMATION
B10: BUILDING PERMIT NUMBER | D10: APPLICATION DATE
B13: PROJECT INFORMATION
B15: PROJECT ADDRESS | D15: SUITE / BLDG NO. | E15: CITY, STATE | F15: ZIP CODE | G15: COUNTY
E16: Wilsonville, OR | F16: 97070
B17: PROJECT DESCRIPTION
B20: PROPERTY OWNER
B22: OWNER NAME | D22: PHONE | E22: EMAIL ADDRESS
B24: OWNER ADDRESS | F24: CITY, STATE, ZIP
B26: APPLICANT
B28: APPLICANT NAME | D28: PHONE | E28: EMAIL ADDRESS
B30: APPLICANT ADDRESS | F30: CITY, STATE, ZIP
B33: DEVELOPMENT CRITERIA
B34: CATEGORY | C34: # OF USE TYPES | E34: STRUCTURE SQUARE FOOTAGE
B35: Commercial | C35: 1
B36: RESIDENTIAL SUBCATEGORY
B38: LOCATED IN FROG POND WEST?
B41: BUSINESS INFORMATION
B43: BUSINESS NAME | D43: BUSINESS TYPE | F43: SIC CODE

Sheet _REF (hidden)
A1: Category ID | B1: Categories | C1: Use ID | D1: Use
A2: R | B2: Residential | C2: 1 | D2: 1
A3: C/I | B3: Commercial | C3: 2 | D3: 2
A4: C/I | B4: Industrial | C4: 3 | D4: 3
B6: County of Jurisdiction
B7: Clackamas
B8: Washington
B10: Residential Subcategories
B11: Single Family
B12: Multifamily
B14: Frog Pond Location
B15: Yes
B16: No
B18: FP West Infrastructure Fee
B19: 36090

Sheet WATER
D2: CHARGES & CREDITS » WATER | I2: City of Wilsonville, OR
I3: Community Development
A6: HIDE | B6: TYPE | D6: SUBJECT PROPERTY: | E6: =IF(ISBLANK(START!SITEADDR),"",IF(ISBLANK(START!SUITE),START!SITEADDR,START!SITEADDR & ", " & START!SUITE)) -> 
D9: WATER » CHARGES
B10: R | D10: RESIDENTIAL DEVELOPMENT
B11: R | D11: DOMESTIC WATER METER
B12: R
B13: R | D13: METER SIZE | E13: BASE METER COST | F13: BASE FLOW FACTOR | G13: APPLIED FLOW FACTOR CREDIT | H13: SDC ESTIMATE
B14: R | E14: =IF(ISBLANK(METER_Res),"",INDEX(WaterSDC[Water SDC],MATCH(METER_Res,WaterSDC[Meter Size],0))) ->  | F14: =IF(ISBLANK(METER_Res),"",INDEX(WaterSDC[Flow Factor],MATCH(METER_Res,WaterSDC[Meter Size],0))) ->  | H14: =IF(ISNUMBER(E14),E14-(CREDIT_Res*'_SDC Water'!$E$5),"") -> 
B15: C/I | D15: COMMERCIAL / INDUSTRIAL DEVELOPMENT
B16: C/I | D16: DOMESTIC WATER METER
B17: C/I
B18: C/I | D18: METER SIZE | E18: BASE METER COST | F18: BASE FLOW FACTOR | G18: APPLIED FLOW FACTOR CREDIT | H18: SDC ESTIMATE
B19: C/I | E19: =IF(ISBLANK(METER_Com),"",INDEX(WaterSDC[Water SDC],MATCH(METER_Com,WaterSDC[Meter Size],0))) ->  | F19: =IF(ISBLANK(METER_Com),"",INDEX(WaterSDC[Flow Factor],MATCH(METER_Com,WaterSDC[Meter Size],0))) ->  | H19: =IF(ISNUMBER(E19),IF((E19-(CREDIT_Com*'_SDC Water'!$E$5))<0,0,(E19-(CREDIT_Com*'_SDC Water'!$E$5))),"") -> 
B20: C/I
D22: NOTE: Deduct meters are not permitted. Separate, individual water services and meters are required for domestic and irrigation water service excluding individual single-family residences. See PWS Section 501.2.07.
A23: Y
A24: Y
A25: Y | D25: METER SIZE | E25: BASE METER COST | F25: BASE FLOW FACTOR | G25: APPLIED FLOW FACTOR CREDIT | H25: SDC ESTIMATE
A26: Y | E26: =IF(ISBLANK(Irrigation_Meter_Size),"",INDEX(WaterSDC[Water SDC],MATCH(Irrigation_Meter_Size,WaterSDC[Meter Size],0))) ->  | F26: =IF(ISBLANK(Irrigation_Meter_Size),"",INDEX(WaterSDC[Flow Factor],MATCH(Irrigation_Meter_Size,WaterSDC[Meter Size],0))) ->  | H26: =IF(ISNUMBER(E26),E26-(Irrigation_FF_Credit*'_SDC Water'!$E$5),"") -> 
A27: Y
B28: C/I
B29: C/I | D29: FIRE LINE SIZE
B30: C/I | D30: Providing the proposed development's fire line size does not contribute to the SDC estimate and is for informational purposes only.
B31: C/I
B32: C/I
B33: C/I | D33: MAIN SIZE (in)
B34: C/I
D36: WATER » CREDITS
D37: IDENTIFY CREDITS
D39: ASSOCIATED PROPERTY ADDRESS
D41: CREDIT TYPE | E41: METER SIZE | F41: FLOW FACTORS
F42: =IF(ISBLANK(Credit_Amount_A),"",IF(Credit_Type_A = "Meter",INDEX(WaterSDC[Flow Factor],MATCH(Credit_Amount_A,WaterSDC[Meter Size],0)),Credit_Amount_A)) -> 
A44: Y
A45: Y | D45: ASSOCIATED PROPERTY ADDRESS
A46: Y
A47: Y | D47: CREDIT TYPE
A48: Y
D50: APPLY CREDITS
D52: APPLY METER CREDIT TO… | F52: FLOW FACTOR CREDIT TO APPLY
D53: Domestic Water Meter
D54: Irrigation Water Meter
F57: CREDIT BALANCE
F58: =IF(ISNUMBER(Flow_Factor_A),IF(ISNUMBER(Flow_Factor_B),IF(Flow_Factor_A + Flow_Factor_B = APPLY_Domestic + APPLY_Irrigation,"--",Flow_Factor_A + Flow_Factor_B - APPLY_Domestic - APPLY_Irrigation),IF(Flow_Factor_A = APPLY_Domestic + APPLY_Irrigation,"--",Flow_Factor_A - APPLY_Domestic - APPLY_Irrigation)),"") -> 
D60: WATER » NOTES

Sheet _SDC Water (hidden)
A1: SDC Table: Water
A3: Flow Factor | B3: Meter Size | C3: Meter Size Value | D3: Meter Install Cost | E3: Water SDC | F3: Total | J3: 0.004 | K3: (percent change)
A4: 0 | B4: 0" | C4: 0 | D4: 0 | E4: 0 | F4: =WaterSDC[[#This Row],[Meter Install Cost]]+WaterSDC[[#This Row],[Water SDC]] -> 0 | I4: 0 | J4: =I4*(1+$J$3) -> 0
A5: 1 | B5: 5/8" x 3/4" | C5: 0.625 | D5: 312 | E5: =J5 -> 12440.564 | F5: =WaterSDC[[#This Row],[Meter Install Cost]]+WaterSDC[[#This Row],[Water SDC]] -> 12752.564 | I5: 12391 | J5: =I5*(1+$J$3) -> 12440.564 | K5: =ROUND(J5,0) -> 12441 | L5: =WaterSDC[[#This Row],[Water SDC]]-K5 -> -0.436
A6: 1.5 | B6: 3/4" x 3/4" | C6: 0.75 | D6: 364 | E6: =$E$5*WaterSDC[[#This Row],[Flow Factor]] -> 18660.846 | F6: =WaterSDC[[#This Row],[Meter Install Cost]]+WaterSDC[[#This Row],[Water SDC]] -> 19024.846
A7: 2.5 | B7: 1" | C7: 1 | D7: 395 | E7: =$E$5*WaterSDC[[#This Row],[Flow Factor]] -> 31101.41 | F7: =WaterSDC[[#This Row],[Meter Install Cost]]+WaterSDC[[#This Row],[Water SDC]] -> 31496.41
A8: 5 | B8: 1-1/2" | C8: 1.5 | D8: 676 | E8: =$E$5*WaterSDC[[#This Row],[Flow Factor]] -> 62202.82 | F8: =WaterSDC[[#This Row],[Meter Install Cost]]+WaterSDC[[#This Row],[Water SDC]] -> 62878.82
A9: 8 | B9: 2" | C9: 2 | D9: 859 | E9: =$E$5*WaterSDC[[#This Row],[Flow Factor]] -> 99524.512 | F9: =WaterSDC[[#This Row],[Meter Install Cost]]+WaterSDC[[#This Row],[Water SDC]] -> 100383.512
A10: 16 | B10: 3" | C10: 3 | D10: 2378 | E10: =$E$5*WaterSDC[[#This Row],[Flow Factor]] -> 199049.024 | F10: =WaterSDC[[#This Row],[Meter Install Cost]]+WaterSDC[[#This Row],[Water SDC]] -> 201427.024
A11: 25 | B11: 4" | C11: 4 | D11: 3600 | E11: =$E$5*WaterSDC[[#This Row],[Flow Factor]] -> 311014.1 | F11: =WaterSDC[[#This Row],[Meter Install Cost]]+WaterSDC[[#This Row],[Water SDC]] -> 314614.1
A12: 50 | B12: 6" | C12: 6 | D12: 6432 | E12: =$E$5*WaterSDC[[#This Row],[Flow Factor]] -> 622028.2 | F12: =WaterSDC[[#This Row],[Meter Install Cost]]+WaterSDC[[#This Row],[Water SDC]] -> 628460.2
A13: 80 | B13: 8" | C13: 8 | D13: 10258 | E13: =$E$5*WaterSDC[[#This Row],[Flow Factor]] -> 995245.12 | F13: =WaterSDC[[#This Row],[Meter Install Cost]]+WaterSDC[[#This Row],[Water SDC]] -> 1005503.12
A14: 115 | B14: 10" | C14: 10 | D14: 13287 | E14: =$E$5*WaterSDC[[#This Row],[Flow Factor]] -> 1430664.86 | F14: =WaterSDC[[#This Row],[Meter Install Cost]]+WaterSDC[[#This Row],[Water SDC]] -> 1443951.86
A17: SDC Table: Inverted Flow Factor Table
A19: Flow Factor | B19: Meter Size
A20: 115 | B20: 10"
A21: 80 | B21: 8"
A22: 50 | B22: 6"
A23: 25 | B23: 4"
A24: 16 | B24: 3"
A25: 8 | B25: 2"
A26: 5 | B26: 1-1/2"
A27: 2.5 | B27: 1"
A28: 1.5 | B28: 5/8" x 3/4"
A29: 1 | B29: 3/4" x 3/4"
A30: 0 | B30: 0"
A33: Water Credit Type
A35: ID | B35: Credit Type
A36: 0 | B36: Meter
A37: 1 | B37: Flow Factor

Sheet SEWER
E2: CHARGES & CREDITS » SANITARY SEWER | J2: City of Wilsonville, OR
J3: Community Development
A6: HIDE | B6: TYPE | C6: USE | E6: SUBJECT PROPERTY: | F6: =IF(ISBLANK(START!SITEADDR),"",IF(ISBLANK(START!SUITE),START!SITEADDR,START!SITEADDR & ", " & START!SUITE)) -> 
E9: SANITARY SEWER » CHARGES
B10: R | E10: RESIDENTIAL DEVELOPMENT
B11: R
B12: R | E12: DEVELOPMENT TYPE | H12: UNIT | I12: RATE
B13: R | H13: =IF(ISBLANK($E$13),"",INDEX('_SDC Sewer'!D4:D7,MATCH($E$13,'_SDC Sewer'!A4:A7,0))) ->  | I13: =IF(ISBLANK(devType_Residential),"",INDEX('_SDC Sewer'!E4:E7,MATCH(devType_Residential,'_SDC Sewer'!A4:A7,0))) -> 
B14: R | E14: CALCULATION TYPE DESCRIPTION
B15: R
B16: R | E16: =IF(ISBLANK($E$13),"",INDEX('_SDC Sewer'!F4:F7,MATCH($E$13,'_SDC Sewer'!A4:A7,0))) -> 
B17: R | E17: UNIT COUNT | F17: APPLIED CREDIT | G17: ADJUSTED COUNT | H17: SDC ESTIMATE
B18: R | G18: =IF(ISBLANK(E18),"",E18-APPLIED_RESIDENTIAL_CREDIT) ->  | H18: =IF(ISNUMBER(I13),IF(ISBLANK(E18),"",I13*G18),"") -> 
B19: R
B20: C/I | C20: 1 | E20: COMMERCIAL / INDUSTRIAL DEVELOPMENT TYPE – USE 1
B21: C/I | C21: 1
B22: C/I | C22: 1 | E22: DEVELOPMENT TYPE | I22: UNIT | J22: RATE
B23: C/I | C23: 1 | D23: – | E23: Professional Building | I23: =IF(ISBLANK(devType_Commercial_1),"",INDEX('_SDC Sewer'!$C$8:$C$36,MATCH(devType_Commercial_1,'_SDC Sewer'!$A$8:$A$36,0))) -> EDU | J23: =IF(ISBLANK(devType_Commercial_1),"",INDEX('_SDC Sewer'!$E$8:$E$36,MATCH(devType_Commercial_1,'_SDC Sewer'!$A$8:$A$36,0))) -> 8561
A24: N | B24: C/I | C24: 1 | E24: DEVELOPMENT TYPE DESCRIPTION
A25: N | B25: C/I | C25: 1
A26: N | B26: C/I | C26: 1 | E26: =IF(ISBLANK(E23),"",INDEX('_SDC Sewer'!$F$8:$F$36,MATCH(E23,'_SDC Sewer'!$A$8:$A$36,0))) -> Shall mean those buildings used to house establishments primarily engaged in furnishing medical, surgical and other health services to persons. A more complete description with industry numbers is included in SIC, Major Group 80 – Health Services.
A27: N | B27: C/I | C27: 1
A28: N | B28: C/I | C28: 1 | E28: IDENTIFY FIXTURES & CALCULATE # OF EQUIVALENCY FACTOR UNITS (EFUs)
A29: N | B29: C/I | C29: 1
A30: N | B30: C/I | C30: 1 | E30: FIXTURE TYPE | F30: NEW FIXTURE(S) | G30: FIXTURE(S) MOVED | H30: FIXTURE(S) CAPPED | I30: EQUIVALENCY FACTOR | J30: EFUs
A31: N | B31: C/I | C31: 1 | E31: Bathtub or Shower | I31: 2 | J31: =IF((F31-H31)*I31=0,"",(F31-H31)*I31) -> 
A32: N | B32: C/I | C32: 1 | E32: Single Sink, Lavatory | I32: 2 | J32: =IF((F32-H32)*I32=0,"",(F32-H32)*I32) -> 
A33: N | B33: C/I | C33: 1 | E33: Urinal, Stall, or Wall | I33: 5
A34: N | B34: C/I | C34: 1 | E34: Water Closet | I34: 6
A35: N | B35: C/I | C35: 1 | E35: Floor Drain/Indirect Waste Receptor 2" | I35: 4
A36: N | B36: C/I | C36: 1 | E36: Floor Drain/Indirect Waste Receptor 3" | I36: 6
A37: N | B37: C/I | C37: 1 | E37: Floor Drain/Indirect Waste Receptor 4" | I37: 8
A38: N | B38: C/I | C38: 1 | E38: Dishwasher, Drain 2" | I38: 4
A39: N | E39: Dishwasher, Drain 3" | I39: 6
A40: N | E40: Dishwasher, Drain 4" | I40: 8
A41: N | B41: C/I | C41: 1 | E41: Drinking Fountain | I41: 1
A42: N | B42: C/I | C42: 1 | E42: Garbage Grinder | I42: 4
A43: N | B43: C/I | C43: 1 | E43: Commercial Clothes Washer, 0-5 lbs | I43: 2
A44: N | B44: C/I | C44: 1 | E44: Washer, 10-15 lbs | I44: 6
A45: N | B45: C/I | C45: 1 | E45: Washer, 15-20 lbs | I45: 7
A46: N | B46: C/I | C46: 1 | E46: Washer, 20-25 lbs | I46: 8
A47: N | B47: C/I | C47: 1 | E47: Washer, 25-35 lbs | I47: 9
A48: N | B48: C/I | C48: 1 | E48: Other:
A49: N | B49: C/I | C49: 1 | H49: TOTAL EQUIVALENCY FACTOR UNITS (EFUs) | J49: =IF(SUM(J31:J48)=0,"",SUM(J31:J48)) -> 
A50: N | B50: C/I | C50: 1
A51: N | B51: C/I | C51: 1 | E51: CALCULATE EQUIVALENT DWELLING UNITS (EDUs)
A52: N | B52: C/I | C52: 1
A53: N | B53: C/I | C53: 1 | E53: TOTAL EFU COUNT | F53: APPLIED EFU CREDIT | G53: ADJUSTED COUNT | H53: TOTAL EDUs | I53: EDU RATE | J53: SDC ESTIMATE
A54: N | B54: C/I | C54: 1 | E54: =J49 ->  | G54: =IF(ISNUMBER(TOTAL_EFU_COUNT_1),IF(ISNUMBER(APPLIED_COMIND_CREDIT_1),TOTAL_EFU_COUNT_1-APPLIED_COMIND_CREDIT_1,"--"),"--") -> -- | H54: =IF(ISNUMBER(TOTAL_EFU_COUNT_1),IF(ISBLANK(APPLIED_COMIND_CREDIT_1),ROUND(TOTAL_EFU_COUNT_1/16,2),ROUND(G54/16,2)),"") ->  | I54: =IF(ISNUMBER(H54),J23,"") ->  | J54: =IF(ISNUMBER(H54),IF((H54*I54)<0,0,H54*I54),"") -> 
A55: N | B55: C/I | C55: 1 | G55: =IF(ISNUMBER(TOTAL_EFU_COUNT_1),"÷ 16","") -> 
B56: C/I | C56: 2
B57: C/I | C57: 2 | E57: COMMERCIAL / INDUSTRIAL DEVELOPMENT TYPE – USE 2
B58: C/I | C58: 2
B59: C/I | C59: 2 | E59: DEVELOPMENT TYPE | I59: UNIT | J59: RATE
B60: C/I | C60: 2 | D60: + | I60: =IF(ISBLANK(devType_Commercial_2),"",INDEX('_SDC Sewer'!$C$8:$C$36,MATCH(devType_Commercial_2,'_SDC Sewer'!$A$8:$A$36,0))) ->  | J60: =IF(ISBLANK(devType_Commercial_2),"",INDEX('_SDC Sewer'!$E$8:$E$36,MATCH(devType_Commercial_2,'_SDC Sewer'!$A$8:$A$36,0))) -> 
A61: Y | B61: C/I | C61: 2 | E61: DEVELOPMENT TYPE DESCRIPTION
A62: Y | B62: C/I | C62: 2
A63: Y | B63: C/I | C63: 2 | E63: =IF(ISBLANK(E60),"",INDEX('_SDC Sewer'!$F$8:$F$36,MATCH(E60,'_SDC Sewer'!$A$8:$A$36,0))) -> 
A64: Y | B64: C/I | C64: 2
A65: Y | B65: C/I | C65: 2 | E65: IDENTIFY FIXTURES & CALCULATE NUMBER OF EQUIVALENCY FACTOR UNITS (EFUs)
A66: Y | B66: C/I | C66: 2
A67: Y | B67: C/I | C67: 2 | E67: FIXTURE TYPE | F67: NEW FIXTURE(S) | G67: FIXTURE(S) MOVED | H67: FIXTURE(S) CAPPED | I67: EQUIVALENCY FACTOR | J67: EFUs
A68: Y | B68: C/I | C68: 2 | E68: Bathtub or Shower | I68: 2 | J68: =IF((F68-H68)*I68=0,"",(F68-H68)*I68) -> 
A69: Y | B69: C/I | C69: 2 | E69: Lavatory | I69: 2 | J69: =IF((F69-H69)*I69=0,"",(F69-H69)*I69) -> 
A70: Y | B70: C/I | C70: 2 | E70: Sink or Tray | I70: 2
A71: Y | B71: C/I | C71: 2 | E71: Urinal, Stall, or Wall | I71: 5
A72: Y | B72: C/I | C72: 2 | E72: Wash Basin, Single | I72: 1
A73: Y | B73: C/I | C73: 2 | E73: Water Closet | I73: 6
A74: Y | B74: C/I | C74: 2 | E74: Floor Drain, 2" | I74: 4
A75: Y | B75: C/I | C75: 2 | E75: Floor Drain, 3" | I75: 6
A76: Y | B76: C/I | C76: 2 | E76: Floor Drain, 4" | I76: 8
A77: Y | B77: C/I | C77: 2 | E77: Floor/Mop Sink | I77: 2
A78: Y | B78: C/I | C78: 2 | E78: Dishwasher | I78: 3
A79: Y | B79: C/I | C79: 2 | E79: Drinking Fountain | I79: 1
A80: Y | B80: C/I | C80: 2 | E80: Condensate Drain | I80: 1
A81: Y | B81: C/I | C81: 2 | E81: Condensate Drain | I81: 2
A82: Y | B82: C/I | C82: 2 | E82: Garbage Grinder | I82: 4
A83: Y | B83: C/I | C83: 2 | E83: Washer, 0-5 lbs | I83: 2
A84: Y | B84: C/I | C84: 2 | E84: Washer, 10-15 lbs | I84: 6
A85: Y | B85: C/I | C85: 2 | E85: Washer, 15-20 lbs | I85: 7
A86: Y | B86: C/I | C86: 2 | E86: Washer, 20-25 lbs | I86: 8
A87: Y | B87: C/I | C87: 2 | E87: Washer, 25-35 lbs | I87: 9
A88: Y | B88: C/I | C88: 2 | E88: Other:
A89: Y | B89: C/I | C89: 2 | E89: Other:
A90: Y | B90: C/I | C90: 2 | E90: Other:
A91: Y | B91: C/I | C91: 2 | H91: TOTAL EQUIVALENCY FACTOR UNITS (EFUs) | J91: =IF(SUM(J68:J90)=0,"",SUM(J68:J90)) -> 
A92: Y | B92: C/I | C92: 2
A93: Y | B93: C/I | C93: 2 | E93: CALCULATE EQUIVALENT DWELLING UNITS (EDUs)
A94: Y | B94: C/I | C94: 2
A95: Y | B95: C/I | C95: 2 | E95: TOTAL EFU COUNT | F95: APPLIED EFU CREDIT | G95: ADJUSTED COUNT | H95: TOTAL EDUs | I95: EDU RATE | J95: SDC ESTIMATE
A96: Y | B96: C/I | C96: 2 | E96: =J91 ->  | G96: =IF(ISNUMBER(TOTAL_EFU_COUNT_2),IF(ISNUMBER(APPLIED_COMIND_CREDIT_2),TOTAL_EFU_COUNT_2-APPLIED_COMIND_CREDIT_2,"--"),"--") -> -- | H96: =IF(ISNUMBER(TOTAL_EFU_COUNT_2),IF(ISBLANK(APPLIED_COMIND_CREDIT_2),ROUND(TOTAL_EFU_COUNT_2/16,2),ROUND(G96/16,2)),"") ->  | I96: =IF(ISNUMBER(H96),J60,"") ->  | J96: =IF(ISNUMBER(H96),IF((H96*I96)<0,0,H96*I96),"") -> 
A97: Y | B97: C/I | C97: 2 | G97: =IF(ISNUMBER(TOTAL_EFU_COUNT_2),"÷ 16","") -> 
B98: C/I | C98: 3
B99: C/I | C99: 3 | E99: COMMERCIAL / INDUSTRIAL DEVELOPMENT TYPE – USE 3
B100: C/I | C100: 3
B101: C/I | C101: 3 | E101: DEVELOPMENT TYPE | I101: UNIT | J101: RATE
B102: C/I | C102: 3 | D102: + | I102: =IF(ISBLANK(devType_Commercial_3),"",INDEX('_SDC Sewer'!$C$8:$C$36,MATCH(devType_Commercial_3,'_SDC Sewer'!$A$8:$A$36,0))) ->  | J102: =IF(ISBLANK(devType_Commercial_3),"",INDEX('_SDC Sewer'!$E$8:$E$36,MATCH(devType_Commercial_3,'_SDC Sewer'!$A$8:$A$36,0))) -> 
A103: Y | B103: C/I | C103: 3 | E103: DEVELOPMENT TYPE DESCRIPTION
A104: Y | B104: C/I | C104: 3
A105: Y | B105: C/I | C105: 3 | E105: =IF(ISBLANK(E102),"",INDEX('_SDC Sewer'!$F$8:$F$36,MATCH(E102,'_SDC Sewer'!$A$8:$A$36,0))) -> 
A106: Y | B106: C/I | C106: 3
A107: Y | B107: C/I | C107: 3 | E107: IDENTIFY FIXTURES & CALCULATE NUMBER OF EQUIVALENCY FACTOR UNITS (EFUs)
A108: Y | B108: C/I | C108: 3
A109: Y | B109: C/I | C109: 3 | E109: FIXTURE TYPE | F109: NEW FIXTURE(S) | G109: FIXTURE(S) MOVED | H109: FIXTURE(S) CAPPED | I109: EQUIVALENCY FACTOR | J109: EFUs
A110: Y | B110: C/I | C110: 3 | E110: Bathtub or Shower | I110: 2 | J110: =IF((F110-H110)*I110=0,"",(F110-H110)*I110) -> 
A111: Y | B111: C/I | C111: 3 | E111: Lavatory | I111: 2 | J111: =IF((F111-H111)*I111=0,"",(F111-H111)*I111) -> 
A112: Y | B112: C/I | C112: 3 | E112: Sink or Tray | I112: 2
A113: Y | B113: C/I | C113: 3 | E113: Urinal, Stall, or Wall | I113: 5
A114: Y | B114: C/I | C114: 3 | E114: Wash Basin, Single | I114: 1
A115: Y | B115: C/I | C115: 3 | E115: Water Closet | I115: 6
A116: Y | B116: C/I | C116: 3 | E116: Floor Drain, 2" | I116: 4
A117: Y | B117: C/I | C117: 3 | E117: Floor Drain, 3" | I117: 6
A118: Y | B118: C/I | C118: 3 | E118: Floor Drain, 4" | I118: 8
A119: Y | B119: C/I | C119: 3 | E119: Floor/Mop Sink | I119: 2
A120: Y | B120: C/I | C120: 3 | E120: Dishwasher | I120: 3
A121: Y | B121: C/I | C121: 3 | E121: Drinking Fountain | I121: 1
A122: Y | B122: C/I | C122: 3 | E122: Condensate Drain | I122: 1
A123: Y | B123: C/I | C123: 3 | E123: Condensate Drain | I123: 2
A124: Y | B124: C/I | C124: 3 | E124: Garbage Grinder | I124: 4
A125: Y | B125: C/I | C125: 3 | E125: Washer, 0-5 lbs | I125: 2
A126: Y | B126: C/I | C126: 3 | E126: Washer, 10-15 lbs | I126: 6
A127: Y | B127: C/I | C127: 3 | E127: Washer, 15-20 lbs | I127: 7
A128: Y | B128: C/I | C128: 3 | E128: Washer, 20-25 lbs | I128: 8
A129: Y | B129: C/I | C129: 3 | E129: Washer, 25-35 lbs | I129: 9
A130: Y | B130: C/I | C130: 3 | E130: Other:
A131: Y | B131: C/I | C131: 3 | E131: Other:
A132: Y | B132: C/I | C132: 3 | E132: Other:
A133: Y | B133: C/I | C133: 3 | H133: TOTAL EQUIVALENCY FACTOR UNITS (EFUs) | J133: =IF(SUM(J110:J132)=0,"",SUM(J110:J132)) -> 
A134: Y | B134: C/I | C134: 3
A135: Y | B135: C/I | C135: 3 | E135: CALCULATE EQUIVALENT DWELLING UNITS (EDUs)
A136: Y | B136: C/I | C136: 3
A137: Y | B137: C/I | C137: 3 | E137: TOTAL EFU COUNT | F137: APPLIED EFU CREDIT | G137: ADJUSTED COUNT | H137: TOTAL EDUs | I137: EDU RATE | J137: SDC ESTIMATE
A138: Y | B138: C/I | C138: 3 | E138: =J133 ->  | G138: =IF(ISNUMBER(TOTAL_EFU_COUNT_3),IF(ISNUMBER(APPLIED_COMIND_CREDIT_3),TOTAL_EFU_COUNT_3-APPLIED_COMIND_CREDIT_3,"--"),"--") -> -- | H138: =IF(ISNUMBER(TOTAL_EFU_COUNT_3),IF(ISBLANK(APPLIED_COMIND_CREDIT_3),ROUND(TOTAL_EFU_COUNT_3/16,2),ROUND(G138/16,2)),"") ->  | I138: =IF(ISNUMBER(H138),J102,"") ->  | J138: =IF(ISNUMBER(H138),IF((H138*I138)<0,0,H138*I138),"") -> 
A139: Y | B139: C/I | C139: 3 | G139: =IF(ISNUMBER(TOTAL_EFU_COUNT_3),"÷ 16","") -> 
E141: SANITARY SEWER » CREDITS
E142: IDENTIFY CREDITS
E144: ASSOCIATED PROPERTY ADDRESS
E146: CREDIT TYPE | F146: CREDIT QUANTITY
A149: Y
A150: Y | E150: ASSOCIATED PROPERTY ADDRESS
A151: Y
A152: Y | E152: CREDIT TYPE
A153: Y
E155: APPLY CREDITS
B156: R
B157: R | E157: DEVELOPMENT TYPE | H157: CREDIT TO APPLY
B158: R | E158: =IF(ISBLANK(devType_Residential),"",devType_Residential) -> 
B159: R
B160: C/I | C160: 1
B161: C/I | C161: 1 | E161: DEVELOPMENT TYPE | H161: CREDIT TO APPLY
B162: C/I | C162: 1 | E162: =IF(ISBLANK(devType_Commercial_1),"","USE 1 – " & devType_Commercial_1) -> USE 1 – Professional Building
B163: C/I | C163: 2 | E163: =IF(ISBLANK(devType_Commercial_2),"","USE 2 – " & devType_Commercial_2) -> 
B164: C/I | C164: 3 | E164: =IF(ISBLANK(devType_Commercial_3),"","USE 3 – " & devType_Commercial_3) -> 
B165: C/I | C165: 1
H167: CREDIT BALANCE
H168: 0
E170: SANITARY SEWER » NOTES

Sheet _SDC Sewer (hidden)
A1: SDC Table: Sewer
A3: Development Type | B3: Development Category | C3: Unit | D3: Unit Long | E3: Cost per Unit | F3: Description | L3: 1.004
A4: Single Family Dwelling | B4: Residential | C4: DU | D4: Dwelling Unit | E4: =M4 -> 7130 | F4: Shall mean a residential structure which is occupied by one or more persons of which there shall be only one dwelling structure per lot and which provides complete, independent living facilities for one or more persons including, but not limited to, permanent provisions for living, sleeping, eating, cooking and sanitation. | K4: 7102 | L4: =K4*$L$3 -> 7130.408 | M4: =ROUND(L4,0) -> 7130 | N4: =ROUND((M4/K4)-1,3) -> 0.004 | O4: =SewerSDC[[#This Row],[Cost per Unit]]-M4 -> 0
A5: Multi-Family Dwelling | B5: Residential | C5: DU | D5: Dwelling Unit | E5: =M5 -> 5350 | F5: Shall mean a residential structure which is occupied by one or more persons of which there is more than one dwelling structure per lot, according to approved zoning requirements and which provides complete independent living facilities for each dwelling structure including, but not limited to, permanent provisions for living, sleeping, eating, cooking and sanitation. | K5: 5329 | L5: =K5*$L$3 -> 5350.316 | M5: =ROUND(L5,0) -> 5350 | N5: =ROUND((M5/K5)-1,3) -> 0.004 | O5: =SewerSDC[[#This Row],[Cost per Unit]]-M5 -> 0
A6: Manufactured Home | B6: Residential | C6: DU | D6: Dwelling Unit | E6: 7130 | F6: Shall mean a structure which is intended for human occupancy by one or more persons that has sleeping, eating, cooking and plumbing-sanitation facilities and which is constructed off- site in compliance with Uniform Building Code (Oregon State Structural Specialty Code) and designed to be transported to a site for installation and/or assembly of modular components to form a permanent structure. | K6: 7102 | L6: 7130.408 | M6: 7130 | N6: 0.004 | O6: =SewerSDC[[#This Row],[Cost per Unit]]-M6 -> 0
A7: Hotel/Motel @ 25 EFU | B7: Residential | C7: DU | D7: Dwelling Unit | E7: 7130 | F7: Shall mean any building which is designed or used to offer lodging for rent or hire, with or without meals for four or more people or containing six or more guest rooms. | K7: 7102 | L7: 7130.408 | M7: 7130 | N7: 0.004 | O7: =SewerSDC[[#This Row],[Cost per Unit]]-M7 -> 0
A8: Banks | B8: Commercial | C8: EDU | D8: Equivalent Dwelling Unit | E8: 7846 | F8: Shall mean those institutions that are engaged in deposit baking or closely related functions including fiduciary activities. A more complete description and examples are included in SIC, Major Group 60 – Depository Institutions. | K8: 7815 | L8: 7846.26 | M8: 7846 | N8: 0.004 | O8: =SewerSDC[[#This Row],[Cost per Unit]]-M8 -> 0
A9: Amusement/Recreation | B9: Commercial | C9: EDU | D9: Equivalent Dwelling Unit | E9: 7130 | F9: <Need Description> | K9: 7102 | L9: 7130.408 | M9: 7130 | N9: 0.004 | O9: =SewerSDC[[#This Row],[Cost per Unit]]-M9 -> 0
A10: Cash Wash/Recycle | B10: Commercial | C10: EDU | D10: Equivalent Dwelling Unit | E10: 16706 | F10: Shall include establishments primarily engaged in washing, waxing and polishing of motor vehicles or in furnishing facilities for the self-service washing of motor vehicles, whereby the wash water is recycled. A more complete description is included in SIC, Industry No. 7542 Descriptions. | K10: 16639 | L10: 16705.556 | M10: 16706 | N10: 0.004 | O10: =SewerSDC[[#This Row],[Cost per Unit]]-M10 -> 0
A11: Day Care | B11: Commercial | C11: EDU | D11: Equivalent Dwelling Unit | E11: 7846 | F11: Shall mean establishments primarily engaged in the care of infants or children or in providing pre-kindergarten education or medical care or delinquency. Correction is not a major element. A more complete description is provided in SIC, Industry No. 8351. | K11: 7815 | L11: 7846.26 | M11: 7846 | N11: 0.004 | O11: =SewerSDC[[#This Row],[Cost per Unit]]-M11 -> 0
A12: Restaurants | B12: Commercial | C12: EDU | D12: Equivalent Dwelling Unit | E12: 19260 | F12: Shall mean a structure which is constructed for the purpose of preparation and serving of food to one or more persons in return for payment by those persons. The structure must meet all applicable codes as required by the State of Oregon or the City of Wilsonville and other appurtenant ordinances or resolutions and as the structure is designed or occupied for the individual use thereof. | K12: 19183 | L12: 19259.732 | M12: 19260 | N12: 0.004 | O12: =SewerSDC[[#This Row],[Cost per Unit]]-M12 -> 0
A13: Grocery Stores | B13: Commercial | C13: EDU | D13: Equivalent Dwelling Unit | E13: 33525 | F13: Shall mean stores commonly known as supermarkets, food stores and grocery stores primarily engaged in the retail sale of all sorts of canned foods and dry goods such as: tea, coffee, spices, sugar and flour, fresh fruits and vegetables, and fresh and prepared meat, fish and poultry. A specific list of types of food stores is included in SIC, Industry No. 5411. | K13: 33391 | L13: 33524.564 | M13: 33525 | N13: 0.004 | O13: =SewerSDC[[#This Row],[Cost per Unit]]-M13 -> 0
A14: Indoor Theater | B14: Commercial | C14: EDU | D14: Equivalent Dwelling Unit | E14: 7130 | F14: Shall mean commercially operated theaters primarily engaged in the indoor exhibition of motion pictures. An example of types of motion picture theaters is included in SIC, Industry No. 7832. | K14: 7102 | L14: 7130.408 | M14: 7130 | N14: 0.004 | O14: =SewerSDC[[#This Row],[Cost per Unit]]-M14 -> 0
A15: Office | B15: Commercial | C15: EDU | D15: Equivalent Dwelling Unit | E15: 4992 | F15: Shall mean those buildings housing establishments primarily engaged in providing engineering, architectural and surveying studies, accounting, auditing, bookkeeping services, research, development and testing services, and management and public relations services. A description of these establishments is included in SIC, Major Group 87. | K15: 4972 | L15: 4991.888 | M15: 4992 | N15: 0.004 | O15: =SewerSDC[[#This Row],[Cost per Unit]]-M15 -> 0
A16: Professional Building | B16: Commercial | C16: EDU | D16: Equivalent Dwelling Unit | E16: 8561 | F16: Shall mean those buildings used to house establishments primarily engaged in furnishing medical, surgical and other health services to persons. A more complete description with industry numbers is included in SIC, Major Group 80 – Health Services. | K16: 8527 | L16: 8561.108 | M16: 8561 | N16: 0.004 | O16: =SewerSDC[[#This Row],[Cost per Unit]]-M16 -> 0
A17: Service Shop | B17: Commercial | C17: EDU | D17: Equivalent Dwelling Unit | E17: 7135 | F17: Shall mean those establishments primarily engaged in providing services generally to individuals, such as laundries, dry-cleaning plants, portrait photographic studios, and beauty and barber shops. A more complete description with specific industry numbers is included in SIC, Major Group 72, Personal Services. | K17: 7107 | L17: 7135.428 | M17: 7135 | N17: 0.004 | O17: =SewerSDC[[#This Row],[Cost per Unit]]-M17 -> 0
A18: Service Station | B18: Commercial | C18: EDU | D18: Equivalent Dwelling Unit | E18: 9869 | F18: Shall mean a gasoline service stations primarily engaged in selling gasoline and lubricating oils. A more complete description with examples in included in SIC, Industry No. 5541. | K18: 9830 | L18: 9869.32 | M18: 9869 | N18: 0.004 | O18: =SewerSDC[[#This Row],[Cost per Unit]]-M18 -> 0
A19: Shopping Center | B19: Commercial | C19: EDU | D19: Equivalent Dwelling Unit | E19: 20686 | F19: Shall mean a major retail facility which shall include establishments engaged in at least two distinct retailing operations and could include establishments from SIC, Major Group 52, Building Materials, Hardware, Garden Supply, and Mobile Home Dealers; SIC, Major Group 53 – General Merchandise Stores; SIC, Major Group 54 – Food Stores; SIC, Major Group 55 – Automotive Dealers and Gasoline Service Stations; SIC, Major Group 56 – Apparel and Accessory Stores; SIC, Major Group 57, Home Furniture Furnishings and Equipment Stores; SIC, Major Group 58 – Eating and Drinking Places; and SIC, Major Group 59 – Miscellaneous Retail. | K19: 20604 | L19: 20686.416 | M19: 20686 | N19: 0.004 | O19: =SewerSDC[[#This Row],[Cost per Unit]]-M19 -> 0
A20: Store | B20: Commercial | C20: EDU | D20: Equivalent Dwelling Unit | E20: 20686 | F20: Shall mean a retail establishment which only concludes one ongoing retail operation. This could include a store from Major Group 52 – Building Materials, Hardware, Garden Supply, and Mobile Home Dealers; and Major Group 53 – General Merchandise Stores. | K20: 20604 | L20: 20686.416 | M20: 20686 | N20: 0.004 | O20: =SewerSDC[[#This Row],[Cost per Unit]]-M20 -> 0
A21: Warehouse | B21: Commercial | C21: EDU | D21: Equivalent Dwelling Unit | E21: 18546 | F21: Shall mean those establishments engaged in the storage of farm products, furniture and other household goods or commercial goods of any nature. Specific examples are included in Major Group 42 and would include firms engaged in SIC, Industry Group No. 422 – Public Warehousing and Storage. | K21: 18472 | L21: 18545.888 | M21: 18546 | N21: 0.004 | O21: =SewerSDC[[#This Row],[Cost per Unit]]-M21 -> 0
A22: Other Commercial | B22: Commercial | C22: EDU | D22: Equivalent Dwelling Unit | E22: 7130 | F22: Shall include other establishments used for retail operations which are not included in any of the above categories. | K22: 7102 | L22: 7130.408 | M22: 7130 | N22: 0.004 | O22: =SewerSDC[[#This Row],[Cost per Unit]]-M22 -> 0
A23: Construction/Special Trade Contractors | B23: Industrial | C23: EDU | D23: Equivalent Dwelling Unit | E23: 4279 | F23: Shall mean those contractors who undertake activities of a type that are specialized either to building construction, including work on mobile homes, or to both building and non- building projects. These activities include painting (including bridge paining and traffic lane painting), electrical work (including work on bridges, power lines and power plants), carpenter work, plumbing, heating, air-conditioning, roofing and sheet metal work. A more complete description with a specific listing of industries in included in SIC, Major Group 17. | K23: 4262 | L23: 4279.048 | M23: 4279 | N23: 0.004 | O23: =SewerSDC[[#This Row],[Cost per Unit]]-M23 -> 0
A24: Apparel/Fabric Finished Products Made from Fabrics & Similar Materials | B24: Industrial | C24: EDU | D24: Equivalent Dwelling Unit | E24: 4279 | F24: Shall mean those facilities known as the cutting-up and needle trades, including establishments producing clothing and fabricated products by cutting and sewing purchased woven or knit textiles, fabric and related materials such as leather, rubberized fabrics, plastics and furs. A more complete description with examples is include in SIC, Major Group 23. | K24: 4262 | L24: 4279.048 | M24: 4279 | N24: 0.004 | O24: =SewerSDC[[#This Row],[Cost per Unit]]-M24 -> 0
A25: Printing, Publishing, and Allied Industries | B25: Industrial | C25: EDU | D25: Equivalent Dwelling Unit | E25: 14267 | F25: Shall mean those establishments engaged in printing one or more common processes such as letterpress, lithography (including off-set) gravure, or screen; and those establishments which perform services for the printing trade such as bookbinding and platemaking. A more complete description with examples is included in SIC, Major Group 27. | K25: 14210 | L25: 14266.84 | M25: 14267 | N25: 0.004 | O25: =SewerSDC[[#This Row],[Cost per Unit]]-M25 -> 0
A26: Rubber & Miscellaneous Products | B26: Industrial | C26: EDU | D26: Equivalent Dwelling Unit | E26: 9987 | F26: Shall mean those establishments manufacturing products not elsewhere classified, from plastic resins and from natural, synthetic, or reclaimed rubber, gutta percha, balata, or gutta siak. A more complete description with examples is included in SIC, Major Group 30. | K26: 9947 | L26: 9986.788 | M26: 9987 | N26: 0.004 | O26: =SewerSDC[[#This Row],[Cost per Unit]]-M26 -> 0
A27: Fabricated Metal Products, Except Machinery & Transportation Equipment | B27: Industrial | C27: EDU | D27: Equivalent Dwelling Unit | E27: 19261 | F27: Shall mean those establishments engaged in fabricating ferrous and nonferrous metal products, such as metal cans, tin ware, hand tools, cutlery, general hardware, nonelectric heating apparatus, fabricated structural metal products, metal forgings, metal stampings, ordinance (except vehicles and guided missiles) and a variety of metal and wire products not elsewhere classified. A more complete description with examples is include in SIC, Major Group 34. | K27: 19184 | L27: 19260.736 | M27: 19261 | N27: 0.004 | O27: =SewerSDC[[#This Row],[Cost per Unit]]-M27 -> 0
A28: Industrial and Commercial Machinery and Computer Equipment | B28: Industrial | C28: EDU | D28: Equivalent Dwelling Unit | E28: 41370 | F28: Shall mean those establishments engaged in manufacturing industrial and commercial machinery and equipment and computers. A more complete description with examples of specific industries is included in SIC, Major Group 35. | K28: 41205 | L28: 41369.82 | M28: 41370 | N28: 0.004 | O28: =SewerSDC[[#This Row],[Cost per Unit]]-M28 -> 0
A29: Electronic & Other Electrical Equipment Components, Except Computer Equipment | B29: Industrial | C29: EDU | D29: Equivalent Dwelling Unit | E29: 25680 | F29: Shall mean those establishments engaged in manufacturing machinery, apparatus, and supplies for the generation, storage, transmission, transformation, and utilization of electric energy. Included are the manufacturing of electric city distribution equipment, electrical industrial apparatus, household appliances, electrical lighting and wiring equipment, radio and television receiving equipment, communications equipment, electronic components and accessories and other electrical equipment and supplies. A more complete description with examples is include in SIC, Major Group 36. | K29: 25578 | L29: 25680.312 | M29: 25680 | N29: 0.004 | O29: =SewerSDC[[#This Row],[Cost per Unit]]-M29 -> 0
A30: Miscellaneous Manufacturing Industries | B30: Industrial | C30: EDU | D30: Equivalent Dwelling Unit | E30: 30670 | F30: Shall mean those establishments primarily engaged in manufacturing products not classified in any other manufacturing group. Industries in this group fall into the following categories: jewelry, silverware and plated ware; musical instruments; dolls, toys, games, and sporting and athletic goods; pens, pencils and artists’ materials; buttons, costume novelties, miscellaneous notions; brooms and brushes; caskets; and other miscellaneous manufacturing industries. A list of specific establishments is included in SIC, Major Group 39. | K30: 30548 | L30: 30670.192 | M30: 30670 | N30: 0.004 | O30: =SewerSDC[[#This Row],[Cost per Unit]]-M30 -> 0
A31: Terminal & Joint Terminal Maintenance Facilities for Motor Frieght Transportation | B31: Industrial | C31: EDU | D31: Equivalent Dwelling Unit | E31: 12839 | F31: Shall mean those establishments primarily engaged in the operation of terminal facilities used by highway-type property carrying vehicles. Also included are terminals which provide maintenance and service for motor vehicles. A more complete description is included in SIC, Industry No. 4231. | K31: 12788 | L31: 12839.152 | M31: 12839 | N31: 0.004 | O31: =SewerSDC[[#This Row],[Cost per Unit]]-M31 -> 0
A32: Transportation Services | B32: Industrial | C32: EDU | D32: Equivalent Dwelling Unit | E32: 4992 | F32: Shall mean those establishments furnishing services incidental to transportation, such as forwarding and packing services, and the arrangement of passenger and freight transportation. Specific examples are included in SIC, Major Group 47. | K32: 4972 | L32: 4991.888 | M32: 4992 | N32: 0.004 | O32: =SewerSDC[[#This Row],[Cost per Unit]]-M32 -> 0
A33: Electric/Gas/Sanitary Services | B33: Industrial | C33: EDU | D33: Equivalent Dwelling Unit | E33: 22827 | F33: Shall mean those establishments engaging in the generation, transmission, and/or distribution of electricity or gas or steam. A more complete description with examples is included in SIC, Major Group 49. | K33: 22736 | L33: 22826.944 | M33: 22827 | N33: 0.004 | O33: =SewerSDC[[#This Row],[Cost per Unit]]-M33 -> 0
A34: Wholesale Trade/Durable Goods | B34: Industrial | C34: EDU | D34: Equivalent Dwelling Unit | E34: 31382 | F34: Shall mean those establishments primarily engaged in the wholesale distribution of durable goods. Specific examples are included in SIC, Major Group 50. | K34: 31257 | L34: 31382.028 | M34: 31382 | N34: 0.004 | O34: =SewerSDC[[#This Row],[Cost per Unit]]-M34 -> 0
A35: Business Services | B35: Industrial | C35: EDU | D35: Equivalent Dwelling Unit | E35: 10700 | F35: Shall mean those establishments primarily engaged in rendering services, not elsewhere classified, to business establishments on a contract or fee basis, such as advertising, creditreporting, collection of claims, mailing, reproduction, stenographic, news syndicates,computer programming, photocopying, duplicating, data processing, services to buildings, and help supply services. A more complete description with examples of firms engaged in business services is included in SIC, Major Group 73. | K35: 10657 | L35: 10699.628 | M35: 10700 | N35: 0.004 | O35: =SewerSDC[[#This Row],[Cost per Unit]]-M35 -> 0
A36: Other Industrial Facilities | B36: Industrial | C36: EDU | D36: Equivalent Dwelling Unit | E36: 7130 | F36: Shall include those industrial facilities which are not included in any of the listed industries or major groups. | K36: 7102 | L36: 7130.408 | M36: 7130 | N36: 0.004 | O36: =SewerSDC[[#This Row],[Cost per Unit]]-M36 -> 0
J37: Sewer | K37: 102 | L37: 102.408 | M37: 102 | N37: 0 | O37: SFD
A38: Sewer Credit Type | J38: Permit | K38: 332 | L38: 333.328 | M38: 333 | N38: 0.003 | O38: MFD
J39: Fee | K39: 736 | L39: 738.944 | M39: 739 | N39: 0.004 | O39: Com/Ind
A40: ID | B40: Credit Type
A41: 0 | B41: Dwelling Unit
A42: 1 | B42: EFU

Sheet STREETS
E2: CHARGES & CREDITS » TRANSPORTATION | J2: City of Wilsonville, OR
J3: Community Development
A6: HIDE | B6: TYPE | C6: USE | E6: SUBJECT PROPERTY: | F6: =IF(ISBLANK(START!SITEADDR),"",IF(ISBLANK(START!SUITE),START!SITEADDR,START!SITEADDR & ", " & START!SUITE)) -> 
E9: TRANSPORTATION » CHARGES
E10: In the event that the proposed development type does not match one of the City-adopted categories, the City may allow the applicant to submit a traffic impact analysis (TIA) for City review/approval by an Oregon-registered professional engineer. The TIA must identify net new adjusted average daily trips created by the proposed development so person trips can be calculated.
B12: R | E12: RESIDENTIAL DEVELOPMENT
A13: Y | B13: R | E13: TRAFFIC STUDY INFORMATION
A14: Y | B14: R
A15: Y | B15: R | E15: COMPANY NAME, ENGINEER OF RECORD | I15: DATE
A16: Y | B16: R
A17: Y | B17: R
A18: Y | B18: R
A19: Y | B19: R | E19: ITE CODE | F19: ITE LAND USE CATEGORY
A20: Y | B20: R
A21: Y | B21: R
A22: Y | B22: R | E22: ADJUSTED AVERAGE DAILY TRIP (AADT) & PERSON TRIP CALCULATION
A23: Y | B23: R
A24: Y | B24: R | E24: AVERAGE DAILY TRIPS | F24: % PASS-BY TRIPS | G24: ADJUSTED AVERAGE DAILY TRIPS
A25: Y | B25: R | G25: =IF(ISBLANK(E25),"",IF(ISNUMBER(F25),E25*(1-F25),E25)) -> 
A26: Y | B26: R | G26: ×
A27: Y | B27: R
A28: Y | B28: R | G28: CONVERSION FACTOR
A29: Y | B29: R | G29: ='_SDC Transportation'!$A$2 -> 1.607611371
A30: Y | B30: R | G30: =
A31: Y | B31: R
A32: Y | B32: R | G32: PERSON TRIPS | H32: APPLIED CREDIT | I32: ADJUSTED PERSON TRIPS
A33: Y | B33: R | G33: =IF(ISNUMBER(G25),G25*G29,"") ->  | I33: =IF(ISBLANK(PERSON_TRIPS_RES_CUSTOM),"",IF(ISNUMBER(APPLIED_RESIDENTIAL_CREDIT_CUSTOM),PERSON_TRIPS_RES_CUSTOM-APPLIED_RESIDENTIAL_CREDIT_CUSTOM,PERSON_TRIPS_RES_CUSTOM)) -> 
A34: Y | B34: R
A35: Y | B35: R | E35: SDC ESTIMATE AND ITS COMPONENTS
A36: Y | B36: R
A37: Y | B37: R | E37: PER PERSON TRIP | F37: REIMBURSEMENT | G37: IMPROVEMENT | H37: COMPLIANCE | I37: SDC ESTIMATE
A38: Y | B38: R | E38: ='_SDC Transportation'!$B$82 -> 1140.544 | F38: =IF(ISNUMBER(I33),I33*'_SDC Transportation'!$B$79,"") ->  | G38: =IF(ISNUMBER(I33),I33*'_SDC Transportation'!$B$80,"") ->  | H38: =IF(ISNUMBER(I33),I33*'_SDC Transportation'!$B$81,"") ->  | I38: =IF(ISNUMBER(I33),I33*'_SDC Transportation'!$B$82,"") -> 
B39: R | E39: ITE CODES AND LAND USE CATEGORIES
B40: R
B41: R | E41: ITE CODE – LAND USE CATEGORY | H41: UNIT | I41: RATE
B42: R | E42: 210 – Single-Family Dwelling | H42: =IF(ISBLANK(E42),"",INDEX('_SDC Transportation'!$D$12:$D$18,MATCH(E42,'_SDC Transportation'!$C$12:$C$18,0))) -> DU | I42: =IF(ISBLANK(E42),"",INDEX('_SDC Transportation'!$P$12:$P$18,MATCH(E42,'_SDC Transportation'!$C$12:$C$18,0))) -> 17321.82299
B43: R | E43: ITE CODE DESCRIPTION
B44: R
B45: R | E45: =IF(ISBLANK(E42),"",INDEX('_SDC Transportation'!Q12:Q18,MATCH(E42,'_SDC Transportation'!C12:C18,0))) -> Single-family detached housing includes all single-family detached homes on individual lots. A typical site surveyed is a suburban subdivision.
B46: R | E46: =IF(ISBLANK(E42),"",IF(OR(H42="Bed",H42="Room",H42="Acre"),"",INDEX('_SDC Transportation'!$G$4:$G$74,MATCH(E42,'_SDC Transportation'!$C$4:$C$74,0)))) -> DU = Dwelling Unit
B48: R | E48: ADJUSTED AVERAGE DAILY TRIP (AADT) & PERSON TRIP CALCULATION
B49: R
B50: R | E50: UNIT COUNT | F50: AVERAGE DAILY TRIPS | G50: ADJUSTED AVERAGE DAILY TRIPS
B51: R | F51: =IF(ISBLANK(E51),"",ROUND((E51/VLOOKUP(E42,TSDC[[ITE-Land Use]:[Unit Scale]],3,FALSE))*VLOOKUP(E42,TSDC[[ITE-Land Use]:[ITE Average Daily Trips]],7,FALSE),2)) ->  | G51: =IF(ISBLANK(E51),"",ROUND((E51/VLOOKUP(E42,TSDC[[ITE-Land Use]:[Unit Scale]],3,FALSE))*VLOOKUP(E42,TSDC[[ITE-Land Use]:[ITE Adjusted Average Daily Trips]],9,FALSE),2)) -> 
B52: R | G52: ×
B53: R
B54: R | G54: CONVERSION FACTOR
B55: R | G55: ='_SDC Transportation'!$A$2 -> 1.607611371
B56: R | G56: =
B57: R
B58: R | G58: PERSON TRIPS | H58: APPLIED CREDIT | I58: ADJUSTED PERSON TRIPS
B59: R | G59: =IF(ISBLANK(E51),"",ROUND((E51/VLOOKUP(E42,TSDC[[ITE-Land Use]:[Unit Scale]],3,FALSE))*VLOOKUP(E42,TSDC[[ITE-Land Use]:[Number of Person Trips]],10,FALSE),2)) ->  | I59: =IF(ISBLANK(APPLIED_RESIDENTIAL_CREDIT),PERSON_TRIPS_RES,PERSON_TRIPS_RES-APPLIED_RESIDENTIAL_CREDIT) -> 
B60: R
B61: R | E61: SDC ESTIMATE AND ITS COMPONENTS
B62: R
B63: R | E63: REIMBURSEMENT | F63: IMPROVEMENT | G63: COMPLIANCE | H63: SDC ESTIMATE | I63: PER PERSON TRIP
B64: R | E64: =IF(ISNUMBER(PERSON_TRIPS_RES),IF(ISBLANK(APPLIED_RESIDENTIAL_CREDIT),VLOOKUP(E42,TSDC[[ITE-Land Use]:[Total SDC per Unit]],11,FALSE)*(PERSON_TRIPS_RES/VLOOKUP(E42,TSDC[[ITE-Land Use]:[Total SDC per Unit]],10,FALSE)),VLOOKUP(E42,TSDC[[ITE-Land Use]:[Total SDC per Unit]],11,FALSE)*(I59/VLOOKUP(E42,TSDC[[ITE-Land Use]:[Total SDC per Unit]],10,FALSE))),"") ->  | F64: =IF(ISNUMBER(PERSON_TRIPS_RES),IF(ISBLANK(APPLIED_RESIDENTIAL_CREDIT),VLOOKUP(E42,TSDC[[ITE-Land Use]:[Total SDC per Unit]],12,FALSE)*(PERSON_TRIPS_RES/VLOOKUP(E42,TSDC[[ITE-Land Use]:[Total SDC per Unit]],10,FALSE)),VLOOKUP(E42,TSDC[[ITE-Land Use]:[Total SDC per Unit]],12,FALSE)*(I59/VLOOKUP(E42,TSDC[[ITE-Land Use]:[Total SDC per Unit]],10,FALSE))),"") ->  | G64: =IF(ISNUMBER(PERSON_TRIPS_RES),IF(ISBLANK(APPLIED_RESIDENTIAL_CREDIT),VLOOKUP(E42,TSDC[[ITE-Land Use]:[Total SDC per Unit]],13,FALSE)*(PERSON_TRIPS_RES/VLOOKUP(E42,TSDC[[ITE-Land Use]:[Total SDC per Unit]],10,FALSE)),VLOOKUP(E42,TSDC[[ITE-Land Use]:[Total SDC per Unit]],13,FALSE)*(I59/VLOOKUP(E42,TSDC[[ITE-Land Use]:[Total SDC per Unit]],10,FALSE))),"") ->  | H64: =IF(ISNUMBER(PERSON_TRIPS_RES),IF(ISBLANK(APPLIED_RESIDENTIAL_CREDIT),VLOOKUP(E42,TSDC[[ITE-Land Use]:[Total SDC per Unit]],14,FALSE)*(PERSON_TRIPS_RES/VLOOKUP(E42,TSDC[[ITE-Land Use]:[Total SDC per Unit]],10,FALSE)),VLOOKUP(E42,TSDC[[ITE-Land Use]:[Total SDC per Unit]],14,FALSE)*(I59/VLOOKUP(E42,TSDC[[ITE-Land Use]:[Total SDC per Unit]],10,FALSE))),"") ->  | I64: =IF(ISNUMBER(H64),ROUND(H64/G59,0),"") -> 
A65: Y | B65: R | E65: 1 TDT Credit must be applied for and approved by Washington County prior to use. Enter TDT Credit as a dollar value.
A66: Y | B66: R | E66: WASHINGTON COUNTY TDT ESTIMATE
A67: Y | B67: R | E67: Development residing within Washington County must pay the greater of Wilsonville Transporatation SDC charges or Washington County TDT charges. Use the table below to estimate Washington County TDT charges. Refer to Washington County documents for more guidance on determining TDT fees.
A68: Y | B68: R
A69: Y | B69: R | E69: ITE CODE – LAND USE CATEGORY | H69: UNIT | I69: RATE
A70: Y | B70: R | E70: 220 - Apartment | H70: =IF(ISBLANK($E$70),"",INDEX('_SDC Transportation'!$D$95:$D$101,MATCH($E$70,'_SDC Transportation'!$C$95:$C$101,0))) -> Dwelling Unit | I70: =IF(ISBLANK($E$70),"",INDEX('_SDC Transportation'!$E$95:$E$101,MATCH($E$70,'_SDC Transportation'!$C$95:$C$101,0))) -> 8135
A71: Y | B71: R | E71: UNIT COUNT | F71: TDT ESTIMATE | G71: TDT CREDIT 2 | H71: ADJUSTED TDT ESTIMATE
A72: Y | B72: R | F72: =IF(ISNUMBER(E72),I70*E72,"") ->  | H72: =IF(ISNUMBER(F72),F72-G72,"") -> 
A73: Y | B73: R | E73: 2 TDT Credit must be applied for and approved by Washington County prior to use. Enter TDT Credit as a dollar value.
A74: Y | B74: R
A75: Y | B75: R
A76: Y | B76: R | H76: SDC ESTIMATE
A77: Y | B77: R | H77: =IFERROR(MAX(I38,H64,H72),"") -> 0
B78: C/I | C78: 1 | E78: COMMERCIAL / INDUSTRIAL DEVELOPMENT TYPE – USE 1
A79: Y | B79: C/I | C79: 1 | E79: TRAFFIC STUDY INFORMATION
A80: Y | B80: C/I | C80: 1
A81: Y | B81: C/I | C81: 1 | E81: ENGINEER NAME, COMPANY | I81: DATE
A82: Y | B82: C/I | C82: 1
A83: Y | B83: C/I | C83: 1
A84: Y | B84: C/I | C84: 1
A85: Y | B85: C/I | C85: 1 | E85: ITE CODE | F85: ITE LAND USE CATEGORY
A86: Y | B86: C/I | C86: 1
A87: Y | B87: C/I | C87: 1
A88: Y | B88: C/I | C88: 1 | E88: ADJUSTED AVERAGE DAILY TRIP (AADT) & PERSON TRIP CALCULATION
A89: Y | B89: C/I | C89: 1
A90: Y | B90: C/I | C90: 1 | E90: AVERAGE DAILY TRIPS | F90: % PASS-BY TRIPS | G90: ADJUSTED AVERAGE DAILY TRIPS
A91: Y | B91: C/I | C91: 1 | G91: =IF(ISBLANK(E91),"",IF(ISNUMBER(F91),E91*(1-F91),E91)) -> 
A92: Y | B92: C/I | C92: 1 | G92: ×
A93: Y | B93: C/I | C93: 1
A94: Y | B94: C/I | C94: 1 | G94: CONVERSION FACTOR
A95: Y | B95: C/I | C95: 1 | G95: ='_SDC Transportation'!$A$2 -> 1.607611371
A96: Y | B96: C/I | C96: 1 | G96: =
A97: Y | B97: C/I | C97: 1
A98: Y | B98: C/I | C98: 1 | G98: PERSON TRIPS | H98: APPLIED CREDIT | I98: ADJUSTED PERSON TRIPS
A99: Y | B99: C/I | C99: 1 | G99: =IF(ISNUMBER(G91),G91*G95,"") ->  | I99: =IF(ISBLANK(PERSON_TRIP_COUNT_1_CUSTOM),"",IF(ISNUMBER(APPLIED_COMIND_CREDIT_1_CUSTOM),PERSON_TRIP_COUNT_1_CUSTOM-APPLIED_COMIND_CREDIT_1_CUSTOM,PERSON_TRIP_COUNT_1_CUSTOM)) -> 
A100: Y | B100: C/I | C100: 1
A101: Y | B101: C/I | C101: 1 | E101: SDC ESTIMATE AND ITS COMPONENTS
A102: Y | B102: C/I | C102: 1
A103: Y | B103: C/I | C103: 1 | E103: PER PERSON TRIP | F103: REIMBURSEMENT | G103: IMPROVEMENT | H103: COMPLIANCE | I103: SDC ESTIMATE
A104: Y | B104: C/I | C104: 1 | E104: ='_SDC Transportation'!$B$82 -> 1140.544 | F104: =IF(ISNUMBER(I99),I99*'_SDC Transportation'!$B$79,"") ->  | G104: =IF(ISNUMBER(I99),I99*'_SDC Transportation'!$B$80,"") ->  | H104: =IF(ISNUMBER(I99),I99*'_SDC Transportation'!$B$81,"") ->  | I104: =IF(ISNUMBER(I99),I99*'_SDC Transportation'!$B$82,"") -> 
B105: C/I | C105: 1 | E105: ITE CODES AND LAND USE CATEGORIES
B106: C/I | C106: 1
B107: C/I | C107: 1 | E107: ITE CODE – LAND USE CATEGORY | H107: UNIT | I107: RATE
B108: C/I | C108: 1 | H108: =IF(ISBLANK(E108),"",INDEX('_SDC Transportation'!$D$4:$D$74,MATCH(E108,'_SDC Transportation'!$C$4:$C$74,0))) ->  | I108: =IF(ISBLANK(E108),"",INDEX('_SDC Transportation'!$P$4:$P$74,MATCH(E108,'_SDC Transportation'!$C$4:$C$74,0))) -> 
B109: C/I | C109: 1 | E109: ITE CODE DESCRIPTION
B110: C/I | C110: 1
B111: C/I | C111: 1 | E111: =IF(ISBLANK(E108),"",INDEX('_SDC Transportation'!$Q$4:$Q$74,MATCH(E108,'_SDC Transportation'!$C$4:$C$74,0))) -> 
B112: C/I | C112: 1 | E112: =IF(ISBLANK(E108),"",IF(OR(COM_UNIT_1="Bed",COM_UNIT_1="Room", COM_UNIT_1="Acre"),"",INDEX('_SDC Transportation'!$G$4:$G$74,MATCH(E108,'_SDC Transportation'!$C$4:$C$74,0)))) -> 
B114: C/I | C114: 1 | E114: ADJUSTED AVERAGE DAILY TRIP (AADT) & PERSON TRIP CALCULATION
B115: C/I | C115: 1
B116: C/I | C116: 1 | E116: UNIT COUNT | F116: AVERAGE DAILY TRIPS | G116: ADJUSTED AVERAGE DAILY TRIPS
B117: C/I | C117: 1 | F117: =IF(ISBLANK(devType_Commercial_1),"",IF(ISBLANK(E117),"",ROUND((E117)*VLOOKUP(E108,TSDC[[ITE-Land Use]:[ITE Average Daily Trips]],7,FALSE),2))) ->  | G117: =IF(ISBLANK(devType_Commercial_1),"",IF(ISBLANK(E117),"",ROUND((E117)*VLOOKUP(E108,TSDC[[ITE-Land Use]:[ITE Adjusted Average Daily Trips]],9,FALSE),2))) -> 
B118: C/I | C118: 1 | G118: ×
B119: C/I | C119: 1
B120: C/I | C120: 1 | G120: CONVERSION FACTOR
B121: C/I | C121: 1 | G121: ='_SDC Transportation'!$A$2 -> 1.607611371
B122: C/I | C122: 1 | G122: =
B123: C/I | C123: 1
B124: C/I | C124: 1 | G124: PERSON TRIPS | H124: APPLIED CREDIT | I124: ADJUSTED PERSON TRIPS
B125: C/I | C125: 1 | G125: =IF(ISBLANK(devType_Commercial_1),"",IF(ISBLANK(E117),"",ROUND((E117)*VLOOKUP(E108,TSDC[[ITE-Land Use]:[Number of Person Trips]],10,FALSE),2))) ->  | I125: =IF(ISNUMBER(PERSON_TRIP_COUNT_1),IF(ISNUMBER(APPLIED_COMIND_CREDIT_1),PERSON_TRIP_COUNT_1-APPLIED_COMIND_CREDIT_1,PERSON_TRIP_COUNT_1),"") -> 
B126: C/I | C126: 1
B127: C/I | C127: 1 | E127: SDC ESTIMATE AND ITS COMPONENTS
B128: C/I | C128: 1
B129: C/I | C129: 1 | E129: REIMBURSEMENT | F129: IMPROVEMENT | G129: COMPLIANCE | H129: SDC ESTIMATE | I129: PER PERSON TRIP
B130: C/I | C130: 1 | E130: =IF(ISNUMBER(PERSON_TRIP_COUNT_1),IF(ISBLANK(APPLIED_COMIND_CREDIT_1),VLOOKUP(E108,TSDC[[ITE-Land Use]:[Total SDC per Unit]],11,FALSE)*(PERSON_TRIP_COUNT_1/VLOOKUP(E108,TSDC[[ITE-Land Use]:[Total SDC per Unit]],10,FALSE)),VLOOKUP(E108,TSDC[[ITE-Land Use]:[Total SDC per Unit]],11,FALSE)*(I125/VLOOKUP(E108,TSDC[[ITE-Land Use]:[Total SDC per Unit]],10,FALSE))),"") ->  | F130: =IF(ISNUMBER(PERSON_TRIP_COUNT_1),IF(ISBLANK(APPLIED_COMIND_CREDIT_1),VLOOKUP(E108,TSDC[[ITE-Land Use]:[Total SDC per Unit]],12,FALSE)*(PERSON_TRIP_COUNT_1/VLOOKUP(E108,TSDC[[ITE-Land Use]:[Total SDC per Unit]],10,FALSE)),VLOOKUP(E108,TSDC[[ITE-Land Use]:[Total SDC per Unit]],12,FALSE)*(I125/VLOOKUP(E108,TSDC[[ITE-Land Use]:[Total SDC per Unit]],10,FALSE))),"") ->  | G130: =IF(ISNUMBER(PERSON_TRIP_COUNT_1),IF(ISBLANK(APPLIED_COMIND_CREDIT_1),VLOOKUP(E108,TSDC[[ITE-Land Use]:[Total SDC per Unit]],13,FALSE)*(PERSON_TRIP_COUNT_1/VLOOKUP(E108,TSDC[[ITE-Land Use]:[Total SDC per Unit]],10,FALSE)),VLOOKUP(E108,TSDC[[ITE-Land Use]:[Total SDC per Unit]],13,FALSE)*(I125/VLOOKUP(E108,TSDC[[ITE-Land Use]:[Total SDC per Unit]],10,FALSE))),"") ->  | H130: =IF(ISNUMBER(PERSON_TRIP_COUNT_1),IF(ISBLANK(APPLIED_COMIND_CREDIT_1),VLOOKUP(E108,TSDC[[ITE-Land Use]:[Total SDC per Unit]],14,FALSE)*(PERSON_TRIP_COUNT_1/VLOOKUP(E108,TSDC[[ITE-Land Use]:[Total SDC per Unit]],10,FALSE)),VLOOKUP(E108,TSDC[[ITE-Land Use]:[Total SDC per Unit]],14,FALSE)*(I125/VLOOKUP(E108,TSDC[[ITE-Land Use]:[Total SDC per Unit]],10,FALSE))),"") ->  | I130: =IF(ISNUMBER(H130),IFERROR(ROUND(H130/I125,0),0),"") -> 
A131: Y | B131: C/I | C131: 1
A132: Y | B132: C/I | C132: 1 | E132: WASHINGTON COUNTY TDT ESTIMATE
A133: Y | B133: C/I | C133: 1 | E133: Development residing within Washington County must pay the greater of Wilsonville Transporatation SDC charges or Washington County TDT charges. Use the table below to estimate Washington County TDT charges. Refer to Washington County documents for more guidance on determining TDT fees.
A134: Y | B134: C/I | C134: 1
A135: Y | B135: C/I | C135: 1 | E135: ITE CODE – LAND USE CATEGORY | H135: UNIT | I135: RATE
A136: Y | B136: C/I | C136: 1 | E136: 30 - Truck Terminal | H136: =IF(ISBLANK(E136),"",INDEX('_SDC Transportation'!$D$88:$D$160,MATCH(E136,'_SDC Transportation'!$C$88:$C$160,0))) -> TSFGFA | I136: =IF(ISBLANK(E136),"",INDEX('_SDC Transportation'!$E$88:$E$160,MATCH(E136,'_SDC Transportation'!$C$88:$C$160,0))) -> 6634
A137: Y | B137: C/I | C137: 1 | E137: UNIT COUNT | F137: TDT ESTIMATE | G137: TDT CREDIT 1 | H137: ADJUSTED TDT ESTIMATE
A138: Y | B138: C/I | C138: 1 | F138: =IF(ISNUMBER(E138),I136*E138,"") ->  | H138: =IF(ISNUMBER(F138),F138-G138,"") -> 
A139: Y | B139: C/I | C139: 1 | E139: 1 TDT Credit must be applied for and approved by Washington County prior to use. Enter TDT Credit as a dollar value.
A140: Y | B140: C/I | C140: 1
A141: Y | B141: C/I | C141: 1
A142: Y | B142: C/I | C142: 1 | H142: SDC ESTIMATE
A143: Y | B143: C/I | C143: 1 | H143: =IFERROR(MAX(I104,H130,H138),"") -> 0
A144: Y | B144: C/I | C144: 1
B145: C/I | C145: 2
B146: C/I | C146: 2 | E146: COMMERCIAL / INDUSTRIAL DEVELOPMENT TYPE – USE 2
B147: C/I | C147: 2 | E147: ITE CODES AND LAND USE CATEGORIES
B148: C/I | C148: 2
B149: C/I | C149: 2 | E149: ITE CODE – LAND USE CATEGORY | H149: UNIT | I149: RATE
B150: C/I | C150: 2 | H150: =IF(ISBLANK(E150),"",INDEX('_SDC Transportation'!$D$4:$D$74,MATCH(E150,'_SDC Transportation'!$C$4:$C$74,0))) ->  | I150: =IF(ISBLANK(E150),"",INDEX('_SDC Transportation'!$P$4:$P$74,MATCH(E150,'_SDC Transportation'!$C$4:$C$74,0))) -> 
B151: C/I | C151: 2 | E151: ITE CODE DESCRIPTION
B152: C/I | C152: 2
B153: C/I | C153: 2 | E153: =IF(ISBLANK(E150),"",INDEX('_SDC Transportation'!$Q$4:$Q$74,MATCH(E150,'_SDC Transportation'!$C$4:$C$74,0))) -> 
B154: C/I | C154: 2 | E154: =IF(ISBLANK(E150),"",IF(OR(COM_UNIT_2="Bed",COM_UNIT_2="Room", COM_UNIT_2="Acre"),"",INDEX('_SDC Transportation'!$G$4:$G$74,MATCH(E150,'_SDC Transportation'!$C$4:$C$74,0)))) -> 
B155: C/I | C155: 2 | E155: ADJUSTED AVERAGE DAILY TRIP (AADT) & PERSON TRIP CALCULATION
B156: C/I | C156: 2
B157: C/I | C157: 2 | E157: UNIT COUNT | F157: AVERAGE DAILY TRIPS | G157: ADJUSTED AVERAGE DAILY TRIPS
B158: C/I | C158: 2 | F158: =IF(ISBLANK(devType_Commercial_2),"",IF(ISBLANK(E158),"",ROUND((E158)*VLOOKUP(E150,TSDC[[ITE-Land Use]:[ITE Average Daily Trips]],7,FALSE),2))) ->  | G158: =IF(ISBLANK(devType_Commercial_2),"",IF(ISBLANK(E158),"",ROUND((E158)*VLOOKUP(E150,TSDC[[ITE-Land Use]:[ITE Adjusted Average Daily Trips]],9,FALSE),2))) -> 
B159: C/I | C159: 2 | G159: ×
B160: C/I | C160: 2
B161: C/I | C161: 2 | G161: CONVERSION FACTOR
B162: C/I | C162: 2 | G162: ='_SDC Transportation'!$A$2 -> 1.607611371
B163: C/I | C163: 2 | G163: =
B164: C/I | C164: 2
B165: C/I | C165: 2 | G165: PERSON TRIPS | H165: APPLIED CREDIT | I165: ADJUSTED PERSON TRIPS
B166: C/I | C166: 2 | G166: =IF(ISBLANK(devType_Commercial_2),"",IF(ISBLANK(E158),"",ROUND((E158)*VLOOKUP(E150,TSDC[[ITE-Land Use]:[Number of Person Trips]],10,FALSE),2))) ->  | I166: =IF(ISNUMBER(PERSON_TRIP_COUNT_2),IF(ISNUMBER(APPLIED_COMIND_CREDIT_2),PERSON_TRIP_COUNT_2-APPLIED_COMIND_CREDIT_2,PERSON_TRIP_COUNT_2),"") -> 
B167: C/I | C167: 2
B168: C/I | C168: 2 | E168: SDC ESTIMATE AND ITS COMPONENTS
B169: C/I | C169: 2
B170: C/I | C170: 2 | E170: REIMBURSEMENT | F170: IMPROVEMENT | G170: COMPLIANCE | H170: SDC ESTIMATE | I170: PER PERSON TRIP
B171: C/I | C171: 2 | E171: =IF(ISNUMBER(PERSON_TRIP_COUNT_2),IF(ISBLANK(APPLIED_COMIND_CREDIT_2),VLOOKUP(E150,TSDC[[ITE-Land Use]:[Total SDC per Unit]],11,FALSE)*(PERSON_TRIP_COUNT_2/VLOOKUP(E150,TSDC[[ITE-Land Use]:[Total SDC per Unit]],10,FALSE)),VLOOKUP(E150,TSDC[[ITE-Land Use]:[Total SDC per Unit]],11,FALSE)*(I166/VLOOKUP(E150,TSDC[[ITE-Land Use]:[Total SDC per Unit]],10,FALSE))),"") ->  | F171: =IF(ISNUMBER(PERSON_TRIP_COUNT_2),IF(ISBLANK(APPLIED_COMIND_CREDIT_2),VLOOKUP(E150,TSDC[[ITE-Land Use]:[Total SDC per Unit]],12,FALSE)*(PERSON_TRIP_COUNT_2/VLOOKUP(E150,TSDC[[ITE-Land Use]:[Total SDC per Unit]],10,FALSE)),VLOOKUP(E150,TSDC[[ITE-Land Use]:[Total SDC per Unit]],12,FALSE)*(I166/VLOOKUP(E150,TSDC[[ITE-Land Use]:[Total SDC per Unit]],10,FALSE))),"") ->  | G171: =IF(ISNUMBER(PERSON_TRIP_COUNT_2),IF(ISBLANK(APPLIED_COMIND_CREDIT_2),VLOOKUP(E150,TSDC[[ITE-Land Use]:[Total SDC per Unit]],13,FALSE)*(PERSON_TRIP_COUNT_2/VLOOKUP(E150,TSDC[[ITE-Land Use]:[Total SDC per Unit]],10,FALSE)),VLOOKUP(E150,TSDC[[ITE-Land Use]:[Total SDC per Unit]],13,FALSE)*(I166/VLOOKUP(E150,TSDC[[ITE-Land Use]:[Total SDC per Unit]],10,FALSE))),"") ->  | H171: =IF(ISNUMBER(PERSON_TRIP_COUNT_2),IF(ISBLANK(APPLIED_COMIND_CREDIT_2),VLOOKUP(E150,TSDC[[ITE-Land Use]:[Total SDC per Unit]],14,FALSE)*(PERSON_TRIP_COUNT_2/VLOOKUP(E150,TSDC[[ITE-Land Use]:[Total SDC per Unit]],10,FALSE)),VLOOKUP(E150,TSDC[[ITE-Land Use]:[Total SDC per Unit]],14,FALSE)*(I166/VLOOKUP(E150,TSDC[[ITE-Land Use]:[Total SDC per Unit]],10,FALSE))),"") ->  | I171: =IF(ISNUMBER(H171),IFERROR(ROUND(H171/I166,0),0),"") -> 
A172: Y | B172: C/I | C172: 2
A173: Y | B173: C/I | C173: 2 | E173: WASHINGTON COUNTY TDT ESTIMATE
A174: Y | B174: C/I | C174: 2 | E174: Development residing within Washington County must pay the greater of Wilsonville Transporatation SDC charges or Washington County TDT charges. Use the table below to estimate Washington County TDT charges. Refer to Washington County documents for more guidance on determining TDT fees.
A175: Y | B175: C/I | C175: 2
A176: Y | B176: C/I | C176: 2 | E176: ITE CODE – LAND USE CATEGORY | H176: UNIT | I176: RATE
A177: Y | B177: C/I | C177: 2 | H177: =IF(ISBLANK(E177),"",INDEX('_SDC Transportation'!$D$88:$D$160,MATCH(E177,'_SDC Transportation'!$C$88:$C$160,0))) ->  | I177: =IF(ISBLANK(E177),"",INDEX('_SDC Transportation'!$E$88:$E$160,MATCH(E177,'_SDC Transportation'!$C$88:$C$160,0))) -> 
A178: Y | B178: C/I | C178: 2 | E178: UNIT COUNT | F178: TDT ESTIMATE | G178: TDT CREDIT 1 | H178: ADJUSTED TDT ESTIMATE
A179: Y | B179: C/I | C179: 2 | F179: =IF(ISNUMBER(E179),I177*E179,"") ->  | H179: =IF(ISNUMBER(F179),F179-G179,"") -> 
A180: Y | B180: C/I | C180: 2 | E180: 1 TDT Credit must be applied for and approved by Washington County prior to use. Enter TDT Credit as a dollar value.
A181: Y | B181: C/I | C181: 2
A182: Y | B182: C/I | C182: 2
A183: Y | B183: C/I | C183: 2 | H183: SDC ESTIMATE
A184: Y | B184: C/I | C184: 2 | H184: =IFERROR(MAX(H171,H179),"") -> 0
B185: C/I | C185: 3
B186: C/I | C186: 3 | E186: COMMERCIAL / INDUSTRIAL DEVELOPMENT TYPE – USE 3
B187: C/I | C187: 3 | E187: ITE CODES AND LAND USE CATEGORIES
B188: C/I | C188: 3
B189: C/I | C189: 3 | E189: ITE CODE – LAND USE CATEGORY | H189: UNIT | I189: RATE
B190: C/I | C190: 3 | H190: =IF(ISBLANK(E190),"",INDEX('_SDC Transportation'!$D$4:$D$74,MATCH(E190,'_SDC Transportation'!$C$4:$C$74,0))) ->  | I190: =IF(ISBLANK(E190),"",INDEX('_SDC Transportation'!$P$4:$P$74,MATCH(E190,'_SDC Transportation'!$C$4:$C$74,0))) -> 
B191: C/I | C191: 3 | E191: ITE CODE DESCRIPTION
B192: C/I | C192: 3
B193: C/I | C193: 3 | E193: =IF(ISBLANK(E190),"",INDEX('_SDC Transportation'!$Q$4:$Q$74,MATCH(E190,'_SDC Transportation'!$C$4:$C$74,0))) -> 
B194: C/I | C194: 3 | E194: =IF(ISBLANK(E190),"",IF(OR(COM_UNIT_3="Bed",COM_UNIT_3="Room", COM_UNIT_3="Acre"),"",INDEX('_SDC Transportation'!$G$4:$G$74,MATCH(E190,'_SDC Transportation'!$C$4:$C$74,0)))) -> 
B195: C/I | C195: 3 | E195: ADJUSTED AVERAGE DAILY TRIP (AADT) & PERSON TRIP CALCULATION
B196: C/I | C196: 3
B197: C/I | C197: 3 | E197: UNIT COUNT | F197: AVERAGE DAILY TRIPS | G197: ADJUSTED AVERAGE DAILY TRIPS
B198: C/I | C198: 3 | F198: =IF(ISBLANK(devType_Commercial_3),"",IF(ISBLANK(E198),"",ROUND((E198)*VLOOKUP(E190,TSDC[[ITE-Land Use]:[ITE Average Daily Trips]],7,FALSE),2))) ->  | G198: =IF(ISBLANK(devType_Commercial_3),"",IF(ISBLANK(E198),"",ROUND((E198)*VLOOKUP(E190,TSDC[[ITE-Land Use]:[ITE Adjusted Average Daily Trips]],9,FALSE),2))) -> 
B199: C/I | C199: 3 | G199: ×
B200: C/I | C200: 3
B201: C/I | C201: 3 | G201: CONVERSION FACTOR
B202: C/I | C202: 3 | G202: ='_SDC Transportation'!$A$2 -> 1.607611371
B203: C/I | C203: 3 | G203: =
B204: C/I | C204: 3
B205: C/I | C205: 3 | G205: PERSON TRIPS | H205: APPLIED CREDIT | I205: ADJUSTED PERSON TRIPS
B206: C/I | C206: 3 | G206: =IF(ISBLANK(devType_Commercial_3),"",IF(ISBLANK(E198),"",ROUND((E198)*VLOOKUP(E190,TSDC[[ITE-Land Use]:[Number of Person Trips]],10,FALSE),2))) ->  | I206: =IF(ISNUMBER(PERSON_TRIP_COUNT_3),IF(ISNUMBER(APPLIED_COMIND_CREDIT_3),PERSON_TRIP_COUNT_3-APPLIED_COMIND_CREDIT_3,PERSON_TRIP_COUNT_3),"") -> 
B207: C/I | C207: 3
B208: C/I | C208: 3 | E208: SDC ESTIMATE AND ITS COMPONENTS
... 37 more rows

Sheet _SDC Transportation (hidden)
A1: SDC Table: Transportation
A2: =(148715-89280)/(93993-57022) -> 1.607611371
A3: ITE Code | B3: Land Use | C3: ITE-Land Use | D3: Unit | E3: Unit Scale | F3: Unit Name | G3: Unit Name Long | H3: Input Unit | I3: ITE Average Daily Trips | J3: Primary Trip Adjustments as a Percent of Total | K3: ITE Adjusted Average Daily Trips | L3: Number of Person Trips | M3: Reimbursement Fee | N3: Improvement Fee | O3: Compliance Fee | P3: Total SDC per Unit | Q3: Description
A4: 110 | B4: General Light Industrial | C4: =A4&" – "&B4 -> 110 – General Light Industrial | D4: 1,000 SFGFA | E4: 1000 | F4: SFGFA | G4: SFGFA = Square Feet of Gross Floor Area | H4: Square Feet (SF) | I4: 6.97 | J4: 1 | K4: =IFERROR(I4*J4,"") -> 6.97 | L4: =IFERROR(K4*$A$2,"") -> 11.20505126 | M4: =IFERROR(L4*$B$79,"") -> 1934.977891 | N4: =IFERROR(L4*$B$80,"") -> 10586.12905 | O4: =IFERROR(L4*$B$81,"") -> 258.7470436 | P4: =SUM(M4:O4) -> 12779.85398 | Q4: Light industrial facilities are free-standing facilities devoted to a single use. The facilities have an emphasis on activities other than manufacturing and typically have minimal office space. Typical light industrial activities include printing, material testing and assembly of data processing equipment. General heavy industrial (Land Use 120), industrial park (Land Use 130) and manufacturing (Land Use 140) are related uses.
A5: 120 | B5: General Heavy Industrial | C5: 120 – General Heavy Industrial | D5: 1,000 SFGFA | E5: 1000 | F5: SFGFA | G5: SFGFA = Square Feet of Gross Floor Area | H5: Square Feet (SF) | I5: 1.5 | J5: 1 | K5: =IFERROR(I5*J5,"") -> 1.5 | L5: =IFERROR(K5*$A$2,"") -> 2.411417057 | M5: 416.4227887 | N5: 2278.220024 | O5: 55.68444267 | P5: 2750.327255 | Q5: Heavy industrial facilities usually have a high number of employees per industrial plant and are generally limited to the manufacturing of large items. General light industrial (Land Use 110), industrial park (Land Use 130) and manufacturing (Land Use 140) are related uses.
A6: 130 | B6: Industrial Park | C6: 130 – Industrial Park | D6: 1,000 SFGFA | E6: 1000 | F6: SFGFA | G6: SFGFA = Square Feet of Gross Floor Area | H6: Square Feet (SF) | I6: 6.83 | J6: 1 | K6: 6.83 | L6: 10.97998566 | M6: 1896.111764 | N6: 10373.49518 | O6: 253.549829 | P6: 12523.15677 | Q6: Industrial parks contain a number of industrial or related facilities. They are characterized by a mix of manufacturing, service and warehouse facilities with a wide variation in the proportion of each type of use from one location to another. Many industrial parks contain highly diversified facilities—some with a large number of small businesses and others with one or two dominant industries. General light industrial (Land Use 110), general heavy industrial (Land Use 120), manufacturing (Land Use 140), high-cube warehouse/distribution center (Land Use 152) and business park (Land Use 770) are related uses.
A7: 140 | B7: Manufacturing | C7: 140 – Manufacturing | D7: 1,000 SFGFA | E7: 1000 | F7: SFGFA | G7: SFGFA = Square Feet of Gross Floor Area | H7: Square Feet (SF) | I7: 3.82 | J7: 1 | K7: 3.82 | L7: 6.141075438 | M7: 1060.490035 | N7: 5801.866995 | O7: 141.809714 | P7: 7004.166744 | Q7: Manufacturing facilities are areas where the primary activity is the conversion of raw materials or parts into finished products. Size and type of activity may vary substanially from one facility to another. In addition to the actual production of goods, manufacturing facilities generally also have office, warehouse, research and assoicated functions. General light industrial (Land Use 110), general heavy industrial (Land Use 120), industrial park (Land Use 130) and high-cube warehouse/distribution center (Land Use 152) are related uses.
A8: 150 | B8: Warehousing | C8: 150 – Warehousing | D8: 1,000 SFGFA | E8: 1000 | F8: SFGFA | G8: SFGFA = Square Feet of Gross Floor Area | H8: Square Feet (SF) | I8: 3.56 | J8: 1 | K8: 3.56 | L8: 5.723096481 | M8: 988.3100851 | N8: 5406.975524 | O8: 132.1577439 | P8: =SUM(M8:O8) -> 6527.443353 | Q8: Warehouses are primarily devoted to the storage of materials, but they may also include office and maintenance areas. High-cube warehouse/distribution center (Land Use 152) and business park (Land Use 770) are related uses.
A9: 151 | B9: Mini-Warehouse | C9: 151 – Mini-Warehouse | D9: 1,000 SFGFA | E9: 1000 | F9: SFGFA | G9: SFGFA = Square Feet of Gross Floor Area | H9: Square Feet (SF) | I9: 2.5 | J9: 1 | K9: 2.5 | L9: 4.019028428 | M9: 694.0379811 | N9: 3797.033373 | O9: 92.80740445 | P9: 4583.878759 | Q9: Mini-warehouses are buildings in which a number of storage units or vaults are rented for the storage of goods. They are typically referred to as "self-storage" facilities. Each unit is physically separated from other units, and access is usually provided through an overhead door or other common access point.
A10: 154 | B10: High-Cube Warehouse/Distribution Center | C10: 154 – High-Cube Warehouse/Distribution Center | D10: 1,000 SFGFA | E10: 1000 | F10: SFGFA | G10: SFGFA = Square Feet of Gross Floor Area | H10: Square Feet (SF) | I10: 1.68 | J10: 1 | K10: 1.68 | L10: 2.700787103 | M10: 466.3935233 | N10: 2551.606427 | O10: 62.36657579 | P10: 3080.366526 | Q10: High-cube warehouse/distribution centers are used for the storage of materials, goods and merchandise prior to their distribution to retail outlets, distribution centers or other warehouses. These facilities are typically characterized by ceiling heights of at least 24 feet with small employment counts due to a high level of mechanization. High-cube warehouses/distribution centers generally consist of large steel or masonry shell buildings and may be occupied by single or multiple tenants. A small ancillary office use component may be included and some limited assembly and repackaging may occur within these facilities. High-cube warehouses/distribution centers may be located in industrial parks or be free-standing. Intermodal truck terminal (Land Use 030), industrial park (Land Use 130), manufacturing (Land Use 140) and warehousing (Land Use 150) are related uses.
A11: 160 | B11: Data Center | C11: 160 – Data Center | D11: 1,000 SFGFA | E11: 1000 | F11: SFGFA | G11: SFGFA = Square Feet of Gross Floor Area | H11: Square Feet (SF) | I11: 0.99 | J11: 1 | K11: 0.99 | L11: 1.591535257 | M11: 274.8390405 | N11: 1503.625216 | O11: 36.75173216 | P11: 1815.215989 | Q11: Data centers are free-standing warehouse type facilities that are primarily used for off-site storage of computer systems and associated components including applications and secure data. Some data centers may include maintanence areas and a small office. Data centers may be occupied by single or multiple tenants. Data centers typically have a small number of employees and visitors.
A12: 210 | B12: Single-Family Dwelling | C12: 210 – Single-Family Dwelling | D12: DU | E12: 1 | F12: Dwelling unit | G12: DU = Dwelling Unit | I12: 9.447142857 | J12: 1 | K12: 9.447142857 | L12: 15.18733428 | M12: 2622.670382 | N12: 14348.44668 | O12: 350.7059232 | P12: 17321.82299 | Q12: Single-family detached housing includes all single-family detached homes on individual lots. A typical site surveyed is a suburban subdivision.
A13: 220 | B13: Apartment | C13: 220 – Apartment | D13: DU | E13: 1 | F13: Dwelling unit | G13: DU = Dwelling Unit | I13: 6.5 | J13: 1 | K13: 6.5 | L13: 10.44947391 | M13: 1804.498751 | N13: 9872.286771 | O13: 241.2992516 | P13: 11918.08477 | Q13: Apartments are rental dwelling units located within the same building with at least three other dwelling units, for example quadraplexes and all types of apartment buildings. The studies included in this land use did not identify whether the apartments were low-rise, mid-rise, or high-rise. Low-rise apartment (Land Use 221), high-rise apartment (Land Use 222) and mid-rise apartment (Land Use 223) are related uses.
A14: 230 | B14: Residential Condominium/Townhouse | C14: 230 – Residential Condominium/Townhouse | D14: DU | E14: 1 | F14: Dwelling unit | G14: DU = Dwelling Unit | I14: 5.651428571 | J14: 1 | K14: 5.651428571 | L14: 9.085300834 | M14: 1568.92243 | N14: 8583.465157 | O14: 209.7977669 | P14: 10362.18535 | Q14: Residential condominiums/townhouses are defined as ownership units that have at least one other owned unit within the same building structure. Both condominiums and townhouses are included in this land use. The studies in this land use did not identify whether the condominiums/townhouses were low-rise or high-rise. Low-rise residential condominium/townhouse (Land Use 231), high-rise residential condominium/townhouse (Land Use 232) and luxury condominium/townhouse (Land Use 233) are related uses.
A15: 240 | B15: Mobile Home Park | C15: 240 – Mobile Home Park | D15: ODU | E15: 1 | F15: Occupied Dwelling Unit | G15: ODU = Occupied Dwelling Unit | I15: 4.901428571 | J15: 1 | K15: 4.901428571 | L15: 7.879592306 | M15: 1360.711036 | N15: 7444.355145 | O15: 181.9555455 | P15: 8987.021727 | Q15: Mobile home parks generally consist of manufactured homes that are sited and installed on permanent foundations and typically have community facilities such as recreation rooms, swimming pools and laundry facilities. Many mobile home parks restrict occupancy to adults.
A16: 254 | B16: Assisted Living | C16: 254 – Assisted Living | D16: Bed | E16: 1 | F16: Bed | I16: 2.562857143 | J16: 1 | K16: 2.562857143 | L16: 4.120078285 | M16: 711.4880789 | N16: 3892.501641 | O16: 95.14084776 | P16: 4699.130568 | Q16: Assisted living complexes are residential settings that provide either routine general protective oversight or assistance with activities necessary for independent living to mentally or physically limited persons. They commonly have separate living quarters for residents, and services include dining, housekeeping, social and physical activities, medication administration and transportation. Alzheimer's and ALS care are commonly offered by these facilities, though the living quarters for these patients may be located separately from the other residents. Assisted care commonly bridges the gap between independent living and nursing homes. In some areas of the country, assisted living residences may be called personal care, residential care, or domiciliary care. Staff may be available at an assisted care facility 24 hours a day, but skilled medical care—which is limited in nature—is not required. Continuing care retirement community (Land Use 255) and nursing home (Land Use 620) are related uses.
A17: 310 | B17: Hotel | C17: 310 – Hotel | D17: Room | E17: 1 | F17: Room | I17: 7.855714286 | J17: 1 | K17: 7.855714286 | L17: 12.62893561 | M17: 2180.865633 | N17: 11931.36373 | O17: 291.6273812 | P17: 14403.85674 | Q17: Hotels are places of lodging that provide sleeping accommodations and supporting facilities such as restaurants, cocktail lounges, meeting and banquet rooms or convention facilities, limited recreational facilities (pool, fitness room), and/or other retail and service shops. Some of the sites included in this land use category are actually large motels providing the hotel facilities noted above. All suites hotel (Land Use 311), business hotel (Land Use 312), motel (Land Use 320) and resort hotel (Land Use 330) are related uses.
A18: 320 | B18: Motel | C18: 320 – Motel | D18: Room | E18: 1 | F18: Room | I18: 5.63 | J18: 1 | K18: 5.63 | L18: 9.050852019 | M18: 1562.973533 | N18: 8550.919157 | O18: 209.0022748 | P18: 10322.89497 | Q18: Motels are places of lodging that provide sleeping accommodations and often a restaurant. Motels generally offer free on-site parking and provide little or no meeting space and few (if any) supporting facilities. Exterior corridors accessing rooms—immediately adjacent to a parking lot—commonly characterize motels. Hotel (Land Use 310), all suites hotel (Land Use 311), business hotel (Land Use 312) and resort hotel (Land Use 330) are related uses.
A19: 411 | B19: City Park | C19: 411 – City Park | D19: Acre | E19: 1 | F19: Acre | I19: 6.132857143 | J19: 1 | K19: 6.132857143 | L19: 9.85925088 | M19: 1702.574316 | N19: 9314.665298 | O19: 227.6698213 | P19: 11244.90944 | Q19: City parks are owned and operated by a city. The city parks surveyed vary widely as to location, type and number of facilities, including boating or swimming facilities, ball fields, soccer fields, camp-sites and picnic facilities. Seasonal use of the individual sites differs widely as a result of the varying facilities and local conditions, such as weather. For example, some of the sites are used primarily for boating and swimming; others are used for softball games. Soccer complex (Land Use 488) is a related use.
A20: 417 | B20: Regional Park | C20: 417 – Regional Park | D20: Acre | E20: 1 | F20: Acre | I20: 4.991428571 | J20: 1 | K20: 4.991428571 | L20: 8.024277329 | M20: 1385.696403 | N20: 7581.048347 | O20: 185.2966121 | P20: 9152.041362 | Q20: Regional parks are owned and operated by a regional park authority. The regional parks surveyed vary widely as to location, type and number of facilities, including hiking trails, lakes, pools, ball fields, soccer fields, camp sites, picnic facilities and general office space. Seasonal use of the individual sites differ widely as a result of the varying facilities and local conditions, such as weather. For example, some of the sites are used primarily for boating or swimming; others are used for hiking or camping. Soccer complex (Land Use 488) is a related use.
A21: 430 | B21: Golf Course | C21: 430 – Golf Course | D21: Acre | E21: 1 | F21: Acre | I21: 5.271428571 | J21: 1 | K21: 5.271428571 | L21: 8.474408513 | M21: 1463.428657 | N21: 8006.316085 | O21: 195.6910414 | P21: 9665.435783 | Q21: Golf courses include 9-, 18-, 27- and 36-hole municipal courses. Some sites may also have driving ranges and clubhouses with a pro shop, restaurant, lounge and banquet facilities. Miniature golf course (Land Use 431), golf driving range (Land Use 432) and multipurpose recreational facility (Land Use 435) are related uses.
A22: 492 | B22: Health/Fitness Club | C22: 492 – Health/Fitness Club | D22: 1,000 SFGFA | E22: 1000 | F22: SFGFA | G22: SFGFA = Square Feet of Gross Floor Area | I22: 30.32142857 | J22: 1 | K22: 30.32142857 | L22: 48.74507336 | M22: 8417.689228 | N22: 46052.59049 | O22: 1125.621234 | P22: 55595.90095 | Q22: Health/fitness clubs are privately-owned facilities that primarily focus on individual fitness or training. Typically they provide exercise classes; weightlifting, fitness and gymnastics equipment; spas; locker rooms; and small restaurants or snack bars. This land use may also include ancillary facilities, such as swimming pools, whirlpools, saunas, tennis, racquetball and handball courts and limited retail. These facilities are membership clubs that may allow access to the general public for a fee. Racquet/tennis club (Land Use 491), athletic club (Land Use 493) and recreational community center (Land Use 495) are related uses.
A23: 495 | B23: Recreational Community Center | C23: 495 – Recreational Community Center | D23: 1,000 SFGFA | E23: 1000 | F23: SFGFA | G23: SFGFA = Square Feet of Gross Floor Area | I23: 33.82 | J23: 1 | K23: 33.82 | L23: 54.36941657 | M23: 9388.945809 | N23: 51366.26748 | O23: 1255.498567 | P23: 62010.71185 | Q23: Recreational community centers are stand-alone public facilities similar to and including YCMAs. These facilities often include classes and clubs for adults and children; a day care or nursery school; meeting rooms; swimming pools and whirlpools; saunas; tennis, racquetball, handball, basketball and volleyball courts; outdoor athletic fields/courts; exercise classes; weightlifting and gymnastics equipment; locker rooms; and a restaurant or snack bar. Public access is typically allowed, but a fee may be charged. Racquet/tennis club (Land Use 491), health/fitness club (Land Use 492) and athletic club (Land Use 493) are related uses.
A24: 520 | B24: Elementary School | C24: 520 – Elementary School | D24: 1,000 SFGFA | E24: 1000 | F24: SFGFA | G24: SFGFA = Square Feet of Gross Floor Area | I24: 15.43 | J24: 0.59 | K24: 9.1037 | L24: 14.63521164 | M24: 2527.325427 | N24: 13826.82109 | O24: 337.9563072 | P24: 16692.10282 | Q24: Elementary schools typically serve students attending kindergarten through the fifth or sixth grade. Elementary schools are usually centrally located in residential communities in order to facilitate student access and have no student drivers. This land use consists of schools where bus service is usually provided to students living beyond a specified distance from the school. Both public and private elementary schools are included in this land use. Middle school/junior high school (Land Use 522), high school (Land Use 530), private school (K-8) (Land Use 534) and private school (K-12) (Land Use 536) are related uses.
A25: 522 | B25: Middle School/Junior High School | C25: 522 – Middle School/Junior High School | D25: 1,000 SFGFA | E25: 1000 | F25: SFGFA | G25: SFGFA = Square Feet of Gross Floor Area | I25: 13.78 | J25: 0.59 | K25: 8.1302 | L25: 13.07020197 | M25: 2257.067038 | N25: 12348.25629 | O25: 301.8171039 | P25: 14907.14043 | Q25: Middle or junior high schools serve students who have completed elementary school and have not yet entered high school. Both public and private middle schools/junior high schools are included in this land use. Elementary school (Land Use 520), high school (Land Use 530) private school (K-8) (Land Use 534) and private school (K-12) (Land Use 536) are related uses.
A26: 530 | B26: High School | C26: 530 – High School | D26: 1,000 SFGFA | E26: 1000 | F26: SFGFA | G26: SFGFA = Square Feet of Gross Floor Area | I26: 12.89 | J26: 0.59 | K26: 7.6051 | L26: 12.22604524 | M26: 2111.2913 | N26: 11550.7274 | O26: 282.3238366 | P26: 13944.34254 | Q26: High schools serve students who have completed middle or junior high school. Both public and private high schools are included in this land use. Elementary school (Land Use 520), middle school/junior high school (Land Use 522), private school (K-8) (Land Use 534) and private school (K-12) (Land Use 536) are related uses.
A27: 540 | B27: Junior/Community College | C27: 540 – Junior/Community College | D27: 1,000 SFGFA | E27: 1000 | F27: SFGFA | G27: SFGFA = Square Feet of Gross Floor Area | I27: 27.49 | J27: 1 | K27: 27.49 | L27: 44.19323659 | M27: 7631.64164 | N27: 41752.17897 | O27: 1020.510219 | P27: 50404.33083 | Q27: This land use includes two-year junior, community, or technical colleges. Four-year (or more) colleges or universities are described in university/college (Land Use 550). A number of two-year institutions have sizable evening programs.
A28: 560 | B28: Church | C28: 560 – Church | D28: 1,000 SFGFA | E28: 1000 | F28: SFGFA | G28: SFGFA = Square Feet of Gross Floor Area | I28: 9.11 | J28: 1 | K28: 9.11 | L28: 14.64533959 | M28: 2529.074403 | N28: 13836.38961 | O28: 338.1901818 | P28: 16703.6542 | Q28: A church is a building in which public worship services are held. A church houses an assembly hall or sanctuary; it may also house meeting rooms, classrooms and, occasionally, dining, catering, or party facilities. Synagogye (Land Use 561) and mosque (Land Use 562) are related used.
A29: 565 | B29: Day Care Center | C29: 565 – Day Care Center | D29: 1,000 SFGFA | E29: 1000 | F29: SFGFA | G29: SFGFA = Square Feet of Gross Floor Area | I29: 74.06 | J29: 0.33 | K29: 24.4398 | L29: 39.28970039 | M29: 6784.85978 | N29: 37119.4945 | O29: 907.2777613 | P29: 44811.63204 | Q29: A day care center is a facility where care for pre-school age children is provided, normally during the daytime hours. Day care facilities generally include classrooms, offices, eating areas and playgrounds. Some centers also provide after-school care for school-age children.
A30: 590 | B30: Library | C30: 590 – Library | D30: 1,000 SFGFA | E30: 1000 | F30: SFGFA | G30: SFGFA = Square Feet of Gross Floor Area | I30: 56.24 | J30: 1 | K30: 56.24 | L30: 90.41206351 | M30: 15613.07842 | N30: 85418.06277 | O30: 2087.795371 | P30: 103118.9366 | Q30: A library can be either a public or private facility that consists of shelved books, reading rooms or areas and, sometimes, meeting rooms.
A31: 610 | B31: Hospital | C31: 610 – Hospital | D31: 1,000 SFGFA | E31: 1000 | F31: SFGFA | G31: SFGFA = Square Feet of Gross Floor Area | I31: 12.17 | J31: 1 | K31: 12.17 | L31: 19.56463039 | M31: 3378.576892 | N31: 18483.95846 | O31: 451.7864449 | P31: 22314.3218 | Q31: A hospital is any institution where medical or surgical care and overnight accommodations are provided to non-ambulatory and ambulatory patients. However, the term "hospital" does not refer to medical clinics (facilities that provide diagnoses and outpatient care only) or nursing homes (facilities devoted to the care of persons unable to care for themselves), which are covered elsewhere in this report. Clinic (Land Use 630) is a related use.
A32: 620 | B32: Nursing Home | C32: 620 – Nursing Home | D32: 1,000 SFGFA | E32: 1000 | F32: SFGFA | G32: SFGFA = Square Feet of Gross Floor Area | I32: 7.6 | J32: 1 | K32: 7.6 | L32: 12.21784642 | M32: 2109.875463 | N32: 11542.98146 | O32: 282.1345095 | P32: 13934.99143 | Q32: A nursing home is any facility who primary function is to provide care for persons who are unable to care for themselves. Examples of such facilities include rest homes and chronic care and convalescent homes. Skilled nurses and nursing aides are present 24 hours a day at these sites. Nursing homes are occupied by residents who do little or no driving; traffic is primarily generated by employees, visitors and deliveries. Assisted living (Land Use 254) and continuing care retirement community (Land Use 255) are related uses.
A33: 630 | B33: Clinic | C33: 630 – Clinic | D33: 1,000 SFGFA | E33: 1000 | F33: SFGFA | G33: SFGFA = Square Feet of Gross Floor Area | I33: 31.45 | J33: 1 | K33: 31.45 | L33: 50.55937762 | M33: 8730.997802 | N33: 47766.67984 | O33: 1167.517148 | P33: 57665.19479 | Q33: A clinic is any facility that provides limited diagnostic and outpatient care but is unable to provide prolonged in-house medical and surgical care. Clinics commonly have lab facilities, supporting pharmacies and a wide range or services (compared to the medical office, which may only have specialized or individual physicians). Hospital (Land Use 610) and medical-dental office building (Land Use 720) are related uses.
A34: 710 | B34: General Office Building | C34: 710 – General Office Building | D34: 1,000 SFGFA | E34: 1000 | F34: SFGFA | G34: SFGFA = Square Feet of Gross Floor Area | I34: 11.03 | J34: 0.66 | K34: 7.2798 | L34: 11.70308926 | M34: 2020.983078 | N34: 11056.65742 | O34: 270.2477372 | P34: 13347.88824 | Q34: A general office building houses multiple tenants; it is a location where affairs of businesses, commercial or industrial organizations, or professional persons or firms are conducted. An office building or buildings may contain a mixture of tenants including professional servicesm insurance companies, investment brokers and tenant services, such as a bank or savings and loan institution, a restaurant or cafeteria and service retail facilities. Corporate headquarters building (Land Use 714), single tenant office building (Land Use 715), office park (Land Use 750), research and development center (Land Use 760) and business park (Land Use 770) are related uses.
A35: 714 | B35: Corporate Headquarters Building | C35: 714 – Corporate Headquarters Building | D35: 1,000 SFGFA | E35: 1000 | F35: SFGFA | G35: SFGFA = Square Feet of Gross Floor Area | I35: 7.98 | J35: 1 | K35: 7.98 | L35: 12.82873874 | M35: 2215.369236 | N35: 12120.13053 | O35: 296.241235 | P35: 14631.741 | Q35: A corporate headquarters building is a single tenant office building that houses the corporate headquarters of a company or organization, which generally consists of offices, meeting rooms, space for file storage and data processing, a restaurant or cafeteria and other service functions. General office building (Land Use 710), single tenant office building (Land Use 715), office park (Land Use 750), research and development center (Land Use 760) and business park (Land Use 770) are related uses.
A36: 715 | B36: Single Tenant Office Building | C36: =A36&" – "&B36 -> 715 – Single Tenant Office Building | D36: 1,000 SFGFA | E36: 1000 | F36: SFGFA | G36: SFGFA = Square Feet of Gross Floor Area | I36: 11.65 | J36: 1 | K36: 11.65 | L36: 18.72867247 | M36: =IFERROR(L36*$B$79,"") -> 3234.216992 | N36: =IFERROR(L36*$B$80,"") -> 17694.17552 | O36: =IFERROR(L36*$B$81,"") -> 432.4825047 | P36: 21360.87502 | Q36: A single tenant office building generally contains offices, meeting rooms and space for file storage and data processing of a single business or company and possibly other service functions including a restaurant or cafeteria. General office building (Land Use 710), corporate headquarters building (Land Use 714), office park (Land Use 750), research and development center (Land Use 760) and business park (Land Use 770) are related uses.
A37: 720 | B37: Medical-Dental Office Building | C37: 720 – Medical-Dental Office Building | D37: 1,000 SFGFA | E37: 1000 | F37: SFGFA | G37: SFGFA = Square Feet of Gross Floor Area | I37: 36.13 | J37: 1 | K37: 36.13 | L37: 58.08299884 | M37: 10030.2369 | N37: 54874.72631 | O37: 1341.252609 | P37: 66246.21583 | Q37: A medical-dentist office building is a facility that provides diagnoses and outpatient care on a routine basis but is unable to provide prolonged in-house medical and surgical care. One or more private physicians or dentists generally operate this type of facility. Clinic (Land Use 630) is a related use.
A38: 731 | B38: State Motor Vehicles Department | C38: 731 – State Motor Vehicles Department | D38: 1,000 SFGFA | E38: 1000 | F38: SFGFA | G38: SFGFA = Square Feet of Gross Floor Area | I38: 120.9 | J38: 1 | K38: 120.9 | L38: 194.3602148 | M38: 33563.67677 | N38: 183624.5339 | O38: 4488.166079 | P38: 221676.3768 | Q38: A state motor vehicles department is an office-type building where driver license testing, vehicle registration and other related functions are administered.
A39: 732 | B39: United States Post Office | C39: 732 – United States Post Office | D39: 1,000 SFGFA | E39: 1000 | F39: SFGFA | G39: SFGFA = Square Feet of Gross Floor Area | I39: 108.19 | J39: 1 | K39: 108.19 | L39: 173.9274742 | M39: 30035.18767 | N39: 164320.4163 | O39: 4016.333235 | P39: 198371.9372 | Q39: A U.S. post office is a federal building that contains service windows for mailing packages and letters, post office boxes, offices, sorting and distributing facilities and mail and vehicle sorting areas.
A40: 750 | B40: Office Park | C40: 750 – Office Park | D40: 1,000 SFGFA | E40: 1000 | F40: SFGFA | G40: SFGFA = Square Feet of Gross Floor Area | I40: 11.42 | J40: 1 | K40: 11.42 | L40: 18.35892186 | M40: 3170.365498 | N40: 17344.84845 | O40: 423.9442235 | P40: 20939.15817 | Q40: Office parks are usually suburban subdivisions or planned unit developments containing general office buildings and support services, such as banks, restaurants and services stations, arranged in a park- or campus-like atmosphere. General office building (Land Use 710), corporate headquarters building (Land Use 714), single tenant office building (Land Use 715), research and development center (Land Use 760) and business park (Land Use 770) are related uses.
A41: 760 | B41: Research and Development Center | C41: 760 – Research and Development Center | D41: 1,000 SFGFA | E41: 1000 | F41: SFGFA | G41: SFGFA = Square Feet of Gross Floor Area | I41: 8.11 | J41: 1 | K41: 8.11 | L41: 13.03772822 | M41: 2251.459211 | N41: 12317.57626 | O41: 301.06722 | P41: 14870.10269 | Q41: Research and development centers are facilities or groups of facilities devoted almost exclusively to research and development activities. The range of specific types of businesses contained in this land use category varies significantly. Research and development centers may contain offices and light fabrication areas. General office building (Land Use 710), corporate headquarters building (Land Use 714), single tenant office building (Land Use 715), office park (Land Use 750) and business park (Land Use 770) are related uses.
A42: 770 | B42: Business Park | C42: 770 – Business Park | D42: 1,000 SFGFA | E42: 1000 | F42: SFGFA | G42: SFGFA = Square Feet of Gross Floor Area | I42: 12.44 | J42: 1 | K42: 12.44 | L42: 19.99868546 | M42: 3453.532994 | N42: 18894.03807 | O42: 461.8096446 | P42: 22809.3807 | Q42: Business parks consist of a group of flex-type or incubator one- or two-story buildings served by a common roadway system. The tenant space is flexible and lends itself to a variety of uses; the rear side of the building is usually served by a garage door. Tenants may be start-up companies or small mature companies that require a variety of space. The space may include offices, retain and wholesale stores, restaurants, recreational areas and warehousing, manufacturing, light industrial, or scientific research functions. The average mix is 20 to 30 percent office/commercial and 70 to 80 percent industrial/warehousing. Industrial park (Land Use 130), warehousing (Land Use 150), general office building (Land Use710), corporate headquarters building (Land Use 714), single tenant office building (Land Use 715), office park (Land Use 750) and research and development center (Land Use 760) are related uses.
A43: 812 | B43: Building Materials and Lumber Store | C43: 812 – Building Materials and Lumber Store | D43: 1,000 SFGFA | E43: 1000 | F43: SFGFA | G43: SFGFA = Square Feet of Gross Floor Area | I43: 45.16 | J43: 1 | K43: 45.16 | L43: 72.59972952 | M43: 12537.10209 | N43: 68589.61086 | O43: 1676.472954 | P43: 82803.1859 | Q43: A building materials and lumber store is a free-standing building that sells hardware, building materials and lumber. The lumber may be stored in the main building, yard, or storage shed. The buildings contained in this land use are less than 30,000 square feet gross floor area. Hardware/paint store (Land Use 816) and home improvement superstore (Land Use 862) are related uses.
A44: 813 | B44: Free-Standing Discount Superstore | C44: 813 – Free-Standing Discount Superstore | D44: 1,000 SFGFA | E44: 1000 | F44: SFGFA | G44: SFGFA = Square Feet of Gross Floor Area | I44: 53.42 | J44: 0.72 | K44: 38.4624 | L44: 61.8325916 | M44: 10677.74658 | N44: 58417.20657 | O44: 1427.838205 | P44: 70522.79135 | Q44: The discount superstores in this category are similar to the free-standing discount superstores described in Land Use 815 with the exception that they also contain a full service grocery department under that same roof that shares entrances and exits with the discount store area. The stores usually offer a variety of customer services, centralized cashiering and a wide range of products. They typically maintain long store hours 7 days a week. The stores included in this land use are often the only ones on the site, but they can also be found in mutual operation with a related or unrelated garden center and/or service station, or as a part of a shopping center, with or without their own dedicated parking area. Free-standing discount store (Land Use 815) is a related use.
A45: 814 | B45: Variety Store | C45: 814 – Variety Store | D45: 1,000 SFGFA | E45: 1000 | F45: SFGFA | G45: SFGFA = Square Feet of Gross Floor Area | I45: 64.03 | J45: 0.4775 | K45: 30.574325 | L45: 49.15163253 | M45: 8487.897119 | N45: 46436.69296 | O45: 1135.009498 | P45: 56059.59958 | Q45: A variety store is a retail store that sells a broad range of inexpensive items often at a single price. These stores are typically referred to as "dollar stores". Items sold at these stores typically include kitchen supplies, cleaning products, home office supplies, food products, household goods, decorations and toys. These stores are sometimes stand-alone sites, but they may also be located in small strip shopping centers. Free-standing discount store (Land Use 815) is a related use.
A46: 815 | B46: Free-Standing Discount Store | C46: 815 – Free-Standing Discount Store | D46: 1,000 SFGFA | E46: 1000 | F46: SFGFA | G46: SFGFA = Square Feet of Gross Floor Area | I46: 57.24 | J46: 0.4775 | K46: 27.3321 | L46: 43.93939476 | M46: 7587.806202 | N46: 41512.35835 | O46: 1014.648504 | P46: 50114.81305 | Q46: The discount stores in this category are similar to the free-standing discount superstores described in Land Use 813 with the exception that they do not contain a full service grocery department. They are also similar to the department stores desribed in Land Use 875 with the exception that they generally offer centralized cashiering and sell products that are advertised at discount prices. These stores offer a variety of customer services and typically maintain long store hours 7 days a week. The store included in this land use are often the only ones on the site, but they can also be found in mutual operation with a related or unrelated garden center and/or service station. Free-standing discount stores are also sometimes found as separate parcels within a retail complex, with or without their own dedicated parking. Free-standing discount superstore (Land Use 813), variety store (Land Use 814) and department store (Land Use 875) are related uses.
A47: 816 | B47: Hardware/Paint Store | C47: 816 – Hardware/Paint Store | D47: 1,000 SFGFA | E47: 1000 | F47: SFGFA | G47: SFGFA = Square Feet of Gross Floor Area | I47: 51.29 | J47: 0.445 | K47: 22.82405 | L47: 36.69220231 | M47: 6336.303033 | N47: 34665.47183 | O47: 847.2963358 | P47: 41849.0712 | Q47: Hardware/paint stores are generally free-standing buildings. Building materials and lumber store (Land Use 812) and home improvement superstore (Land Use 862) are related uses.
A48: 817 | B48: Nursery (Garden Center) | C48: 817 – Nursery (Garden Center) | D48: 1,000 SFGFA | E48: 1000 | F48: SFGFA | G48: SFGFA = Square Feet of Gross Floor Area | I48: 68.1 | J48: 0.82 | K48: 55.842 | L48: 89.77223418 | M48: 15502.58758 | N48: 84813.57506 | O48: 2073.020432 | P48: 102389.1831 | Q48: A nursery or garden center is a free-standing building with an outside storage area for planting or landscape stock. The nurseries surveyed primarily serve the general public. Some have large greenhouses and offer landscaping services. Most have office, storage and shipping facilities. Nurseries are characterized by seasonal variations in trip characteristics. Nursery (Wholesole) (Land Use 818) is a related use.
A49: 820 | B49: Shopping Center | C49: 820 – Shopping Center | D49: 1,000 SFGLA | E49: 1000 | F49: SFGLA | G49: SFGLA = Square Feet of Gross Leasable Area | I49: 42.7 | J49: 0.5014 | K49: 21.40978 | L49: 34.41860578 | M49: 5943.680195 | N49: 32517.45967 | O49: 794.7944447 | P49: 39255.93431 | Q49: A shopping center is an integrated group of commercial establishments that is planned, developed, owned and managed as a unit. A shopping center's composition is related to its market area in terms of size, location and type of store. A shopping center also provides on-site parking facilities sufficent to serve its own parking demands. Specialty retail center (Land Use 826) and factory outlet center (Land Use 823) are related uses.
A50: 826 | B50: Specialty Retail Center | C50: 826 – Specialty Retail Center | D50: 1,000 SFGLA | E50: 1000 | F50: SFGLA | G50: SFGLA = Square Feet of Gross Leasable Area | I50: 44.32 | J50: 0.82 | K50: 36.3424 | L50: 58.42445549 | M50: 10089.20237 | N50: 55197.32227 | O50: 1349.137526 | P50: 66635.66216 | Q50: Specialty retail centers are generally small strip shopping centers that contain aa variety of retail shops and specialize in quality apparel, hard goods and services, such as real estate offices, dance studios, florists and small restaurants. Shopping center (Land Use 820) is a related use.
A51: 841 | B51: Automobile Sales | C51: 841 – Automobile Sales | D51: 1,000 SFGFA | E51: 1000 | F51: SFGFA | G51: SFGFA = Square Feet of Gross Floor Area | I51: 32.3 | J51: 1 | K51: 32.3 | L51: 51.92584729 | M51: 8966.970716 | N51: 49057.67119 | O51: 1199.071666 | P51: 59223.71357 | Q51: Automobile sales dealerships are typically located along major arterial streets characterized by abundant commercial development. Automobile services, parts sales and substantial used car sales may also be available. Some dealerships also include leasing options, truck sales and servicing. Recreational vehicle sales (Land Use 842) is a related use.
A52: 843 | B52: Automobile Parts Sales | C52: 843 – Automobile Parts Sales | D52: 1,000 SFGFA | E52: 1000 | F52: SFGFA | G52: SFGFA = Square Feet of Gross Floor Area | I52: 61.91 | J52: 0.44 | K52: 27.2404 | L52: 43.79197679 | M52: 7562.348888 | N52: 41373.08316 | O52: 1011.244328 | P52: 49946.67638 | Q52: Automobile parts sales facilities specialize in the sale of automobile parts of maintenance and repair. Items sold at these facilities include spark plugs, oil, batteries and a wide range of automobile parts. These facilities are not equipped for on-site vehicle repair. Tire store (Land Use 848), tire superstore (Land Use 849) and automobile parts and service center (Land Use 943) are related uses.
A53: 848 | B53: Tire Store | C53: 848 – Tire Store | D53: 1,000 SFGFA | E53: 1000 | F53: SFGFA | G53: SFGFA = Square Feet of Gross Floor Area | I53: 24.87 | J53: 0.6866666667 | K53: 17.0774 | L53: 27.45382243 | M53: 4740.945688 | N53: 25937.38309 | O53: 633.9636675 | P53: 31312.29245 | Q53: A tire store's primary business is the sale and marketing of tires for automotive vehicles. Services offered by these stores usually include tire installation and repair, as well as other automotive maintenance or repair services and customer assistance. These stores generally do not contain large storage or warehouse areas. Automobile parts sales (Land Use 843), tire superstore (Land Use 849) and automobile parts and service center (Land Use 943) are related uses.
A54: 850 | B54: Supermarket | C54: 850 – Supermarket | D54: 1,000 SFGFA | E54: 1000 | F54: SFGFA | G54: SFGFA = Square Feet of Gross Floor Area | I54: 102.24 | J54: 0.3875 | K54: 39.618 | L54: 63.6903473 | M54: 10998.55869 | N54: 60172.34728 | O54: 1470.7375 | P54: 72641.64347 | Q54: Supermarkets are free-standing retail stores selling a complete assortment of food, food preparation and wrapping materials, and household cleaning items. Supermarkets may also contain the following products and services: ATMs, automobile supplies, bakeries, books and magazines, dry cleaning, floral arrangements, greeting cards, limited-service banks, photo centers, pharamcies and video rental areas. Some facilities may be open 24 hours a day. Discount supermarket (Land Use 854) is a related use.
A55: 851 | B55: Convenience Market (Open 24 Hours) | C55: 851 – Convenience Market (Open 24 Hours) | D55: 1,000 SFGFA | E55: 1000 | F55: SFGFA | G55: SFGFA = Square Feet of Gross Floor Area | I55: 737.99 | J55: 0.3252631579 | K55: 240.0409579 | L55: 385.8925734 | M55: 66639.01672 | N55: 364577.4112 | O55: 8911.031306 | P55: 440127.4593 | Q55: The convenience markets in this classification are open 24 hours per day. These markets sell convenience foods, newspapers, magazines and often beer and wine; they do not have gasoline pumps. Convenience market (open 15-16 hours) (Land Use 852), convenience market with gasoline pumps (Land Use 853), gasoline/service station with convenience market (Land Use 945) and gasoline/service station with convenience market and car wash (Land Use 946) are related uses.
A56: 857 | B56: Discount Club | C56: 857 – Discount Club | D56: 1,000 SFGFA | E56: 1000 | F56: SFGFA | G56: SFGFA = Square Feet of Gross Floor Area | I56: 41.8 | J56: 0.57 | K56: 23.826 | L56: 38.30294853 | M56: 6614.459575 | N56: 36187.24686 | O56: 884.4916874 | P56: 43686.19813 | Q56: A discount club is a discount store or warehouse where shoppers pay a membership fee in order to take advantage or discounted prices on a wide variety of items such as food, clothing, tire and appliances; many items are sold in large quantities or bulk. Some sites may include on-site fueling pumps.
A57: 862 | B57: Home Improvement Superstore | C57: 862 – Home Improvement Superstore | D57: 1,000 SFGFA | E57: 1000 | F57: SFGFA | G57: SFGFA = Square Feet of Gross Floor Area | I57: 38.03142857 | J57: 0.44 | K57: 16.73382857 | L57: 26.90149309 | M57: 4645.565039 | N57: 25415.56222 | O57: 621.2092785 | P57: 30682.33654 | Q57: Home improvement superstores are free-standing facilities that specialize in the sale of home improvement merchandise. These store generally offer a variety of customer services and centralized cashiering. Home improvement superstores typically maintain long store hours 7 days a week. Examples of items sold in these stores include lumber, tools, paint, lighting, wallpaper and paneling, kitchen and bathroom fixtures, lawn equipment, and plant and garden accessories. The store included in this land use are often the only ones on the site, but they can also be found in mutual operation with a related or unrelated garden center. Home improvement superstores are sometimes found as separate parcels within a retail complex, with or without their own dedicated parking. The buildings contained in this land use usually range in size from 50,000 to 200,000 square feet gross floor area. This land use does not include interior design stores. Building materials and lumber store (Land Use 812) and hardware/paint store (Land Use 816) are related uses.
A58: 863 | B58: Electronics Superstore | C58: 863 – Electronics Superstore | D58: 1,000 SFGFA | E58: 1000 | F58: SFGFA | G58: SFGFA = Square Feet of Gross Floor Area | I58: 45.04 | J58: 1 | K58: 45.04 | L58: 72.40681615 | M58: 12503.78827 | N58: 68407.35326 | O58: 1672.018199 | P58: 82583.15972 | Q58: Electronics superstores are free-standing facilities that specialize in the sale of electronic merchendise. These facilities generally offer a variety of customer services and centralized cashiering. Electronics superstores typically maintain long store hours 7 days a week. Examples of items sold in these stores include televisions, audio and video players and recoders, software, telephones, computers and general electronic accessories. Major home applicances may also be sold at these facilities. Electronic superstores are sometimes found as separate parcels within a retail complex, with or without their own dedicated parking.
A59: 880 | B59: Pharmacy/Drugstore without Drive-Through | C59: 880 – Pharmacy/Drugstore without Drive-Through | D59: 1,000 SFGFA | E59: 1000 | F59: SFGFA | G59: SFGFA = Square Feet of Gross Floor Area | I59: 90.06 | J59: 0.4233333333 | K59: 38.1254 | L59: 61.29082657 | M59: 10584.19026 | N59: 57905.36647 | O59: 1415.327767 | P59: 69904.8845 | Q59: Pharmacies/drugstores are retail facilities that primarily sell prescription and non-prescription drugs. These facilities may also sell comestics, toiletries, medications, stationary, personal care products, limited food products and general merchandise. Pharmacy/drugstore with drive-through window (Land Use 881) is a related use.
A60: 881 | B60: Pharmacy/Drugstore with Drive-Through | C60: 881 – Pharmacy/Drugstore with Drive-Through | D60: 1,000 SFGFA | E60: 1000 | F60: SFGFA | G60: SFGFA = Square Feet of Gross Floor Area | I60: 96.91 | J60: 0.38 | K60: 36.8258 | L60: 59.20157483 | M60: 10223.40155 | N60: 55931.51664 | O60: 1367.082766 | P60: 67522.00096 | Q60: Pharmacies/drugstores are retail facilities that primarily sell prescription and non-prescription drugs. These facilities may also sell comestics, toiletries, medications, stationary, personal care products, limited food products and general merchandise. The drug stores in this category contain drive-through windows. Pharmacy/drugstore without a drive-through window (Land Use 880) is a related use.
A61: 890 | B61: Furniture Store | C61: 890 – Furniture Store | D61: 1,000 SFGFA | E61: 1000 | F61: SFGFA | G61: SFGFA = Square Feet of Gross Floor Area | I61: 5.06 | J61: 0.3666666667 | K61: 1.855333333 | L61: 2.982654964 | M61: 515.0687204 | N61: 2817.905034 | O61: 68.87546842 | P61: 3401.849223 | Q61: A furniture store is a full-service retail facility that specializes in the sale of furniture and often carpeting. Furniture stores are generally large and may include storage areas. The sites surveyed included both traditional retail furniture stores and warehouse stores with showrooms. Although some home accessories may be sold, furniture stores primarily focus on the same of pre-assembled furniture. A majority of items sold at these facilities must be ordered for delivery. Discount home furnishing superstore (Land Use 869) us a related use.
A62: 911 | B62: Walk-in Bank | C62: 911 – Walk-in Bank | D62: 1,000 SFGFA | E62: 1000 | F62: SFGFA | G62: SFGFA = Square Feet of Gross Floor Area | I62: 0 | J62: 1 | K62: 0 | L62: 0 | M62: 0 | N62: 0 | O62: 0 | P62: 0 | Q62: Walk-in banks are generally free-standing buildings with their own parking lots. These banks do not have drive-in lanes but usually contain non-drive-through automatic teller machines (ATMs). Drive-in bank (Land Use 912) is a related use.
A63: 912 | B63: Drive-in Bank | C63: 912 – Drive-in Bank | D63: 1,000 SFGFA | E63: 1000 | F63: SFGFA | G63: SFGFA = Square Feet of Gross Floor Area | I63: 148.15 | J63: 0.2733333333 | K63: 40.49433333 | L63: 65.09915073 | M63: 11241.84214 | N63: 61503.33404 | O63: 1503.269589 | P63: 74248.44577 | Q63: Drive-in banks provide banking facilities for motorists who conduct financial transactions from their vehicles; many also serve patrons who walk into the building. The drive-in lanes may or may not provide automatic teller machines (ATMs). Walk-in bank (Land Use 911) is a related use.
A64: 925 | B64: Drinking Place | C64: 925 – Drinking Place | D64: 1,000 SFGFA | E64: 1000 | F64: SFGFA | G64: SFGFA = Square Feet of Gross Floor Area | I64: 0 | J64: 1 | K64: 0 | L64: 0 | M64: 0 | N64: 0 | O64: 0 | P64: 0 | Q64: A drinking place contains a bar, where alcoholic beverages and food are sold, and possibly some type of entertainment, such as music, television screens, video games, or pool tables. Establishments that specialize in serving food but also have bars are not included in this land use.
A65: 931 | B65: Quality Restaurant | C65: 931 – Quality Restaurant | D65: 1,000 SFGFA | E65: 1000 | F65: SFGFA | G65: SFGFA = Square Feet of Gross Floor Area | I65: 89.95 | J65: 0.425 | K65: 38.22875 | L65: 61.4569732 | M65: 10612.88179 | N65: 58062.33583 | O65: 1419.164425 | P65: 70094.38204 | Q65: This land use consists of high quality, full-service eating establishments with typical duration of stay of at least one hour. Quality restaurants generally do not serve breakfast; some do not serve lunch; all serve dinner. This type of restaurant often requests and sometimes requires reservations and is generally not part of a chain. Patrons commonly wait to be seated, are served by a waiter/waitress, order from menus and pay for meals after they eat. While some of the study sties have lounge or bar facilities (serving alcoholic beverages), they are ancillary to the restaurant. High-turnover (sit-down) restaurant (Land Use 932) is a related use.
A66: 932 | B66: High-Turnover (Sit-Down) Restaurant | C66: 932 – High-Turnover (Sit-Down) Restaurant | D66: 1,000 SFGFA | E66: 1000 | F66: SFGFA | G66: SFGFA = Square Feet of Gross Floor Area | I66: 127.15 | J66: 0.3975 | K66: 50.542125 | L66: 81.25209487 | M66: 14031.26176 | N66: 76764.05416 | O66: 1876.273375 | P66: 92671.58929 | Q66: This land use consists of sit-down, full-service eating establishments with typical duration of stay of approximately one hour. This type of restaurant is usually moderately priced and frequently belongs at a restaurant chain. Generally, these restaurants serve lunch and dinner; they may also be open for breakfast. and are sometimes open 24 hours per day. These restaurants typically do not take reservations. Patrons commonly wait to be seated, are served by a waiter/waitress, order from menus and pay for their meal after they eat. Some facilities contained within this land use may also contain a bar area for serving food and alcholic drinks. Quality restaurant (Land Use 931), fast-food restaurant without drive-through window (Land Use 933), fast-food restaurant with drive-through window (Land Use 934) and fast-food restaurant with drive-through window and no indoor seating (Land Use 935) are related uses.
A67: 933 | B67: Fast-Food Restaurant without Drive-Through | C67: 933 – Fast-Food Restaurant without Drive-Through | D67: 1,000 SFGFA | E67: 1000 | F67: SFGFA | G67: SFGFA = Square Feet of Gross Floor Area | I67: 0 | J67: 0.3975 | K67: 0 | L67: 0 | M67: 0 | N67: 0 | O67: 0 | P67: 0 | Q67: This land use includes fast-food restaurants without drive-through windows. This type of restaurant is characterized by a large carry-out clientele, long hours of service (some are open for breakfast, all are open for lunch and dinner, some are open late at night or 24 hours a day) and high turnover rates for eat-in customers. These limited-service eating establishments do not provide table service. Patrons generally order at a cash register and pay before they eat. High-turnover (sit-down) restaurant (Land Use 932), fast-food restaurant with drive-through window (Land Use 934) and fast-food restaurant with drive-through window and no indoor seating (Land Use 935) are related uses.
A68: 934 | B68: Fast-Food Restaurant with Drive-Through | C68: =A68&" – "&B68 -> 934 – Fast-Food Restaurant with Drive-Through | D68: 1,000 SFGFA | E68: 1000 | F68: SFGFA | G68: SFGFA = Square Feet of Gross Floor Area | I68: 496.12 | J68: 0.4094444444 | K68: 203.1335778 | L68: 326.5598495 | M68: =IFERROR(L68*$B$79,"") -> 56392.96729 | N68: =IFERROR(L68*$B$80,"") -> 308521.9896 | O68: =IFERROR(L68*$B$81,"") -> 7540.920044 | P68: =SUM(M68:O68) -> 372455.877 | Q68: This category includes fast-food restaurants with drive-through windows. This type of restaurant is characterized by a large drive-through clientele, long hours of service (some are open for breakfast, all are open for lunch and dinner, some are open late at night or 24 hours a day) and high turnover rates for eat-in customers. These limited-service eating establishments do not provide table service. Non-drive-through patrons generally order at a cash register and pay before they eat. High-turnover (sit-down) restaurant (Land Use 932), fast-food restaurant without drive-through window (Land Use 933) and fast-food restaurant with drive-through window and no indoor seating (Land Use 935) are related uses.
A69: 936 | B69: Coffee/Donut Shop without Drive-Through | C69: 936 – Coffee/Donut Shop without Drive-Through | D69: 1,000 SFGFA | E69: 1000 | F69: SFGFA | G69: SFGFA = Square Feet of Gross Floor Area | I69: 0 | J69: 0.1075 | K69: =IFERROR(I69*J69,"") -> 0 | L69: =IFERROR(K69*$A$2,"") -> 0 | M69: 0 | N69: 0 | O69: 0 | P69: 0 | Q69: This land use includes single-tenant coffee and donut restaurants without drive-through windows. Freshly brewed coffee and a variety of coffee-related accessories are the primary retail products sold at these sites. They may also sell other refreshment items, such as donuts, bagels, muffins, cakes, sandwiches, wraps, salads and other hot and cold beverages. Some sites may also sell newspapers, music CDs and books. The coffee and donut shops contained in this land use typically hold long store hours (over 15 hours) with an early monring opening. Also, limited indoor seating is generally provided for patrons; however, table service is not provided. Coffee/donut shop with drive-through window (Land Use 937), coffee/donut shop with drive-through window and no indoor seating (Land Use 938), bread/donut/bagel shop without drive-through window (Land Use 939) and bread/donut/bagel shop with drive-through window (Land Use 940) are related uses.
A70: 937 | B70: Coffee/Donut Shop with Drive-Through | C70: 937 – Coffee/Donut Shop with Drive-Through | D70: 100 SFGFA | E70: 100 | F70: SFGFA | G70: SFGFA = Square Feet of Gross Floor Area | I70: 81.858 | J70: 0.1094444444 | K70: 8.958903333 | L70: 14.40243487 | M70: 2487.127673 | N70: 13606.90198 | O70: 332.581026 | P70: 16426.61068 | Q70: This land use includes single-tenant coffee and donut restaurants with drive-through windows. Freshly brewed coffee and a variety of coffee-related accessories are the primary retail products sold at these sites. They may also sell other refreshment items, such as donuts, bagels, muffins, cakes, sandwiches, wraps, salads and other hot and cold beverages. Some sites may also sell newspapers, music CDs and books. The coffee and donut shops contained in this land use typically hold long store hours (over 15 hours) with an early monring opening. Also, limited indoor seating is generally provided for patrons; however, table service is not provided. Coffee/donut shop without drive-through window (Land Use 936), coffee/donut shop with drive-through window and no indoor seating (Land Use 938), bread/donut/bagel shop without drive-through window (Land Use 939) and bread/donut/bagel shop with drive-through window (Land Use 940) are related uses.
A71: 938 | B71: Coffee/Donut Kiosk | C71: 938 – Coffee/Donut Kiosk | D71: 100 SFGFA | E71: 100 | F71: SFGFA | G71: SFGFA = Square Feet of Gross Floor Area | I71: 180 | J71: 0.11 | K71: 19.8 | L71: 31.83070515 | M71: 5496.78081 | N71: 30072.50432 | O71: 735.0346433 | P71: 36304.31977 | Q71: This land use includes single-tenant coffee and donut restaurants with drive-through windows. Freshly brewed coffee and a variety of coffee-related accessories are the primary retail products sold at these sites. They may also sell other refreshment items, such as donuts, bagels, muffins, cakes, sandwiches, wraps, salads and other hot and cold beverages. Some sites may also sell newspapers, music CDs and books. The coffee and donut shops contained in this land use typically hold long store hours (over 15 hours) with an early monring opening. Coffee/donut shop without drive-through window (Land Use 936), coffee/donut shop with drive-through window (Land Use 937), bread/donut/bagel shop without drive-through window (Land Use 939) and bread/donut/bagel shop with drive-through window (Land Use 940) are related uses.
A72: 944 | B72: Gasoline/Service Station | C72: 944 – Gasoline/Service Station | D72: VFP | E72: 1 | F72: VFP | G72: VFP = Vehicle Fueling Position | I72: 168.56 | J72: 0.35 | K72: 58.996 | L72: 94.84264045 | M72: 16378.18589 | N72: 89603.91236 | O72: 2190.106253 | P72: 108172.2045 | Q72: This land use includes gasoline/service stations where the primary business is the fueling of motor vehicles. These service stations may also have ancillary facilities for servicing and repairing motor vehicles. Service stations are generally located at intersections or interchanges. Service stations with convenience stores and car washes are not included in this land use. Convenience market with gasoline pumps (Land Use 853), gasoline/service station with convenience market (Land Use 945), gasoline/service station with convenience market and car wash (Land Use 946) and truck stop (Land Use 950) are related uses.
A73: 945 | B73: Gasoline/Service Station with Convenience Market | C73: 945 – Gasoline/Service Station with Convenience Market | D73: VFP | E73: 1 | F73: VFP | G73: VFP = Vehicle Fueling Position | I73: 162.78 | J73: 0.1277777778 | K73: 20.79966667 | L73: 33.43778065 | M73: 5774.303465 | N73: 31590.8114 | O73: 772.1452307 | P73: 38137.26009 | Q73: This land use includes gasoline/service stations with convenience markets where the primary business is the fueling of motor vehicles. These service stations may also have ancillary facilities for servicing and repairing motor vehicles. Some commonly sold convenience items are newspapers, coffee or other beverages and snack items that are usually consumed in a car. These service stations are generally located at intersections or interchanges. This land use does not include states with car wases. Convenience market (open 24 hours) (Land Use 851), convenience market (open 15-16 hours) (Land Use 852), convenience market with gasoline pumps (Land Use 853), gasoline/service station (Land Use 944), gasoline/service station with convenience market and car wash (Land Use 946) and truck stop (Land Use 950) are related uses.
A74: 946 | B74: Gasoline/Service Station with Car Wash | C74: 946 – Gasoline/Service Station with Car Wash | D74: VFP | E74: 1 | F74: VFP | G74: VFP = Vehicle Fueling Position | I74: 152.84 | J74: 0.2388888889 | K74: 36.51177778 | L74: 58.69674913 | M74: 10136.22421 | N74: 55454.5755 | O74: 1355.425331 | P74: 66946.22504 | Q74: This land use includes gasoline/service stations with convenience markets and car washed where the primary business is the fueling of motor vehicles. They may also have ancillary facilities for servicing and repairing motor vehicles. These service stations are generally located at intersections or interchanges. Convenience market (open 24 hours) (Land Use 851), convenience market (open 15-16 hours) (Land Use 852), convenience market with gasoline pumps (Land Use 853), gasoline/service station (Land Use 944), gasoline/service station with convenience market (Land Use 945) are related uses.
A78: Total System Development Charge | D78: 1.025
A79: Reimbursement Fee | B79: =1.004*172 -> 172.688 | C79: per ADPT
A80: Improvement Fee | B80: =1.004*941 -> 944.764 | C80: per ADPT
A81: Compliance Fee | B81: =1.004*23 -> 23.092 | C81: per ADPT
A82: Total SDC | B82: =SUM(B79:B81) -> 1140.544 | C82: per ADPT
A85: SDC Table: Washington County TDT Rates
A87: ITE Code | B87: TDT Land Use Category | C87: Category Blend | D87: TDT Unit | E87: TDT SDC
A88: 30 | B88: Truck Terminal | C88: =TSDC13[[#This Row],[ITE Code]] & " - " & TSDC13[[#This Row],[TDT Land Use Category]] -> 30 - Truck Terminal | D88: TSFGFA | E88: 6634
A89: 110 | B89: General Light Industrial | C89: =TSDC13[[#This Row],[ITE Code]] & " - " & TSDC13[[#This Row],[TDT Land Use Category]] -> 110 - General Light Industrial | D89: TSFGFA | E89: 8819
A90: 120 | B90: General Heavy Industrial | C90: =TSDC13[[#This Row],[ITE Code]] & " - " & TSDC13[[#This Row],[TDT Land Use Category]] -> 120 - General Heavy Industrial | D90: TSFGFA | E90: 1898
A91: 140 | B91: Manufacturing | C91: =TSDC13[[#This Row],[ITE Code]] & " - " & TSDC13[[#This Row],[TDT Land Use Category]] -> 140 - Manufacturing | D91: TSFGFA | E91: 4854
A92: 150 | B92: Warehouse | C92: =TSDC13[[#This Row],[ITE Code]] & " - " & TSDC13[[#This Row],[TDT Land Use Category]] -> 150 - Warehouse | D92: TSFGFA | E92: 6229
A93: 151 | B93: Mini-Warehouse | C93: =TSDC13[[#This Row],[ITE Code]] & " - " & TSDC13[[#This Row],[TDT Land Use Category]] -> 151 - Mini-Warehouse | D93: TSFGFA | E93: 3230
A94: 170 | B94: Utilities | C94: =TSDC13[[#This Row],[ITE Code]] & " - " & TSDC13[[#This Row],[TDT Land Use Category]] -> 170 - Utilities | D94: TSFGFA | E94: 8383
A95: 210 | B95: Single Family Detached | C95: =TSDC13[[#This Row],[ITE Code]] & " - " & TSDC13[[#This Row],[TDT Land Use Category]] -> 210 - Single Family Detached | D95: Dwelling Unit | E95: 12433
A96: 220 | B96: Apartment | C96: =TSDC13[[#This Row],[ITE Code]] & " - " & TSDC13[[#This Row],[TDT Land Use Category]] -> 220 - Apartment | D96: Dwelling Unit | E96: 8135
A97: 230 | B97: Residential Condominium/Townhouse | C97: =TSDC13[[#This Row],[ITE Code]] & " - " & TSDC13[[#This Row],[TDT Land Use Category]] -> 230 - Residential Condominium/Townhouse | D97: Dwelling Unit | E97: 7437
A98: 240 | B98: Manufactured Housing (in Park) | C98: =TSDC13[[#This Row],[ITE Code]] & " - " & TSDC13[[#This Row],[TDT Land Use Category]] -> 240 - Manufactured Housing (in Park) | D98: Dwelling Unit | E98: 6222
A99: 254 | B99: Assisted Living | C99: =TSDC13[[#This Row],[ITE Code]] & " - " & TSDC13[[#This Row],[TDT Land Use Category]] -> 254 - Assisted Living | D99: Bed | E99: 3844
A100: 255 | B100: Continuing Care Retirement | C100: =TSDC13[[#This Row],[ITE Code]] & " - " & TSDC13[[#This Row],[TDT Land Use Category]] -> 255 - Continuing Care Retirement | D100: Unit | E100: 3887
A101: 310 | B101: Hotel/Motel | C101: =TSDC13[[#This Row],[ITE Code]] & " - " & TSDC13[[#This Row],[TDT Land Use Category]] -> 310 - Hotel/Motel | D101: Room | E101: 3531
A102: 411 | B102: Park | C102: =TSDC13[[#This Row],[ITE Code]] & " - " & TSDC13[[#This Row],[TDT Land Use Category]] -> 411 - Park | D102: Acre | E102: 2085
A103: 430 | B103: Golf Course | C103: =TSDC13[[#This Row],[ITE Code]] & " - " & TSDC13[[#This Row],[TDT Land Use Category]] -> 430 - Golf Course | D103: Hole | E103: 22101
A104: 432 | B104: Golf Driving Range | C104: =TSDC13[[#This Row],[ITE Code]] & " - " & TSDC13[[#This Row],[TDT Land Use Category]] -> 432 - Golf Driving Range | D104: Tee | E104: 17486
A105: 435 | B105: Multipurpose Recreational/Arcade | C105: =TSDC13[[#This Row],[ITE Code]] & " - " & TSDC13[[#This Row],[TDT Land Use Category]] -> 435 - Multipurpose Recreational/Arcade | D105: TSFGFA | E105: 3893
A106: 437 | B106: Bowling Alley | C106: =TSDC13[[#This Row],[ITE Code]] & " - " & TSDC13[[#This Row],[TDT Land Use Category]] -> 437 - Bowling Alley | D106: Lane | E106: 1265
A107: 445 | B107: Multiplex Movie Theater | C107: =TSDC13[[#This Row],[ITE Code]] & " - " & TSDC13[[#This Row],[TDT Land Use Category]] -> 445 - Multiplex Movie Theater | D107: Screen | E107: 174625
A108: 492 | B108: Health/Fitness Club | C108: =TSDC13[[#This Row],[ITE Code]] & " - " & TSDC13[[#This Row],[TDT Land Use Category]] -> 492 - Health/Fitness Club | D108: TSFGFA | E108: 12244
A109: 495 | B109: Recreation/Community Center | C109: =TSDC13[[#This Row],[ITE Code]] & " - " & TSDC13[[#This Row],[TDT Land Use Category]] -> 495 - Recreation/Community Center | D109: TSFGFA | E109: 14441
A110: 520 | B110: Elementary School (Public) | C110: =TSDC13[[#This Row],[ITE Code]] & " - " & TSDC13[[#This Row],[TDT Land Use Category]] -> 520 - Elementary School (Public) | D110: Student | E110: 599
A111: 522 | B111: Middle/Junior High School (Public) | C111: =TSDC13[[#This Row],[ITE Code]] & " - " & TSDC13[[#This Row],[TDT Land Use Category]] -> 522 - Middle/Junior High School (Public) | D111: Student | E111: 680
A112: 530 | B112: High School (Public) | C112: =TSDC13[[#This Row],[ITE Code]] & " - " & TSDC13[[#This Row],[TDT Land Use Category]] -> 530 - High School (Public) | D112: Student | E112: 935
A113: 536 | B113: Private School (K-12) | C113: =TSDC13[[#This Row],[ITE Code]] & " - " & TSDC13[[#This Row],[TDT Land Use Category]] -> 536 - Private School (K-12) | D113: Student | E113: 694
A114: 540 | B114: Junior College | C114: =TSDC13[[#This Row],[ITE Code]] & " - " & TSDC13[[#This Row],[TDT Land Use Category]] -> 540 - Junior College | D114: Student | E114: 978
A115: 550 | B115: University/College | C115: =TSDC13[[#This Row],[ITE Code]] & " - " & TSDC13[[#This Row],[TDT Land Use Category]] -> 550 - University/College | D115: Student | E115: 1619
A116: 560 | B116: Church | C116: =TSDC13[[#This Row],[ITE Code]] & " - " & TSDC13[[#This Row],[TDT Land Use Category]] -> 560 - Church | D116: TSFGFA | E116: 5150
A117: 565 | B117: Day Care Center/Preschool | C117: =TSDC13[[#This Row],[ITE Code]] & " - " & TSDC13[[#This Row],[TDT Land Use Category]] -> 565 - Day Care Center/Preschool | D117: Student | E117: 1918
A118: 590 | B118: Library | C118: =TSDC13[[#This Row],[ITE Code]] & " - " & TSDC13[[#This Row],[TDT Land Use Category]] -> 590 - Library | D118: TSFGFA | E118: 24159
A119: 610 | B119: Hospital | C119: =TSDC13[[#This Row],[ITE Code]] & " - " & TSDC13[[#This Row],[TDT Land Use Category]] -> 610 - Hospital | D119: Bed | E119: 4898
A120: 620 | B120: Nursing Home | C120: =TSDC13[[#This Row],[ITE Code]] & " - " & TSDC13[[#This Row],[TDT Land Use Category]] -> 620 - Nursing Home | D120: Bed | E120: 1683
A121: 630 | B121: Clinic | C121: =TSDC13[[#This Row],[ITE Code]] & " - " & TSDC13[[#This Row],[TDT Land Use Category]] -> 630 - Clinic | D121: TSFGFA | E121: 34941
A122: 710 | B122: General Office Building | C122: =TSDC13[[#This Row],[ITE Code]] & " - " & TSDC13[[#This Row],[TDT Land Use Category]] -> 710 - General Office Building | D122: TSFGFA | E122: 13049
A123: 720 | B123: Medical-Dental Office Building | C123: =TSDC13[[#This Row],[ITE Code]] & " - " & TSDC13[[#This Row],[TDT Land Use Category]] -> 720 - Medical-Dental Office Building | D123: TSFGFA | E123: 44213
A124: 730 | B124: Government Office Building | C124: =TSDC13[[#This Row],[ITE Code]] & " - " & TSDC13[[#This Row],[TDT Land Use Category]] -> 730 - Government Office Building | D124: TSFGFA | E124: 86578
A125: 732 | B125: U.S. Post Office | C125: =TSDC13[[#This Row],[ITE Code]] & " - " & TSDC13[[#This Row],[TDT Land Use Category]] -> 732 - U.S. Post Office | D125: TSFGFA | E125: 110991
A126: 750 | B126: Office Park | C126: =TSDC13[[#This Row],[ITE Code]] & " - " & TSDC13[[#This Row],[TDT Land Use Category]] -> 750 - Office Park | D126: TSFGFA | E126: 17256
A127: 812 | B127: Building Materials/Lumber | C127: =TSDC13[[#This Row],[ITE Code]] & " - " & TSDC13[[#This Row],[TDT Land Use Category]] -> 812 - Building Materials/Lumber | D127: TSFGFA | E127: 12411
A128: 813 | B128: Free-Standing Discount Superstore with Groceries | C128: =TSDC13[[#This Row],[ITE Code]] & " - " & TSDC13[[#This Row],[TDT Land Use Category]] -> 813 - Free-Standing Discount Superstore with Groceries | D128: TSFGFA | E128: 23724
A129: 814 | B129: Specialty Retail Center | C129: =TSDC13[[#This Row],[ITE Code]] & " - " & TSDC13[[#This Row],[TDT Land Use Category]] -> 814 - Specialty Retail Center | D129: TSFGLA | E129: 16498
A130: 815 | B130: Free-Standing Discount Superstore without Groceries | C130: =TSDC13[[#This Row],[ITE Code]] & " - " & TSDC13[[#This Row],[TDT Land Use Category]] -> 815 - Free-Standing Discount Superstore without Groceries | D130: TSFGFA | E130: 25457
A131: 816 | B131: Hardware/Paint Store | C131: =TSDC13[[#This Row],[ITE Code]] & " - " & TSDC13[[#This Row],[TDT Land Use Category]] -> 816 - Hardware/Paint Store | D131: TSFGFA | E131: 20714
A132: 817 | B132: Nursery/Garden Center | C132: =TSDC13[[#This Row],[ITE Code]] & " - " & TSDC13[[#This Row],[TDT Land Use Category]] -> 817 - Nursery/Garden Center | D132: TSFGFA | E132: 14669
A133: 820 | B133: Shopping Center | C133: =TSDC13[[#This Row],[ITE Code]] & " - " & TSDC13[[#This Row],[TDT Land Use Category]] -> 820 - Shopping Center | D133: TSFGLA | E133: 17074
A134: 823 | B134: Factory Outlet Center | C134: =TSDC13[[#This Row],[ITE Code]] & " - " & TSDC13[[#This Row],[TDT Land Use Category]] -> 823 - Factory Outlet Center | D134: TSFGFA | E134: 13392
A135: 841 | B135: New Car Sales | C135: =TSDC13[[#This Row],[ITE Code]] & " - " & TSDC13[[#This Row],[TDT Land Use Category]] -> 841 - New Car Sales | D135: TSFGFA | E135: 19228
A136: 843 | B136: Automobile Parts Sales | C136: =TSDC13[[#This Row],[ITE Code]] & " - " & TSDC13[[#This Row],[TDT Land Use Category]] -> 843 - Automobile Parts Sales | D136: TSFGFA | E136: 18518
A137: 849 | B137: Tire Superstore | C137: =TSDC13[[#This Row],[ITE Code]] & " - " & TSDC13[[#This Row],[TDT Land Use Category]] -> 849 - Tire Superstore | D137: TSFGFA | E137: 14548
A138: 850 | B138: Supermarket | C138: =TSDC13[[#This Row],[ITE Code]] & " - " & TSDC13[[#This Row],[TDT Land Use Category]] -> 850 - Supermarket | D138: TSFGFA | E138: 34420
A139: 851 | B139: Convenience Market (24-hour) | C139: =TSDC13[[#This Row],[ITE Code]] & " - " & TSDC13[[#This Row],[TDT Land Use Category]] -> 851 - Convenience Market (24-hour) | D139: TSFGFA | E139: 40557
A140: 853 | B140: Convenience Market with Fuel Pump | C140: =TSDC13[[#This Row],[ITE Code]] & " - " & TSDC13[[#This Row],[TDT Land Use Category]] -> 853 - Convenience Market with Fuel Pump | D140: VFP | E140: 38944
A141: 860 | B141: Wholesale Market | C141: =TSDC13[[#This Row],[ITE Code]] & " - " & TSDC13[[#This Row],[TDT Land Use Category]] -> 860 - Wholesale Market | D141: TSFGFA | E141: 9899
A142: 861 | B142: Discount Club | C142: =TSDC13[[#This Row],[ITE Code]] & " - " & TSDC13[[#This Row],[TDT Land Use Category]] -> 861 - Discount Club | D142: TSFGFA | E142: 26727
A143: 862 | B143: Home Improvement Superstore | C143: =TSDC13[[#This Row],[ITE Code]] & " - " & TSDC13[[#This Row],[TDT Land Use Category]] -> 862 - Home Improvement Superstore | D143: TSFGFA | E143: 9957
A144: 863 | B144: Electronics Superstore | C144: =TSDC13[[#This Row],[ITE Code]] & " - " & TSDC13[[#This Row],[TDT Land Use Category]] -> 863 - Electronics Superstore | D144: TSFGFA | E144: 13774
A145: 867 | B145: Office Supply Superstore | C145: =TSDC13[[#This Row],[ITE Code]] & " - " & TSDC13[[#This Row],[TDT Land Use Category]] -> 867 - Office Supply Superstore | D145: TSFGFA | E145: 18518
A146: 880 | B146: Pharmacy/Drugstore without Drive-Thru Window | C146: =TSDC13[[#This Row],[ITE Code]] & " - " & TSDC13[[#This Row],[TDT Land Use Category]] -> 880 - Pharmacy/Drugstore without Drive-Thru Window | D146: TSFGFA | E146: 18518
A147: 881 | B147: Pharmacy/Drugstore with Drive-Thru Window | C147: =TSDC13[[#This Row],[ITE Code]] & " - " & TSDC13[[#This Row],[TDT Land Use Category]] -> 881 - Pharmacy/Drugstore with Drive-Thru Window | D147: TSFGFA | E147: 18518
A148: 890 | B148: Furniture Store | C148: =TSDC13[[#This Row],[ITE Code]] & " - " & TSDC13[[#This Row],[TDT Land Use Category]] -> 890 - Furniture Store | D148: TSFGFA | E148: 2338
A149: 911 | B149: Bank/Savings: Walk-in | C149: =TSDC13[[#This Row],[ITE Code]] & " - " & TSDC13[[#This Row],[TDT Land Use Category]] -> 911 - Bank/Savings: Walk-in | D149: TSFGFA | E149: 38334
A150: 912 | B150: Bank/Savings: Drive-in | C150: =TSDC13[[#This Row],[ITE Code]] & " - " & TSDC13[[#This Row],[TDT Land Use Category]] -> 912 - Bank/Savings: Drive-in | D150: TSFGFA | E150: 40557
A151: 931 | B151: Quality Restaurant (not a chain) | C151: =TSDC13[[#This Row],[ITE Code]] & " - " & TSDC13[[#This Row],[TDT Land Use Category]] -> 931 - Quality Restaurant (not a chain) | D151: TSFGFA | E151: 36811
A152: 932 | B152: High Turnover, Sit-Down Restaurant (chain or stand alone) | C152: =TSDC13[[#This Row],[ITE Code]] & " - " & TSDC13[[#This Row],[TDT Land Use Category]] -> 932 - High Turnover, Sit-Down Restaurant (chain or stand alone) | D152: TSFGFA | E152: 30879
A153: 933 | B153: Fast Food Restaurant (No Drive-Thru) | C153: =TSDC13[[#This Row],[ITE Code]] & " - " & TSDC13[[#This Row],[TDT Land Use Category]] -> 933 - Fast Food Restaurant (No Drive-Thru) | D153: TSFGFA | E153: 40557
A154: 934 | B154: Fast Food Restaurant (with Drive-Thru) | C154: =TSDC13[[#This Row],[ITE Code]] & " - " & TSDC13[[#This Row],[TDT Land Use Category]] -> 934 - Fast Food Restaurant (with Drive-Thru) | D154: TSFGFA | E154: 40557
A155: 935 | B155: Drive-Thru Restaurant (No Seating) | C155: =TSDC13[[#This Row],[ITE Code]] & " - " & TSDC13[[#This Row],[TDT Land Use Category]] -> 935 - Drive-Thru Restaurant (No Seating) | D155: TSFGFA | E155: 40557
A156: 936 | B156: Drinking Place/Bar | C156: =TSDC13[[#This Row],[ITE Code]] & " - " & TSDC13[[#This Row],[TDT Land Use Category]] -> 936 - Drinking Place/Bar | D156: TSFGFA | E156: 33181
A157: 941 | B157: Quick Lubrication Vehicle Shop | C157: =TSDC13[[#This Row],[ITE Code]] & " - " & TSDC13[[#This Row],[TDT Land Use Category]] -> 941 - Quick Lubrication Vehicle Shop | D157: Service Stall | E157: 28368
A158: 942 | B158: Automobile Care Center | C158: =TSDC13[[#This Row],[ITE Code]] & " - " & TSDC13[[#This Row],[TDT Land Use Category]] -> 942 - Automobile Care Center | D158: TSFGLA | E158: 19272
A159: 944 | B159: Gasoline/Service Station (no Market or Car Wash) | C159: =TSDC13[[#This Row],[ITE Code]] & " - " & TSDC13[[#This Row],[TDT Land Use Category]] -> 944 - Gasoline/Service Station (no Market or Car Wash) | D159: VFP | E159: 24335
A160: 946 | B160: Gasoline/Service Station (with Market and Car Wash) | C160: =TSDC13[[#This Row],[ITE Code]] & " - " & TSDC13[[#This Row],[TDT Land Use Category]] -> 946 - Gasoline/Service Station (with Market and Car Wash) | D160: VFP | E160: 24335

Sheet STORM
C2: CHARGES & CREDITS » STORMWATER | H2: City of Wilsonville, OR
H3: Community Development
A6: TYPE | C6: SUBJECT PROPERTY: | D6: =IF(ISBLANK(START!SITEADDR),"",IF(ISBLANK(START!SUITE),START!SITEADDR,START!SITEADDR & ", " & START!SUITE)) -> 
C9: STORMWATER » CHARGES
A10: R | C10: RESIDENTIAL DEVELOPMENT1
A11: R
A12: R | C12: CALCULATION TYPE | F12: UNIT | G12: RATE
A13: R | C13: ='_SDC Storm'!A4 -> Residential Dwelling Unit | F13: DU2 | G13: ='_SDC Storm'!D4 -> 2442
A14: R | C14: UNIT COUNT | D14: APPLIED CREDIT | E14: ADJUSTED CREDIT | F14: SDC ESTIMATE
A15: R | E15: =IF(ISNUMBER(UNIT_COUNT_RES),IF(ISNUMBER(APPLIED_CREDIT_RES),UNIT_COUNT_RES-APPLIED_CREDIT_RES,UNIT_COUNT_RES),"") ->  | F15: =IF(ISNUMBER(G13),IF(ISNUMBER(UNIT_COUNT_RES),ROUNDUP(G13*E15,0),""),"") -> 
A16: R | C16: 1 For Multifamily development, select "Multifamily" under the RESIDENTIAL SUBCATEGORY on the START worksheet.
A17: R | C17: 2 DU = Dwelling Unit
A18: C/I | C18: COMMERCIAL, INDUSTRIAL, OR MULTIFAMILY DEVELOPMENT
A19: C/I
A20: C/I | C20: CALCULATION TYPE | F20: UNIT | G20: RATE
A21: C/I | C21: ='_SDC Storm'!A5 -> Impervious Surface Area | F21: SFISA1 | G21: ='_SDC Storm'!D5 -> 0.89
A22: C/I | C22: AREA QUANTITY | D22: UNIT | E22: IMPERVIOUS SURFACE AREA DESCRIPTION
A23: C/I | D23: =IF(ISNUMBER(C23),"SFISA","") -> 
A24: C/I | D24: =IF(ISNUMBER(C24),"SFISA","") -> 
A25: C/I | D25: =IF(ISNUMBER(C25),"SFISA","") -> 
A26: C/I | D26: =IF(ISNUMBER(C26),"SFISA","") -> 
A27: C/I | D27: =IF(ISNUMBER(C27),"SFISA","") -> 
A28: C/I | C28: UNIT COUNT | D28: APPLIED CREDIT | E28: ADJUSTED COUNT | F28: SDC ESTIMATE
A29: C/I | C29: =IF(SUM(C23:C27)=0,"",SUM(C23:C27)) ->  | E29: =IF(ISNUMBER(C29),C29-APPLIED_CREDIT_COMIND,"") ->  | F29: =IF(ISNUMBER(C29),IF(ISBLANK(APPLIED_CREDIT_COMIND),$G$21*C29,IF($G$21*E29<0,0,$G$21*E29)),"") -> 
A30: C/I | C30: 1 SFISA = Square Foot of Impervious Surface Area
C32: STORMWATER » CREDITS
C33: IDENTIFY CREDITS
C35: ASSOCIATED PROPERTY ADDRESS
C37: CREDIT TYPE
C39: SFISA = Square Foot of Impervious Surface Area
C41: APPLY CREDITS
C43: APPLY CREDIT | D43: CREDIT BALANCE
C46: STORMWATER » NOTES

Sheet _SDC Storm (hidden)
A1: SDC Table: Storm
A3: Calculation Type | B3: Unit | C3: Unit Long | D3: Cost per Unit | E3: Calculation Type Description | I3: 1.004
A4: Residential Dwelling Unit | B4: DU | C4: Dwelling Unit | D4: =J4 -> 2442 | E4: <Description Needed> | H4: 2432 | I4: =H4*$I$3 -> 2441.728 | J4: =ROUND(I4,0) -> 2442 | K4: 0.025
A5: Impervious Surface Area | B5: SFISA1 | C5: Square Foot of Impervious Surface Area | D5: =J5 -> 0.89 | E5: <Description Needed> | H5: =2442/2750 -> 0.888 | I5: =H5*$I$3 -> 0.891552 | J5: =ROUND(I5,2) -> 0.89 | K5: 0.025
A7: Credit Type: Storm
A9: Credit Type
A10: Dwelling Unit
A11: SFISA

Sheet PARKS
C2: CHARGES & CREDITS » PARKS | H2: City of Wilsonville, OR
H3: Community Development
A6: TYPE | C6: SUBJECT PROPERTY: | D6: =IF(ISBLANK(START!SITEADDR),"",IF(ISBLANK(START!SUITE),START!SITEADDR,START!SITEADDR & ", " & START!SUITE)) -> 
C9: PARKS » CHARGES
A10: R | C10: RESIDENTIAL DEVELOPMENT
A11: R
A12: R | C12: DEVELOPMENT TYPE | F12: UNIT | G12: RATE
A13: R | C13: Single Family/Duplex | F13: DU | G13: =IF(ISBLANK(C13),"",INDEX('_SDC Parks'!E4:E6,MATCH(PARKS!C13,'_SDC Parks'!A4:A6,0))) -> 14056
A14: R | C14: DEVELOPMENT TYPE DESCRIPTION
A15: R
A16: R | C16: =IF(ISBLANK(C13),"",IF(ISBLANK(INDEX('_SDC Parks'!B4:B6,MATCH(PARKS!C13,'_SDC Parks'!A4:A6,0))),"",INDEX('_SDC Parks'!B4:B6,MATCH(PARKS!C13,'_SDC Parks'!A4:A6,0)))) -> Unit count to be entered per Dwelling Unit
A17: R | C17: UNIT COUNT | D17: APPLIED CREDIT | E17: ADJUSTED COUNT | F17: SDC ESTIMATE
A18: R | E18: =IF(ISNUMBER(UNIT_COUNT_RES),IF(ISNUMBER(APPLIED_CREDIT_RES),UNIT_COUNT_RES-APPLIED_CREDIT_RES,UNIT_COUNT_RES),"") ->  | F18: =IF(ISNUMBER(UNIT_COUNT_RES),IF(ISBLANK(APPLIED_CREDIT_RES),G13*UNIT_COUNT_RES,G13*E18),"") -> 
A19: R | C19: DU = Dwelling Unit
A20: C/I | C20: COMMERCIAL / INDUSTRIAL DEVELOPMENT
A21: C/I
A22: C/I | C22: DEVELOPMENT TYPE | F22: UNIT | G22: RATE
A23: C/I | C23: Manufacturing SIC 27: Printing, Publishing, & Allied | F23: TGSF | G23: =IF(ISBLANK(C23),"",INDEX('_SDC Parks'!E7:E28,MATCH(PARKS!C23,'_SDC Parks'!A5:A28,0))) -> 656.09392
A24: C/I | C24: DEVELOPMENT TYPE DESCRIPTION
A25: C/I
A26: C/I | C26: =IF(ISBLANK(C23),"",IF(ISBLANK(INDEX('_SDC Parks'!B5:B28,MATCH(C23,'_SDC Parks'!A5:A28,0))),"",INDEX('_SDC Parks'!B5:B28,MATCH(C23,'_SDC Parks'!A5:A28,0)))) -> Includes any establishments engaged in printing, bookbinding, and platemaking. This category also includes establishments publishing materials, regardless of whether the printing is performed at the establishment. However, news syndicates are classified in SIC 73.
A27: C/I | C27: UNIT COUNT | D27: BASE SDC ESTIMATE | E27: APPLIED CREDIT | F27: SDC ESTIMATE
A28: C/I | D28: =IF(ISNUMBER(UNIT_COUNT_COMIND),G23*UNIT_COUNT_COMIND,"") ->  | F28: =IF(ISNUMBER(C28),IF(ISBLANK(APPLIED_CREDIT_COMIND),BASE_SDC_COMIND,BASE_SDC_COMIND-APPLIED_CREDIT_COMIND),"") -> 
A29: C/I | C29: TGSF = Thousand Gross Square Feet
C31: PARKS » CREDITS
C32: IDENTIFY CREDITS
C34: ASSOCIATED PROPERTY ADDRESS
C36: CREDIT DEVELOPMENT TYPE
C38: RATE | D38: UNIT | E38: UNIT COUNT | F38: CREDIT VALUE
C39: =IF(ISBLANK(C37),"",INDEX(SewerSDC56[Cost per Unit],MATCH(PARKS!C37,SewerSDC56[Development Type],0))) ->  | D39: =IF(ISBLANK(CREDIT_DEVELOPMENT_TYPE),"",INDEX(SewerSDC56[Unit],MATCH(PARKS!CREDIT_DEVELOPMENT_TYPE,SewerSDC56[Development Type],0))) ->  | F39: =IF(ISBLANK(CREDIT_DEVELOPMENT_TYPE),"",IF(ISNUMBER(CREDIT_QUANTITY),ROUNDUP(C39*CREDIT_QUANTITY,0),"")) -> 
C40: =IF(ISBLANK(CREDIT_DEVELOPMENT_TYPE),"",INDEX('_SDC Parks'!D4:D28,MATCH(PARKS!CREDIT_DEVELOPMENT_TYPE,'_SDC Parks'!A4:A28,0))) -> 
C42: APPLY CREDITS
C44: DEVELOPMENT TYPE | E44: APPLY CREDIT | F44: CREDIT BALANCE
C47: PARKS » NOTES

Sheet _SDC Parks (hidden)
A1: SDC Table: Parks
A3: Development Type | B3: Development Type Description | C3: Unit | D3: Unit Long | E3: Cost per Unit | F3: Unit Factor
A4: Single Family/Duplex | B4: Unit count to be entered per Dwelling Unit | C4: DU | D4: DU = Dwelling Unit | E4: =14000*1.004 -> 14056 | F4: 1
A5: Mobile Home Dwelling Unit | B5: Unit count to be entered per Dwelling Unit | C5: DU | D5: DU = Dwelling Unit | E5: =10208*1.004 -> 10248.832 | F5: 1
A6: Multifamily | B6: Unit count to be entered per Dwelling Unit | C6: DU | D6: DU = Dwelling Unit | E6: =9403.89*1.004 -> 9441.50556 | F6: 1
A8: SIC 1-19: Agriculture; Fish & Forest Services; Construction; Mining | B8: Includes establishments engaged in the production of crops, livestock, and animal specialties, or providing agricultural services. This category also includes any forestry, fishing, hunting, or trapping establishments. General building contractors, electrical work, utility construction, and heavy construction establishments are also included in this category, as well as those related to the extraction of oil, gas, ores, and quarries. | C8: TGSF | D8: TGSF = Thousand Gross Square Feet | E8: =1.004*465.19 -> 467.05076 | F8: 1000
A9: Manufacturing SIC 20: Food & Kindred Products | B9: Includes any establishments processing food and beverages for human consumption, such as meat packing, producing dairy products, ice creams, malt beverages, and bottled and canned soft drinks. This category also includes related products, such as manufactured ice, production of oils, and prepared feeds for animals. | C9: TGSF | D9: TGSF = Thousand Gross Square Feet | E9: =1.004*435.65 -> 437.3926 | F9: 1000
A10: Manufacturing SIC 22, 23: Textile & Apparel | B10: Includes any establishments preparing fibers, manufacturing yarns and similar materials, manufacturing fabrics, carpets, and rugs, dyeing or finishing such products, coating or waterproofing or otherwise treating fabrics, or manufacturing felt goods and other miscellaneous textiles. It also includes establishments producing clothing and other products which are produced by cutting and sewing purchased textiles. | C10: TGSF | D10: TGSF = Thousand Gross Square Feet | E10: =1.004*295.12 -> 296.30048 | F10: 1000
A11: Manufacturing SIC 24: Lumber & Wood | B11: Includes any establishments cutting timber and pulpwood, such as sawmills, lath mills, shingle mills, planing mills, and establishments producing finished goods made entirely of wood or related materials. However, the production of finished goods made of wood which are listed in other SIC codes are not included in this category. For example, the production of furniture is captured under SIC 25. | C11: TGSF | D11: TGSF = Thousand Gross Square Feet | E11: =1.004*428.85 -> 430.5654 | F11: 1000
A12: Manufacturing SIC 25, 32, 39: Furniture; Clay, Stone & Glass; Misc | B12: Includes any establishments producing furniture. However, those manufacturing wood kitchen cabinets are contained in SIC 24. This category also includes those manufacturing glass and glass products, cement, clay products, pottery, and other such products using materials such as clay, stone, and sand. Finally, this category also includes the manufacturing of products not contained in other groups, such as jewelry, silverware, musical instruments, dolls, toys, games, athletic goods, pencils, and other such miscellaneous products. | C12: TGSF | D12: TGSF = Thousand Gross Square Feet | E12: =1.004*361.13 -> 362.57452 | F12: 1000
A13: Manufacturing SIC 26: Paper & Allied | B13: Includes any establishments manufacturing pulps and other cellulose fibers, the manufacturing of paper and paperboard, cardboard, plastic films, and sheet. | C13: TGSF | D13: TGSF = Thousand Gross Square Feet | E13: =1.004*171.54 -> 172.22616 | F13: 1000
A14: Manufacturing SIC 27: Printing, Publishing, & Allied | B14: Includes any establishments engaged in printing, bookbinding, and platemaking. This category also includes establishments publishing materials, regardless of whether the printing is performed at the establishment. However, news syndicates are classified in SIC 73. | C14: TGSF | D14: TGSF = Thousand Gross Square Feet | E14: =1.004*609.91 -> 612.34964 | F14: 1000
A15: Manufacturing SIC 28-31: Chemicals, Petroleum, Rubber, Leather | B15: Includes any establishments producing basic chemicals and those manufacturing products using predominantly chemical processes. It also includes establishments refining petroleum, manufacturing paving and roofing materials, or compounding lubricating oils and greases from purchased materials. Further, this category includes establishing manufacturing products from plastic resins and rubber. Finally, this category includes establishments tanning, currying, and finishing hides and skins, and those finishing leather products. | C15: TGSF | D15: TGSF = Thousand Gross Square Feet | E15: =1.004*381.2 -> 382.7248 | F15: 1000
A16: Manufacturing SIC 33, 34: Primary & Fabricated Metals | B16: Includes any establishments smelting and refining metals, rolling, drawing, and alloying metals, and producing coke. This category also includes establishments manufacturing metal products such as metal cans, tinware, hand tools, general hardware, and other metal and wire products. | C16: TGSF | D16: TGSF = Thousand Gross Square Feet | E16: =1.004*653.48 -> 656.09392 | F16: 1000
A17: Manufacturing SIC 35: Machinery Equipment | B17: Includes any establishments manufacturing industrial and commercial machinery such as engines or turbines, farm and garden machinery, construction, or mining equipment, as well as computers. | C17: TGSF | D17: TGSF = Thousand Gross Square Feet | E17: =1.004*914.87 -> 918.52948 | F17: 1000
A18: Manufacturing SIC 36, 38: Electrical Machinery, Equipment | B18: Includes any establishments manufacturing machinery, apparatus, or supplies for the generation, storage, transmission, transformation, or utilization of electricity. This category also includes the manufacture of household appliances such as electrical lighting or wiring equipment, radio and television receiving equipment, or other electrical supplies. The production of industrial machinery and equipment is included in SIC 35. This category also includes establishments manufacturing instruments of measurement, testing, analyzing, or controlling, such as optical lenses, clocks, watches, surgical, medical, and dental instruments, or photographic equipment, among others. | C18: TGSF | D18: TGSF = Thousand Gross Square Feet | E18: =1.004*686.15 -> 688.8946 | F18: 1000
A19: Manfacturing SIC 37: Transportation Equipment | B19: Includes any establishments manufacturing equipment for the transportation of passengers or cargo by land, air, or water. This includes motor vehicles, aircraft, guided missiles, ships, boats, railroad equipment, or other miscellaneous transportation equipment. Note that establishments manufacturing equipment for moving materials on farms, mines, construction sites, within individual plants, in airports, or other locations off highways are included in SIC 35. | C19: TGSF | D19: TGSF = Thousand Gross Square Feet | E19: =1.004*392.02 -> 393.58808 | F19: 1000
A20: TCPU SIC 40-42, 44, 45, 47: Transportatoin & Warehousing | B20: Includes any establishments providing transportation by railroad, bus, subway, or those providing long-distance trucking or transfer services or those engaged in the storage of commercial goods. This category also includes establishing providing freight or passenger transportation on the open seas or inland water, and those providing towing, lighterage, and canal operation. It also includes establishments providing domestic or foreign transportation by air and those who operate airports or provide terminal services. Finally, it also includes establishments providing incidental support to transportation, such as forwarding or packing services, and those arranging passenger or freight transportation. | C20: TGSF | D20: TGSF = Thousand Gross Square Feet | E20: =1.004*83.42 -> 83.75368 | F20: 1000
A21: TCPU SIC 43, 46, 48, 49: Communications & Public Utility | B21: Includes any establishments of the United States Postal Services (USPS) and those establishments which primarily transport mail for the USPS. This category also includes establishments transporting petroleum and other commodities through pipelines, as well as those transporting natural gas. This category includes those establishments providing communication services, such as radio or television broadcasting. Further, this category includes establishments engaged in the generation, transmission, or distribution of electricity or steam. Finally, this category includes establishments providing water and irrigation services, and sanitary services such as the disposal of garbage, sewage, or other wastes. | C21: TGSF | D21: TGSF = Thousand Gross Square Feet | E21: =1.004*596.66 -> 599.04664 | F21: 1000
A22: SIC 50, 51: Wholesale Trade | B22: Includes any establishments engaged in the wholesale distribution of durable or non-durable goods of any kind. | C22: TGSF | D22: TGSF = Thousand Gross Square Feet | E22: =1.004*197.45 -> 198.2398 | F22: 1000
A23: SIC 52-59: Retail Trade | B23: Includes any establishments engaging in the retail distribution of durable or non-durable goods, such as building and gardening supplies, hardware, groceries, apparel or accessory stores, home furniture, or other miscellaneous retail items. It also includes automotive dealers, gasoline service stations, and eating and drinking places such as restaurants, refreshment stands, lunch counters, or bars. | C23: TGSF | D23: TGSF = Thousand Gross Square Feet | E23: =1.004*583.96 -> 586.29584 | F23: 1000
A24: SIC 60-68: Finance, Insurance & Real Estate | B24: Includes any establishments engaged in finance, such as depository institutions, non-depository credit institutions, or security and commodity brokers, dealers, exchanges, or services. It also includes insurance carriers, agents, brokers, and insurance services offices. Finally, it includes real estate offices, holdings, and other investment offices. | C24: TGSF | D24: TGSF = Thousand Gross Square Feet | E24: =1.004*741.79 -> 744.75716 | F24: 1000
A25: SIC 70-79: Non-Health Services | B25: Includes any establishments providing non-health services. These services can include those providing hotels, rooming houses, camps, or other lodging places. It can also include establishments providing personal services, such as laundries, dry-cleaning plants, photographic studios, beauty, and barber shops. Also included in this category – if not included elsewhere – are those establishments providing business services, such as advertising, claim collection, news syndicates, computer programming data processing or help supply services. This category also includes establishments providing automotive repair, rental, leasing, or parking services, as well as those providing miscellaneous repair services. Finally, it also includes any establishments related to the production, distribution, or exhibition of motion pictures, and those providing amusement or entertainment services (if they are not classified elsewhere). | C25: TGSF | D25: TGSF = Thousand Gross Square Feet | E25: =1.004*356.44 -> 357.86576 | F25: 1000
A26: SIC 80: Health Services | B26: Includes any establishments providing medical, surgical, or other health services. This category does not include those providing insurance against hospitalization or medical costs, which are contained in SIC 60-68. | C26: TGSF | D26: TGSF = Thousand Gross Square Feet | E26: =1.004*784.18 -> 787.31672 | F26: 1000
A27: SIC 81-89: Educational, Social & Membership Services | B27: Includes any establishments providing legal, educational, or social services. It also includes museums, art galleries, and botanical or zoological gardens. This category also includes membership organizations such as trade associations, labor unions, professional membership organizations, or political or religious organizations. Further, this category includes those establishments providing engineering, architectural, or surveying services, as well as accounting, auditing, and bookkeeping services. Also included are private households which employ workers who serve on or about the premises. Finally, this category includes all other services not categorized into one of the other SIC codes. | C27: TGSF | D27: TGSF = Thousand Gross Square Feet | E27: =1.004*370.89 -> 372.37356 | F27: 1000
A28: SIC 90-99: Government | B28: Includes any establishments providing executive, legislative, or general government services. It also includes establishments providing justice, public order, or safety. This includes all governmental administration of human resource programs, environmental quality and housing programs, economic programs, public finance, taxation, or monetary policy, as well as national security or international affairs. | C28: TGSF | D28: TGSF = Thousand Gross Square Feet | E28: =1.004*517.85 -> 519.9214 | F28: 1000
A30: Credit Type: Parks
A32: Credit Type
A33: Dwelling Unit
A34: TGSF

Sheet VOUCHERS (hidden)
C2: VOUCHERS | H2: City of Wilsonville, OR
H3: Community Development
A6: HIDE | C6: SUBJECT PROPERTY: | D6: =IF(ISBLANK(START!SITEADDR),"",IF(ISBLANK(START!SUITE),START!SITEADDR,START!SITEADDR & ", " & START!SUITE)) -> 
C9: VOUCHERS
C10: APPLY VOUCHERS
C12: VOUCHER TYPE | D12: ASSOCIATED PROJECT | F12: EXPIRATION DATE | G12: VOUCHER APPLIED
C13: Water
C14: Sanitary Sewer | F14: =IF(ISNUMBER(C14),IF(ISBLANK(APPLIED_CREDIT_RES),BASE_SDC_RES,BASE_SDC_RES-APPLIED_CREDIT_RES),"") -> 
A15: Y | C15: Transportation | F15: =IF(ISNUMBER(C15),IF(ISBLANK(APPLIED_CREDIT_RES),BASE_SDC_RES,BASE_SDC_RES-APPLIED_CREDIT_RES),"") -> 
A16: Y | C16: Stormwater | F16: =IF(ISNUMBER(C16),IF(ISBLANK(APPLIED_CREDIT_RES),BASE_SDC_RES,BASE_SDC_RES-APPLIED_CREDIT_RES),"") -> 
A17: Y | C17: Parks | F17: =IF(ISNUMBER(C17),IF(ISBLANK(APPLIED_CREDIT_RES),BASE_SDC_RES,BASE_SDC_RES-APPLIED_CREDIT_RES),"") -> 
C19: NOTES

Sheet _SDC Vouchers (hidden)
A1: SDC Table: Parks
A3: Voucher Type
A4: Water
A5: Sanitary Sewer
A6: Transportation
A7: Stormwater
A8: Parks

Sheet SUMMARY
D2: SUMMARY SHEET | I2: City of Wilsonville, OR
I3: Community Development
A6: HIDE | B6: TYPE | D6: SUBJECT PROPERTY: | E6: =IF(ISBLANK(START!SITEADDR),"",IF(ISBLANK(START!SUITE),START!SITEADDR,START!SITEADDR & ", " & START!SUITE)) -> 
D9: SUMMARY OF SDC ESTIMATE
D11: UTILTY TYPE | H11: TOTAL
B12: R | D12: Water | H12: =IF(ISNUMBER(WATER!H14),IF(ISNUMBER(WATER!H26),WATER!H14+WATER!H26,WATER!H14),0) -> 0
A13: Y | B13: R | D13: Applied Water Voucher | H13: =IF(ISBLANK(VOUCHERS!$G$13),"--",VOUCHERS!$G$13*-1) -> --
B14: R | D14: Sanitary Sewer | H14: =IF(ISNUMBER(SEWER!H18),SEWER!H18,0) -> 0
A15: Y | B15: R | D15: Applied Sanitary Sewer Voucher | H15: =IF(ISBLANK(VOUCHERS!$G$14),"--",VOUCHERS!$G$14*-1) -> --
B16: R | D16: Transportation | H16: =IF(ISNUMBER(STREETS!H77),STREETS!H77,0) -> 0
A17: Y | B17: R | D17: Applied Transportation Voucher | H17: =IF(ISBLANK(VOUCHERS!$G$15),"--",VOUCHERS!$G$15*-1) -> --
B18: R | D18: Stormwater | H18: =IF(ISNUMBER(STORM!F15),STORM!F15,0) -> 0
A19: Y | B19: R | D19: Applied Stormwater Voucher | H19: =IF(ISBLANK(VOUCHERS!$G$16),"--",VOUCHERS!$G$16*-1) -> --
B20: R | D20: Parks | H20: =IF(ISNUMBER(PARKS!F18),PARKS!F18,0) -> 0
A21: Y | B21: R | D21: Applied Parks Voucher | H21: =IF(ISBLANK(VOUCHERS!$G$17),"--",VOUCHERS!$G$17*-1) -> --
A22: Y | D22: Frog Pond West Infrastructure Supplemental Fee
A23: Y | D23: Boeckman Bridge Transportation Mitigation Fee
B24: R | D24: TOTAL1 | H24: 0
B25: C/I | D25: Water | H25: =IF(ISNUMBER(WATER!H19),IF(ISNUMBER(WATER!H26),WATER!H19+WATER!H26,WATER!H19),0) -> 0
A26: Y | B26: C/I | D26: Applied Water Voucher | H26: =IF(ISBLANK(VOUCHERS!$G$13),"--",VOUCHERS!$G$13*-1) -> --
B27: C/I | D27: Sanitary Sewer | H27: =IF(ISNUMBER(SEWER!J54),IF(ISNUMBER(SEWER!J96),IF(ISNUMBER(SEWER!J138),SEWER!J54+SEWER!J96+SEWER!J138,SEWER!J54+SEWER!J96),SEWER!J54),0) -> 0
A28: Y | B28: C/I | D28: Applied Sanitary Sewer Voucher | H28: =IF(ISBLANK(VOUCHERS!$G$14),"--",VOUCHERS!$G$14*-1) -> --
B29: C/I | D29: Transportation | H29: =IF(ISNUMBER(STREETS!H143),IF(ISNUMBER(STREETS!H184),IF(ISNUMBER(STREETS!H224),STREETS!H143+STREETS!H184+STREETS!H224,STREETS!H143+STREETS!H184),STREETS!H143),0) -> 0
A30: Y | B30: C/I | D30: Applied Transportation Voucher | H30: =IF(ISBLANK(VOUCHERS!$G$15),"--",VOUCHERS!$G$15*-1) -> --
B31: C/I | D31: Stormwater | H31: =IF(ISNUMBER(STORM!F29),STORM!F29,0) -> 0
A32: Y | B32: C/I | D32: Applied Stormwater Voucher | H32: =IF(ISBLANK(VOUCHERS!$G$16),"--",VOUCHERS!$G$16*-1) -> --
B33: C/I | D33: Parks | H33: =IF(ISNUMBER(PARKS!F28),PARKS!F28,0) -> 0
A34: Y | B34: C/I | D34: Applied Parks Voucher | H34: =IF(ISBLANK(VOUCHERS!$G$17),"--",VOUCHERS!$G$17*-1) -> --
B35: C/I | D35: TOTAL1 | H35: 0
D37: 1 SDC Estimate costs do not include excise taxes and other City fees.

Sheet _ITE Codes (hidden)
D1: Daily Trips | I1: Trip Categories | M1: Adjusted Trip Rates
A2: ITE Code | B2: Land Use | C2: Unit | D2: Weekday | E2: Saturday | F2: Sunday | G2: Average | H2: Weekday PM Peak-Hour Trips | I2: Primary | J2: Pass By | K2: Diverted Linked | L2: Total | M2: Daily | N2: Weekday PM Peak-Hour
A3: 21 | B3: Commercial Airport | C3: CFD | D3: 122.21 | E3: 113.04 | F3: 137.71 | G3: =IFERROR(((D3*5)+(AVERAGE(E3:F3)*2))/7,D3) -> 123.1142857 | H3: 8.2 | I3: =L3-SUM(J3:K3) -> 1 | L3: 1 | M3: =G3*I3 -> 123.1142857 | N3: =H3*I3 -> 8.2
A4: 30 | B4: Intermodal Truck Terminal | C4: Acre | D4: 81.9 | E4: 17.28 | F4: 10.79 | G4: 62.51 | H4: 7.24 | I4: 1 | L4: 1 | M4: =G4*I4 -> 62.51 | N4: =H4*I4 -> 7.24
A5: 110 | B5: General Light Industrial | C5: 1,000 SFGFA | D5: 6.97 | E5: 1.32 | F5: 0.68 | G5: 5.264285714 | H5: 1.08 | I5: 1 | L5: 1 | M5: 5.264285714 | N5: 1.08
A6: 130 | B6: Industrial Park | C6: 1,000 SFGFA | D6: 6.83 | E6: 2.49 | F6: 0.73 | G6: 5.338571429 | H6: 0.84 | I6: 1 | L6: 1 | M6: 5.338571429 | N6: 0.84
A7: 140 | B7: Manufacturing | C7: 1,000 SFGFA | D7: 3.82 | E7: 1.49 | F7: 0.62 | G7: 3.03 | H7: 0.75 | I7: 1 | L7: 1 | M7: 3.03 | N7: 0.75
A8: 151 | B8: Mini-Warehouse | C8: 1,000 SFGFA | D8: 2.5 | E8: 2.33 | F8: 1.78 | G8: 2.372857143 | H8: 0.29 | I8: 1 | L8: 1 | M8: 2.372857143 | N8: 0.29
A9: 160 | B9: Data Center | C9: 1,000 SFGFA | D9: 0.99 | G9: 0.99 | H9: 0.14 | I9: 1 | L9: 1 | M9: 0.99 | N9: 0.14
A10: 210 | B10: Single-Family Dwelling | C10: Dwelling unit | D10: 9.52 | E10: 9.91 | F10: 8.62 | G10: 9.447142857 | H10: 1.02 | I10: =L10-SUM(J10:K10) -> 1 | L10: 1 | M10: 9.447142857 | N10: 1.02
A11: 220 | B11: Apartment | C11: Dwelling unit | D11: 6.65 | E11: 6.39 | F11: 5.86 | G11: 6.5 | H11: 0.67 | I11: =L11-SUM(J11:K11) -> 1 | L11: 1 | M11: 6.5 | N11: 0.67
A12: 230 | B12: Residential Condominium/Townhouse | C12: Dwelling unit | D12: 5.81 | E12: 5.67 | F12: 4.84 | G12: 5.651428571 | H12: 0.52 | I12: 1 | L12: 1 | M12: 5.651428571 | N12: 0.52
A13: 240 | B13: Mobile Home Park | C13: ODU | D13: 4.99 | E13: 5 | F13: 4.36 | G13: 4.901428571 | H13: 0.6 | I13: 1 | L13: 1 | M13: 4.901428571 | N13: 0.6
A14: 254 | B14: Assisted Living | C14: Bed | D14: 2.66 | E14: 2.2 | F14: 2.44 | G14: 2.562857143 | H14: 0.35 | I14: 1 | L14: 1 | M14: 2.562857143 | N14: 0.35
A15: 310 | B15: Hotel | C15: Room | D15: 8.17 | E15: 8.19 | F15: 5.95 | G15: 7.855714286 | H15: 0.61 | I15: 1 | L15: 1 | M15: 7.855714286 | N15: 0.61
A16: 320 | B16: Motel | C16: Room | D16: 5.63 | G16: 5.63 | H16: 0.56 | I16: 1 | L16: 1 | M16: 5.63 | N16: 0.56
A17: 411 | B17: City Park | C17: Acre | D17: 1.89 | F17: 16.74 | G17: 6.132857143 | I17: 1 | L17: 1 | M17: 6.132857143 | N17: 0
A18: 417 | B18: Regional Park | C18: Acre | D18: 4.57 | E18: 5.65 | F18: 6.44 | G18: 4.991428571 | H18: 0.26 | I18: 1 | L18: 1 | M18: 4.991428571 | N18: =H18*I18 -> 0.26
A19: 430 | B19: Golf Course | C19: Acre | D19: 5.04 | E19: 5.82 | F19: 5.88 | G19: 5.271428571 | H19: 0.39 | I19: 1 | L19: 1 | M19: 5.271428571 | N19: 0.39
A20: 444 | B20: Movie Theater with Matinee | C20: Movie screen | D20: 348.33 | E20: 546.86 | F20: 420.71 | G20: 387.0314286 | H20: =(102.87+(37.83*4))/5 -> 50.838 | I20: 1 | L20: 1 | M20: 387.0314286 | N20: 50.838
A21: 492 | B21: Health/Fitness Club | C21: 1,000 SFGFA | D21: 32.93 | E21: 20.87 | F21: 26.73 | G21: 30.32142857 | H21: 4.06 | I21: 1 | L21: 1 | M21: 30.32142857 | N21: 4.06
A22: 495 | B22: Recreational Community Center | C22: 1,000 SFGFA | D22: 33.82 | E22: 9.1 | F22: 13.6 | G22: 27.4 | H22: 3.35 | I22: 1 | L22: 1 | M22: 27.4 | N22: 3.35
A23: 520 | B23: Elementary School | C23: 1,000 SFGFA | D23: 15.43 | E23: =E25/D25*D23 -> 5.231117145 | F23: =F25/D25*D23 -> 2.142723041 | G23: 12.07483431 | H23: 3.11 | I23: 0.59 | J23: =1-0.59 -> 0.41 | L23: 1 | M23: =G23*I23 -> 7.124152244 | N23: 1.8349
A24: 522 | B24: Middle School/Junior High School | C24: 1,000 SFGFA | D24: 13.78 | E24: =E25/D25*D24 -> 4.671730023 | F24: =F25/D25*D24 -> 1.913591932 | G24: 10.78361742 | H24: 2.52 | I24: 0.59 | J24: =1-0.59 -> 0.41 | L24: 1 | M24: 6.362334279 | N24: 1.4868
A25: 530 | B25: High School | C25: 1,000 SFGFA | D25: 12.89 | E25: 4.37 | F25: 1.79 | G25: 10.08714286 | H25: 2.12 | I25: 0.59 | J25: =1-0.59 -> 0.41 | L25: 1 | M25: 5.951414286 | N25: 1.2508
A26: 540 | B26: Junior/Community College | C26: 1,000 SFGFA | D26: 27.49 | E26: 11.23 | F26: 1.21 | G26: 21.41285714 | H26: 2.64 | I26: 1 | L26: 1 | M26: 21.41285714 | N26: 2.64
A27: 560 | B27: Church | C27: 1,000 SFGFA | D27: 9.11 | E27: 10.37 | F27: 36.63 | G27: 13.22142857 | H27: 0.94 | I27: 1 | L27: 1 | M27: 13.22142857 | N27: 0.94
A28: 565 | B28: Day Care Center | C28: 1,000 SFGFA | D28: 74.06 | E28: 6.21 | F28: 5.83 | G28: 54.62 | H28: 13.75 | I28: 0.33 | J28: =1-0.33 -> 0.67 | L28: 1 | M28: 18.0246 | N28: 4.5375
A29: 590 | B29: Library | C29: 1,000 SFGFA | D29: 56.24 | E29: 46.55 | F29: 25.49 | G29: 50.46285714 | H29: 7.2 | I29: 1 | L29: 1 | M29: 50.46285714 | N29: 7.2
A30: 610 | B30: Hospital | C30: 1,000 SFGFA | D30: 13.22 | E30: 10.18 | F30: 8.91 | G30: 12.17 | H30: 1.16 | I30: 1 | L30: 1 | M30: 12.17 | N30: 1.16
A31: 620 | B31: Nursing Home | C31: 1,000 SFGFA | D31: 7.6 | E31: =2.23/2.74*D31 -> 6.18540146 | F31: =2.27/2.74*D31 -> 6.296350365 | G31: 7.211678832 | H31: 1.01 | I31: 1 | L31: 1 | M31: 7.211678832 | N31: 1.01
A32: 710 | B32: General Office Building | C32: 1,000 SFGFA | D32: 11.03 | E32: 2.46 | F32: 1.05 | G32: 8.38 | H32: 1.49 | I32: 0.66 | J32: 0.34 | L32: 1 | M32: 5.5308 | N32: 0.9834
A33: 720 | B33: Medical-Dental Office Building | C33: 1,000 SFGFA | D33: 36.13 | E33: 8.96 | F33: 1.55 | G33: 27.30857143 | H33: 4.27 | I33: 1 | L33: 1 | M33: 27.30857143 | N33: 4.27
A34: 731 | B34: State Motor Vehicles Department | C34: 1,000 SFGFA | D34: 166.02 | E34: 9.46 | F34: 6.74 | G34: 120.9 | H34: 19.93 | I34: 1 | L34: 1 | M34: 120.9 | N34: 19.93
A35: 732 | B35: United States Post Office | C35: 1,000 SFGFA | D35: 108.19 | E35: 48.69 | F35: 28.81 | G35: 88.35 | H35: 14.67 | I35: =L35-SUM(J35:K35) -> 1 | L35: 1 | M35: 88.35 | N35: 14.67
A36: 750 | B36: Office Park | C36: 1,000 SFGFA | D36: 11.42 | E36: 1.64 | F36: 0.76 | G36: 8.5 | H36: 1.48 | I36: 1 | L36: 1 | M36: 8.5 | N36: 1.48
A37: 760 | B37: Research and Development Center | C37: 1,000 SFGFA | D37: 8.11 | E37: 1.9 | F37: 1.11 | G37: 6.222857143 | H37: 1.07 | I37: 1 | L37: 1 | M37: 6.222857143 | N37: 1.07
A38: 770 | B38: Business Park | C38: 1,000 SFGFA | D38: 12.44 | E38: 2.56 | F38: 1.29 | G38: 9.435714286 | H38: 1.26 | I38: 1 | L38: 1 | M38: 9.435714286 | N38: 1.26
A39: 812 | B39: Building Materials and Lumber Store | C39: 1,000 SFGFA | D39: 45.16 | E39: 51.6 | F39: 24.5 | G39: 43.12857143 | H39: 5.56 | I39: 1 | L39: 1 | M39: 43.12857143 | N39: 5.56
A40: 813 | B40: Free-Standing Discount Superstore | C40: 1,000 SFGFA | D40: 50.75 | E40: 64.07 | F40: 56.12 | G40: 53.42 | H40: 4.4 | I40: =L40-SUM(J40:K40) -> 0.72 | J40: 0.28 | L40: 1 | M40: 38.4624 | N40: 3.168
A41: 814 | B41: Variety Store | C41: 1,000 SFGFA | D41: 64.03 | G41: 64.03 | H41: 6.99 | I41: 0.4775 | J41: =J42 -> 0.17 | K41: =K42 -> 0.3525 | L41: 1 | M41: 30.574325 | N41: 3.337725
A42: 815 | B42: Free-Standing Discount Store | C42: 1,000 SFGFA | D42: 57.24 | E42: 71.07 | F42: 56.36 | G42: 59.09 | H42: 5.57 | I42: 0.4775 | J42: 0.17 | K42: =AVERAGE(37.4,30,27.4,39.1,40.9,32.6,50,39.3,17.8,37.9,9.1,42.5,20.7,28.9,26.5,21.4,20,51,46,49,48,60)/100 -> 0.3525 | L42: 1 | M42: 28.215475 | N42: 2.659675
A43: 816 | B43: Hardware/Paint Store | C43: 1,000 SFGFA | D43: 51.29 | E43: 82.52 | F43: 68.65 | G43: 58.23142857 | H43: 4.74 | I43: 0.445 | J43: 0.26 | K43: =AVERAGE(26,33)/100 -> 0.295 | L43: 1 | M43: 25.91298571 | N43: 2.1093
A44: 817 | B44: Nursery (Garden Center) | C44: 1,000 SFGFA | D44: 68.1 | E44: 133.31 | F44: 106.2 | G44: 82.85857143 | H44: 9.04 | I44: 0.82 | J44: 0.18 | L44: 1 | M44: 67.94402857 | N44: 7.4128
A45: 820 | B45: Shopping Center | C45: 1,000 SFGLA | D45: 42.7 | E45: 49.97 | F45: 25.24 | G45: 41.24428571 | H45: 3.71 | I45: 0.5014 | J45: 0.34 | K45: 0.1586 | L45: 1 | M45: 20.67988486 | N45: 1.860194
A46: 826 | B46: Specialty Retail Center | C46: 1,000 SFGLA | D46: 44.32 | E46: 42.04 | F46: 20.43 | G46: 40.58142857 | H46: 5.02 | I46: 0.82 | J46: 0.18 | L46: 1 | M46: 33.27677143 | N46: 4.1164
A47: 841 | B47: Automobile Sales | C47: 1,000 SFGFA | D47: 32.3 | E47: 29.74 | F47: 13.62 | G47: 29.26571429 | H47: 2.8 | I47: 1 | L47: 1 | M47: 29.26571429 | N47: 2.8
A48: 843 | B48: Automobile Parts Sales | C48: 1,000 SFGFA | D48: 61.91 | G48: 61.91 | H48: 6.44 | I48: 0.44 | J48: 0.43 | K48: 0.13 | L48: 1 | M48: 27.2404 | N48: 2.8336
A49: 848 | B49: Tire Store | C49: 1,000 SFGFA | D49: 24.87 | G49: 24.87 | H49: 3.26 | I49: 0.6866666667 | J49: 0.28 | K49: =AVERAGE(10,0,0)/100 -> 0.03333333333 | L49: 1 | M49: 17.0774 | N49: 2.238533333
A50: 850 | B50: Supermarket | C50: 1,000 SFGFA | D50: 102.24 | E50: 177.59 | F50: 166.44 | G50: 122.1757143 | H50: 8.37 | I50: 0.3875 | J50: 0.36 | K50: =AVERAGE(20,0,0,0,27,47,44,45,32,38,50,0)/100 -> 0.2525 | L50: 1 | M50: 47.34308929 | N50: 3.243375
A51: 851 | B51: Convenience Market (Open 24 Hours) | C51: 1,000 SFGFA | D51: 737.99 | E51: 863.1 | F51: 758.45 | G51: 758.7857143 | H51: 53.42 | I51: 0.3252631579 | J51: 0.61 | K51: =AVERAGE(13,22,25,0,0,0,0,0,0,0,0,7,4,15,11,2,5,8,11)/100 -> 0.06473684211 | L51: 1 | M51: 246.8050376 | N51: 17.37555789
A52: 857 | B52: Discount Club | C52: 1,000 SFGFA | D52: 41.8 | E52: 53.75 | F52: 33.67 | G52: 42.34571429 | H52: 4.63 | I52: 0.57 | J52: 0.43 | L52: 1 | M52: 24.13705714 | N52: 2.6391
A53: 862 | B53: Home Improvement Superstore | C53: 1,000 SFGFA | D53: 30.74 | E53: 56.72 | F53: 55.8 | G53: 38.03142857 | H53: 3.17 | I53: 0.44 | J53: 0.48 | K53: =AVERAGE(24,0,0)/100 -> 0.08 | L53: 1 | M53: 16.73382857 | N53: 1.3948
A54: 880 | B54: Pharmacy/Drugstore without Drive-Through | C54: 1,000 SFGFA | D54: 90.06 | G54: 90.06 | H54: 11.07 | I54: 0.4233333333 | J54: 0.53 | K54: =AVERAGE(0,0,13,15,0,0)/100 -> 0.04666666667 | L54: 1 | M54: 38.1254 | N54: 4.6863
A55: 881 | B55: Pharmacy/Drugstore with Drive-Through | C55: 1,000 SFGFA | D55: 96.91 | G55: 96.91 | H55: 9.72 | I55: 0.38 | J55: 0.49 | K55: =AVERAGE(13,9,17)/100 -> 0.13 | L55: 1 | M55: 36.8258 | N55: 3.6936
A56: 890 | B56: Furniture Store | C56: 1,000 SFGFA | D56: 5.06 | E56: 4.94 | F56: 4.64 | G56: 4.982857143 | H56: 0.53 | I56: 0.3666666667 | J56: 0.53 | K56: =AVERAGE(31,0,0)/100 -> 0.1033333333 | L56: 1 | M56: 1.827047619 | N56: 0.1943333333
A57: 911 | B57: Walk-in Bank | C57: 1,000 SFGFA | H57: 12.13 | I57: 1 | L57: 1 | N57: 12.13
A58: 912 | B58: Drive-in Bank | C58: 1,000 SFGFA | D58: 148.15 | E58: 86.32 | F58: 31.9 | G58: 122.71 | H58: 26.69 | I58: 0.2733333333 | J58: 0.47 | K58: =AVERAGE(30,30,14,32,21,27)/100 -> 0.2566666667 | L58: 1 | M58: =G58*I58 -> 33.54073333 | N58: 7.295266667
A59: 925 | B59: Drinking Place | C59: 1,000 SFGFA | H59: 15.49 | I59: 1 | L59: 1 | N59: 15.49
A60: 931 | B60: Quality Restaurant | C60: 1,000 SFGFA | D60: 89.95 | E60: 94.36 | F60: 72.16 | G60: 88.03857143 | H60: 9.02 | I60: 0.425 | J60: 0.44 | K60: =AVERAGE(38,0,16,0)/100 -> 0.135 | L60: 1 | M60: =G60*I60 -> 37.41639286 | N60: 3.8335
A61: 932 | B61: High-Turnover (Sit-Down) Restaurant | C61: 1,000 SFGFA | D61: 127.15 | E61: 158.37 | F61: 131.84 | G61: 132.28 | H61: 18.49 | I61: 0.3975 | J61: 0.43 | K61: =AVERAGE(0,0,13,36,33,54,21,19,20,0,0,11)/100 -> 0.1725 | L61: 1 | M61: =G61*I61 -> 52.5813 | N61: 7.349775
A62: 933 | B62: Fast-Food Restaurant without Drive-Through | C62: 1,000 SFGFA | H62: 52.4 | I62: 0.3975 | J62: =J61 -> 0.43 | K62: =K61 -> 0.1725 | L62: 1 | N62: 20.829
A63: 934 | B63: Fast-Food Restaurant with Drive-Through | C63: 1,000 SFGFA | D63: 496.12 | E63: 722.03 | F63: 542.72 | G63: 535.05 | H63: 47.3 | I63: 0.4094444444 | J63: 0.5 | K63: =AVERAGE(48,0,0,0,0,0,0,10,9,19,38,0,0,0,0,21,18,0)/100 -> 0.09055555556 | L63: 1 | M63: =G63*I63 -> 219.07325 | N63: 19.36672222
A64: 936 | B64: Coffee/Donut Shop without Drive-Through | C64: 1,000 SFGFA | H64: 25.81 | I64: 0.1075 | J64: 0.72 | K64: =K61 -> 0.1725 | L64: 1 | N64: 2.774575
A65: 937 | B65: Coffee/Donut Shop with Drive-Through | C65: 100 SFGFA | D65: =818.58/10 -> 81.858 | G65: 81.858 | H65: =36.16/10 -> 3.616 | I65: 0.1094444444 | J65: 0.8 | K65: =K63 -> 0.09055555556 | L65: 1 | M65: =G65*I65 -> 8.958903333 | N65: 0.3957511111
A66: 938 | B66: Coffee/Donut Kiosk | C66: 100 SFGFA | D66: =1800/10 -> 180 | G66: 180 | H66: =96/10 -> 9.6 | I66: 0.11 | J66: 0.89 | L66: 1 | M66: =G66*I66 -> 19.8 | N66: 1.056
A67: 944 | B67: Gasoline/Service Station | C67: VFP | D67: 168.56 | G67: =IFERROR(((D67*5)+(AVERAGE(E67:F67)*2))/7,D67) -> 168.56 | H67: 15.65 | I67: 0.35 | J67: 0.42 | K67: =AVERAGE(0,0,0,49,27,33,15,31,52)/100 -> 0.23 | L67: 1 | M67: =G67*I67 -> 58.996 | N67: 5.4775
A68: 945 | B68: Gasoline/Service Station with Convenience Market | C68: VFP | D68: 162.78 | G68: =IFERROR(((D68*5)+(AVERAGE(E68:F68)*2))/7,D68) -> 162.78 | H68: 13.57 | I68: 0.1277777778 | J68: 0.56 | K68: =AVERAGE(40,27,24,21,29,19,43,35,43)/100 -> 0.3122222222 | L68: 1 | M68: =G68*I68 -> 20.79966667 | N68: 1.733944444
A69: 946 | B69: Gasoline/Service Station with Car Wash | C69: VFP | D69: 152.84 | G69: =IFERROR(((D69*5)+(AVERAGE(E69:F69)*2))/7,D69) -> 152.84 | H69: 14.52 | I69: 0.2388888889 | J69: =AVERAGE(J67:J68) -> 0.49 | K69: =AVERAGE(K67:K68) -> 0.2711111111 | L69: 1 | M69: =G69*I69 -> 36.51177778 | N69: 3.468666667
